{"text_format":"1","workbook":"xlsx","n_sheets":11,"sheets":["MOVA Tips","Instructions","Goals","1. Demographics","2. Goals","3. Key Outcomes","Key Outcomes Hidden","Lists Hidden","PMT Summary","Appendix","Need Support"],"not_rendered":{"charts":0,"images":22,"macros":1,"external_links":0,"defined_names":63,"comments":0,"pivot_tables":0},"unopened":[],"bounds":{"document_bytes":16777216,"sheet_cells":100000,"rows_first":2000,"rows_last":500,"rows_between":2000,"halvings":0,"cell_chars":16384,"cell_head_chars":4096},"cells_cut":0,"cells_raw":0,"read":"whole","date_system":"1900"}

{"sheet":"MOVA Tips","index":0,"n_rows":51,"n_cols":19,"rows_kept":51,"cut":false,"hidden":false,"merged":[[2,18,29,29],[0,11,0,15],[17,2,17,5],[17,6,17,9],[18,2,18,5],[18,6,18,9],[19,2,19,5],[19,6,19,9],[20,2,20,5],[20,6,20,9],[12,6,12,9],[13,2,13,5],[14,2,14,5],[15,2,15,5],[16,2,16,5],[42,1,42,13],[44,1,44,13],[13,6,13,9],[14,6,14,9],[15,6,15,9],[16,6,16,9],[25,1,25,13],[38,2,38,12],[40,2,40,12],[27,1,27,13],[29,1,29,13],[34,1,34,13],[36,1,36,13]]}
[null,null,null,null,null,null,null,null,null,null,null,"Outcome Measurement Tool (OMT)\nMA - Victim Witness Assistance Board\n\nNeed Assistance? \nContact TTACEval@icf.com or call 703-251-0368.\n"]
[null,null,null,null,"MOVA Outcome Measurement Tool (OMT)",null,null,null,null,null,null,null,null,null,null,null,null,null,"NOTES:"]
[]
[]
[null,"MOVA’s TIPS: Using the New OMT"]
[]
[null,"Your MOVA Grants Manager is your first point of contact for any questions or concerns about the OMT and performance data tracking."]
[]
[null,"REPORTING SCHEDULE"]
[]
[null,"VOCA and SAFEPLAN funded agencies are required to submit data on the OMT according to the following schedule:"]
[]
[null,null,"Reporting Period",null,null,null,"Deadline to Submit"]
[null,null,"Period 1 (October – December 2020)",null,null,null,"2021-01-31"]
[null,null,"Period 2 (January – March 2021)",null,null,null,"2021-04-30",null,null,null,"      This is the first reporting period with the OMT."]
[null,null,"Period 3 (April – June 2021)",null,null,null,"2021-07-31"]
[null,null,"Period 4 (July – September 2021)",null,null,null,"2021-10-30"]
[null,null,"Period 5 (October – December 2021)",null,null,null,"2022-01-31"]
[null,null,"Period 6 (January – March 2022)",null,null,null,"2022-04-30"]
[null,null,"Period 7 (April – June 2022)",null,null,null,"2022-07-31"]
[null,null,"Period 8 (July – September 2022)",null,null,null,"2022-10-30"]
[]
[]
[null,"GENERAL"]
[]
[null,"Data must be submitted by the above deadlines – failure to do so may result in funding being withheld."]
[]
[null,"VOCA funded agencies are required to track raw individual level data – either by using OVC’s Data Tracking Spreadsheet or a separate database that allows for data entry, collection and production as outlined in the spreadsheet."]
[]
[null,"Not every client will fit neatly into the demographic options (age, gender, victimization type) and not all of your agency’s VOCA funded services will fit neatly into OVC’s Direct Services categories – please contact your MOVA Grants Manager with any questions you may have about definitions and selecting appropriate categories."]
[]
[null,"TECHNICAL"]
[]
[]
[null,"This database is set to AutoSave, however, continue to \"Save\" frequently as your computer preferences may not allow that. If issues arise where you have lost any data entered and it appears to not saved properly, check your auto recovery or reach out for support. "]
[]
[null,"You must fill in every required field in the OMT – failure to do so will prevent the summary tabs from properly updating this quarter's progress and you are required to complete all fields before you save and submit your data report."]
[]
[null,null,"Where there is no data to report, you must type 0 (zero) – this applies to all numeric fields in the OMT."]
[]
[null,null,"Some questions require an explanation – please write your explanation (or N/A, if appropriate) in the text field provided."]
[]
[null,"The OMT requires consistency across totals – for example, the total number of clients entered in demographics-age must equal the total number of new individuals served in a reporting period. Any discrepancies may be marked in the data entry tabs and you will be asked to correct data fields as necessary."]
[]
[null,"DO NOT edit or enter any data under the MOVA tab in this OMT workbook – this data must be entered and managed by MOVA only. Any changes to this data may affect MOVA’s annual report to OVC which outlines all agencies’ awards and program performance."]
[]
[]
[]
[]
[]
[null,"For technical assistance, contact the Virtual Support Desk at TTACEval@icf.com or call 703-251-0368."]

{"sheet":"Instructions","index":1,"n_rows":236,"n_cols":9,"rows_kept":236,"cut":false,"hidden":false,"merged":[[2,8,25,15],[164,1,165,1],[195,2,195,4],[233,0,233,4],[230,0,230,4],[228,0,228,4],[213,0,213,4],[216,0,216,4],[219,0,219,4],[222,0,222,4],[225,0,225,4],[226,0,226,4],[231,0,231,4],[212,0,212,4],[215,0,215,4],[218,0,218,4],[221,0,221,4],[210,0,211,4],[138,2,138,4],[139,2,139,4],[115,2,115,4],[202,0,202,4],[198,2,198,4],[199,2,199,4],[202,10,202,14],[202,15,202,19],[208,0,208,4],[208,10,208,14],[208,15,208,19],[197,1,200,1],[197,2,197,4],[206,0,206,4],[206,10,206,14],[206,15,206,19],[204,0,204,4],[204,10,204,14],[204,15,204,19],[184,1,186,1],[194,2,194,4],[187,2,187,4],[185,2,185,4],[186,2,186,4],[179,2,179,4],[173,1,180,1],[184,2,184,4],[173,2,173,4],[174,2,174,3],[175,2,175,3],[176,2,176,3],[177,2,177,3],[178,2,178,3],[180,2,180,3],[181,2,181,3],[182,2,182,3],[191,2,191,4],[192,2,192,4],[193,2,193,4],[189,1,194,1],[189,2,189,4],[190,2,190,4],[167,1,171,1],[168,2,168,4],[169,2,169,4],[170,2,170,4],[171,2,171,4],[161,2,161,4],[162,2,162,4],[164,2,164,4],[165,2,165,4],[167,2,167,4],[154,2,154,4],[155,2,155,4],[157,2,157,4],[159,2,159,4],[160,2,160,4],[147,2,147,4],[149,2,149,4],[150,2,150,4],[151,2,151,4],[153,2,153,4],[142,2,142,4],[143,2,143,4],[144,2,144,4],[145,2,145,4],[146,2,146,4],[134,2,134,4],[135,2,135,4],[136,2,136,4],[137,2,137,4],[141,2,141,4],[126,2,126,4],[124,2,124,4],[122,2,122,4],[127,2,127,4],[128,2,128,4],[129,2,129,4],[130,2,130,4],[131,2,131,4],[132,2,132,4],[72,0,72,4],[80,0,80,4],[114,0,114,4],[81,2,81,4],[103,2,103,3],[105,2,105,3],[106,2,106,3],[108,2,108,3],[109,2,109,3],[86,2,86,3],[87,2,87,3],[93,2,93,3],[94,2,94,3],[96,2,96,3],[97,2,97,3],[110,2,110,3],[112,2,112,3],[83,2,83,3],[47,10,47,14],[47,15,47,19],[48,0,48,4],[48,10,48,14],[48,15,48,19],[45,0,45,4],[45,10,45,14],[45,15,45,19],[46,0,46,4],[46,10,46,14],[46,15,46,19],[47,0,47,4],[0,4,0,5],[26,0,26,4],[27,0,27,4],[30,0,30,4],[12,0,12,4],[3,1,4,4],[6,0,7,4],[52,0,53,4],[8,0,8,4],[21,0,21,4],[22,0,22,4],[25,0,25,4],[29,0,29,4],[32,0,32,4],[38,0,38,4],[35,0,35,4],[44,0,44,4],[49,0,49,4],[23,0,23,4],[15,0,15,4],[10,0,10,4],[33,0,33,4],[36,0,36,4],[50,0,50,4],[17,1,17,5],[19,0,19,4],[39,0,39,4],[40,0,40,4],[227,0,227,4],[224,0,224,4],[54,0,54,4],[84,2,84,3],[88,2,88,3],[89,2,89,3],[91,2,91,3],[99,2,99,4],[100,2,100,4],[101,2,101,4],[64,1,65,1],[82,2,82,3],[57,0,57,4],[133,2,133,4],[121,2,121,3],[123,2,123,3],[116,2,116,3],[117,2,117,3],[118,2,118,3],[119,2,119,3],[40,10,40,14],[40,15,40,19],[41,0,41,4],[41,10,41,14],[41,15,41,19],[42,0,42,4],[42,10,42,14],[42,15,42,19],[43,0,43,4],[43,10,43,14],[43,15,43,19]]}
[null,null,null,null,"Outcome Measurement Tool (OMT)\nMA - Victim Witness Assistance Board\n\nNeed Support? Contact TTACEval@icf.com or call 703-251-0368.\n"]
[null,null,"INSTRUCTIONS FOR DATA ENTRY AND SUBMISSION",null,null,null,null,null,"NOTES:"]
[]
[null,"When ready to enter and submit your agency's program data, complete the data entry tabs: (1) Demographics, (2) Goals, and (3) Key Outcomes, which can be found in the subsequent worksheets. Be sure to enter the appropriate Reporting Period and the contact information for the person completing the form. Once you have finished completing your entry, toggle the \"Status\" option to \"Complete\" and submit your report via email to your Grant Manager for the specified period. Additional instructions are provided below to align with each section in the data entry tabs should you need clarification on what to include in each section and what options are presented as potential responses. Period 1 requires the most time to setup your award and the associated strategic areas, goals, and metrics; then in subsequent reporting periods, updates can be made and only the outcomes are reported."]
[]
[]
["DEMOGRAPHICS. This section is an opportunity to provide expanded detail about clients which will be aggregated to count as part of regular PMT reporting. It provides additional options that you are able to specify based on your service population and then the tool will retain your entry preferences in subsequent periods for further updating. Once you have completed the information, the main categories will be summarized in the PMT Summary tab."]
[]
["Race/Ethnicity - This section includes NEW individuals only and should equal the total included in Section 3."]
["Optional Additions: "]
["• If you would like the option to include a count of specific identities within a racial and/or ethnic category, you can select an identity under the racial and/or ethnic category from the drop down menu and enter the total number of new individuals within this specific identity."]
[]
["• If there is a specific identity that is not listed as an option under the appropriate racial and/or ethnic category in the drop down menu, select \"other\" in the drop down menu under the appropriate racial and/or ethnic category. Specify the \"other\" identity in the next cell directly adjacent to \"other: and enter the total number of new individuals included in this identity."]
[]
["Other Race and/or Ethnicity:"]
["• If you need to specify a racial and/or ethnic category that does not fall into the available categories (e.g., American Indian or Alaska Native, Asian, Black or African American, Hispanic or Latino, Native Hawaiian or other Pacific Islander, White non-Latino or Caucasian), type in the other category in the cell below the \"Other Race/Ethnicity (please specify below)\" and enter the total number of new individuals who fall into this category."]
[null,"Multiple Races and Individuals Not Reported or Tracked:"]
[null,"• If you have individuals that fall into more than one racial and/or ethnic category, use the \"Multiple Races\" section to select the race/ethnicity combination or select \"other\" and enter the specified detail."]
[]
["• If there are individuals that did not provide race/ethnicity OR that your agency were unable to track this particular identifier, use the \"Individuals Not Reported\" or \"Individuals Not Tracked\" categories."]
[]
["Gender Identity - This section includes NEW individuals only and should equal the total included in Section 3. Reporting of Male, Female, and Other is required."]
["Other Gender Identity:"]
["•  If you need to specify a gender identity that does not fall into the available categories (e.g., Transgender Male, Transgender Female, Genderqueer/Non-Conforming/Non-Binary), type in the other identity in the cell below the \"Other Gender (please specify below)\" and enter the total number of new individuals who fall into this identity. "]
[]
["Age - This section includes NEW individuals only and should equal the total included in Section 3."]
["• The total number of each new individual in age categories Age 0-12 and Age 13-17 are auto-calculated from the PMT."]
["• Enter the total number of each new individual in only one age category as self-reported."]
[]
["Geographic Region - This section includes NEW individuals only and should equal the total included in Section 3."]
["• Enter the total number of individuals who fall into the geographical areas, into the corresponding reporting period. "]
[]
["Victimization Type - This section included ALL individuals and should equal the total included in Section 1. This section in mandatory."]
["• Enter the total number of individuals into each of the corresponding categories. An individual MAY be counted in more than one victimization type. An individual MAY NOT be counted more than once within a single victimization type. The total across this section should be equal to the total number of individuals served during the specified period (includes ALL individual regardless of whether they were NEW)."]
[]
["Other Victimization Type:"]
["• If you need to specify a victimization type that is not listed, please specify in the cell below \"Other Victimization (please specify below)\" and enter the total number of individuals who fall into this category."]
[]
["Special Classification Type"]
["Optional Disabilities Additions: "]
["• If you would like the option  to include a count of specific disabilities for those served, you can select a disabiity type under the \"Victims with Disabilities: Cognitive/Physical/Mental\" category from the drop down menu and enter the total number of individuals within this specific category."]
[]
["• If there is a specific disability that is not listed as an option under the disabilities category in the drop down menu, select \"other\" in the drop down menu under the disabilities \n        category. Specify the \"other\" disability in the next cell and enter the total number of individuals included."]
[]
["Optional LEP Additions: "]
["• If you would like the option  to include a count of specific languages served, you can select a language under the \"Victims with Limited English Proficiency\" category from the drop down menu and \n        enter the total number of individuals within this specific language."]
[]
["• If there is a specific language that is not listed as an option under the limited English proficiency category in the drop down menu, select \"other\" in the drop down menu under the limited English proficiency \n        category. Specify the \"other\" language in the next cell and enter the total number of individuals included."]
[]
["Other Classification Type:"]
["• If you need to specify a special classification type that does not fall into the available categories (e.g., Deaf or Hard of Hearing, Homeless, Immigrants/Refugees/Asylum Seekers, LGBTQ, Veterans, Victims with Disabilities), type in the special classification in the cell below the \"Other Special Classification (please specify below)\" and enter the total number of  individuals who fall into this category."]
[]
["GOALS. This section will rely on your logic model and the objectives described in your award. Each step builds upon  prior responses to assist in outlining measurable goals. Once you have entered each goal for your award and the associated measures during the first reporting period, they will be retained and only the outputs and outcomes for each subsequent reporting periods will be entered. During each reporting period, you have an opportunity to expand the measures and objectives. However, consult with your Grant Manager before changing any goals that have been previously reported."]
[]
["Complete the information at the top of the tab for the main point of contact for the OMT submission. Select your organization category from the following categories. This information is retained after entry during the first submission period and only updates are needed if the point of contact changes. Period in reference will be updated each data entry period."]
[null,"Organization categories:","Government Agencies\nNonprofit Organizations\nTribal Government Agencies and Organizations\nCampus Organizations"]
[]
["Next, select your agency type (based on organization category). These options are grouped based on response to \"Organization Category\". This information will be retained after entry during the first submission period and any changes require consultation with your MOVA Grant Manager. The options presented in the other OMT categories are based on what is selected here."]
[null,"Government Agencies:","Corrections\nCourts\nJuvenile Justice","Law Enforcement\nProsecutor\nOther Government Agency"]
[]
[null,"Nonprofit Organizations:","Child Abuse Service Organizations","Domestic Violence and Sexual Assault Services","Organization by/for underserved victims of crime"]
[null,null,"Coalition","Faith-Based Organization ","Other Nonprofit Organization"]
[null,null,"Domestic and Family Violence Organization","Multiservice Agency ","Sexual Assault Service Organization "]
[]
[null,"Tribal Government Agencies and Organizations:","Child Abuse Service Organizations","Juvenile Justice","Organization by/for underserved victims of crime"]
[null,null,"Court ","Law Enforcement ","Other Agency that is NOT Justice-Based "]
[null,null,"Domestic and Family Violence Organizations","Prosecutor","Other Tribal Government, Agency, Organization"]
[null,null,"Domestic Violence and Sexual Assault Services","Sexual Assault Service Organizations"]
[null,null,"Faith-Based Organization ","Other Justice-Based Agency "]
[]
[null,"Campus Organizations:","Campus-Based Victims Services\nLaw Enforcement \nPhysical or Mental Health Service Program\nOther Campus Organization"]
[]
["During the first reporting period, complete the areas below to outline at least 2-3 strategic areas of focus within your award to help group the associated goals and outputs for each area. It is recommended to have 1-2 goals per strategic area with measurable milestones to track throughout your award. Please consult your logic model when constructing your goals for the award. Once these are entered, each reporting period will be for updates only and entering the values for each period to track your progress, as well as any changes in your program. This will become an outline of what you hope to achieve through your grant funding. Each output will be entered on its own line within the tool.\n\nStep 1: Select 2-3 strategic areas that best describe the objectives of your current award as outlined in your program logic model.  These are main strategic areas that span current funding. If your strategic area is not listed, use the \"Other\" category. During the first entry period, organizations will enter their full logic model and all other periods are updates only for this step."]
[null,"Strategic Areas","(1) Case Management and Advocacy","(7) Language Access"]
[null,null,"(2) Community Engagement and Outreach ","(8) Legal Services"]
[null,null,"(3) Crisis Intervention and Hotline","(9) Medical and Forensic Services"]
[null,null,"(4) Education and Training","(10) Mental Health Services"]
[null,null,"(5) Financial Reimbursement or Compensation","(11) Other Strategic Area"]
[null,null,"(6) Housing and Shelter"]
[]
["Step 2: Select 1-2 goals per strategic area that best describe the types of activities of your award or the outcomes your organization is aiming to achieve through the activities provided by your program. Select from options provided or create your own description. These are the main strategic areas linked to Step 1 and now you set and manage progress toward individual goals within each strategic area. If your strategic area is not listed, use the \"other\" category. During the first entry period, organizations will enter their full logic model and all other periods are updates only for this step. An example could be “to provide access to safe nights” if your Strategic Area is Housing and Shelter or “to reduce trauma symptoms of clients who are engaged in mental health services” if your Strategic Area is Mental Health Services. "]
[null,"Strategic Areas","Samples of Associated Goals"]
[null,"Case Management and Advocacy","To empower the victim post-trauma"]
[null,null,"To engage the victims in systems of care or justice that the victim chooses"]
[null,null,"To use the victim/survivor experience to advance a larger mission of system change"]
[]
[null,"Community Engagement and Outreach","To improve community awareness of services available for a target population"]
[null,null,"To raise awareness of a specific issue/topic or rights afforded to victims of crime"]
[null,"Crisis Intervention and Hotline","To provide crisis services that are accessible to the victim population that you serve"]
[null,null,"To stabilize a victim from a point of physical, emotional, or financial crisis"]
[]
[null,"Education and Training","To increase the competency of allied service providers and your own staff"]
[]
[null,"Financial Reimbursement or Compensation","To provide for the client's basic emergency financial needs"]
[null,null,"To enable the victim to maintain their status previous to the victimization"]
[]
[null,"Housing and Shelter","To provide access to safe nights"]
[null,null,"To ensure the stability of survivor's future housing"]
[]
[null,"Language Access","To provide the victim with the ability to access systems of care in a language that is most comfortable for the victim"]
[null,null,"To provide LEP co-workers and colleagues with the ability to access continuing education, training, and outreach events in a language that is most comfortable for them"]
[null,null,"To provide victim service providers ready and efficient access to interpretation services in a way that increases the providers' ability to provide services to the client"]
[]
[null,"Legal Services","To meet the legal needs of the victim of crime, as stated by the victim"]
[]
[null,"Medical and Forensic Services","To provide appropriate and high quality medical care to victims/patients"]
[null,null,"To provide the appropriate and high quality forensic care to victims/patients"]
[]
[null,"Mental Health Services","To reduce trauma symptoms of victims of crimes who are engaged in mental health services"]
[null,null,"To improve the general functioning of a victim of crime"]
[null,null,"To reduce the stigma of accessing mental health services in various (specific to grantee) communities"]
[]
[null,"Other","Insert the corresponding information"]
[]
["Step 3: Select 2-3 measures per program goal to include in your regular reporting. These are sample program goals and do not include all possibilities. Determine the items from the Outputs section of your logic model that correspond to each intended outcome. Enter them within the related Strategic Area to create common groups of measures. Select from options provided or create your own description of measures. Period 1 requires full entry and all other periods are updates only for this step. NOTE: These measures will include both items you already report in the OVC PMT and new data as needed to fully describe what is outlined in the “Outputs” section of your logic model. Refer to the Demographics and Direct Services questions for measures (e.g., counts of services offered and types of people served) already reported in the OVC PMT."]
[null,"Program Goals","Samples of Associated Measures"]
[null,"To empower the victim post-trauma","Number of unique victims for whom you provided case management and advocacy"]
[null,null,"Number of new victims for whom you provided case management and advocacy"]
[null,null,"Number of continuing victims for whom you provided case management and advocacy"]
[null,null,"Number of unique victims not assessed at T1 (e.g. client refused assessment, did not engage past intake or crisis point)"]
[]
[null,"To engage the victims in systems of care or justice that the victim chooses","Number of unique victims for whom you provided case management and advocacy"]
[null,null,"Number of new victims for whom you provided case management or advocacy who engaged the: criminal justice system, civil protective system, mental health system, immigration system, education system, family court/family civil law systems, substance abuse treatment systems, medical forensic system"]
[null,null,"Number of continuing unique victims for whom you provided case management and advocacy"]
[null,null,"Number of continuing victims for whom you provided case management or advocacy who newly engaged the: criminal justice system, civil protective system, mental health system, immigration system, education system, family court/family civil law systems, substance abuse treatment systems, medical forensic system"]
[]
[null,"To use the victim/survivor experience to advance a larger mission of system change","Number of formalized multidisciplinary systems of care in which the provider is engaged in the reporting quarter (baseline and new)"]
[null,null,"Number of instances in the reporting quarter in which the provider engaged the traditional media to achieve a larger system goal"]
[null,null,"Number of instances in the reporting quarter in which the provider game testimony to a 3rd party to advance the interest of a victim or a collective group of victims"]
[null,null,"Number of staff members employed or contacted as case managers or advocates during the reporting period"]
[null,null,"Number of employed or contracted case managers or advocates that engaged in continuing education during the reporting period"]
[null,null,"Number of volunteers or interns used by your organization as case managers or advocates during the reporting period"]
[null,null,"Number of volunteers or interns who were used as case managers or advocates that were engaged in continuing education during the reporting period"]
[null,null,"Number of continuing education units or hours (grantee to choose measurement) provided by your organization or supported by your organization (e.g. paid for by your organization) for case managers and advocates during the reporting period"]
[null,"To provide crisis services that are accessible to the victim population that you serve","Number of crisis calls, texts, chats, or other requests for crisis service received in the reporting quarter"]
[null,null,"Number of crisis calls, texts, or chats ANSWERED in the reporting quarter"]
[null,null,"Number of crisis calls, texts, or chats UNANSWERED in the reporting quarter"]
[null,null,"Number of crisis calls, texts, or chats that had a DELAYED ANSWER in the reporting quarter"]
[null,null,"Average response time to calls, texts, or chats"]
[null,null,"Number of referrals to external resources or service providers"]
[]
[null,"To stabilize a victim from a point of physical, emotional, or financial crisis","Number of crisis calls/texts/chats in which the victim spoke a language other than English"]
[null,null,"Number of crisis calls in which assistance was provided in the victim's native language"]
[null,null,"Number of third party requests for service via hotline during the reporting quarter"]
[null,null,"Number of unique victims (primary and secondary) served in this reporting period"]
[null,null,"Of the number of unique victims (primary and secondary) provided with crisis intervention services, how many were provided services via: hotline (text, chat, phone) or in-person crisis intervention"]
[null,null,"Of the number of unique victims (primary and secondary) for whom crisis intervention or hotline services were provided during this quarter how many victims stated each of the following needs: housing, safety (physical or emotional), criminal justice intervention, emotional support, medical or forensic care, legal services, other needs not listed"]
[null,null,"Of the number of unique victims (primary and secondary) for whom crisis intervention or hotline services were provided during this quarter, how many victims' needs were met via: service provided by organization or agency, referral to another organization or agency, warm hand-off to another organization or agency, referral made but declined, unknown resolution"]
[]
[null,"To increase the competency of allied service providers and your own staff","Number of training or education events conducted during the reported quarter"]
[null,null,"Number of participants trained or educated during the reporting quarter"]
[null,null,"Number of participants that: did not submit an evaluation; demonstrated a positive change in knowledge, skills, or abilities"]
[]
[null,"To provide for the client's basic emergency financial needs","Number of requests for emergency financial assistance made during the reporting quarter"]
[null,null,"Number of requests for emergency financial assistance fully met during the reporting quarter"]
[null,null,"Number of requests for emergency financial assistance partially met during the reporting quarter"]
[]
[null,"To enable the victim to maintain their status previous to the victimization","Of the number of the awards for emergency financial assistance met during the reporting quarter, what number paid for: housing deposits, child care expenses, utilities, property repair or replacement, clothing or toiletries, lock change, food, other not listed"]
[]
[null,"To provide access to safe nights","Number of emergency shelter or safe house instances"]
[null,null,"Number of individuals served through emergency shelter or safe house"]
[null,null,"Number of transitional housing instances"]
[null,null,"Number of individuals served through transitional housing instances"]
[]
[null,"To ensure the stability of survivor's future housing","Number of relocation assistance instances"]
[null,null,"Number of individuals served through relocation assistance"]
[]
[null,"To provide the victim with the ability to access systems of care in a language that is most comfortable for the victim","Number of interpreter requests"]
[null,null,"Number of individuals served through interpreter requests"]
[null,null,"Number of requests for interpretation services unfilled"]
[null,null,"Number of individuals served by program staff in a language other than English by program staff"]
[null,null,"Number of instances of service provision by program staff in a language other than English"]
[]
[null,"To meet the legal needs of the victim of crime, as stated by the victim","Number of notifications of criminal justice events (e.g., case status, arrest, court proceedings, case disposition, release, etc.)"]
[null,null,"Number of individuals served through notifications of criminal justice events (e.g., case status, arrest, court proceedings, case disposition, release, etc.)"]
[null,null,"Number of information about the criminal justice process provision instances"]
[null,null,"Number of individuals served through the provision of information about the criminal justice process"]
[null,null,"Number of law enforcement interview advocacy/accompaniments"]
[null,null,"Number of individuals served through law enforcement interview advocacy/accompaniment"]
[null,null,"Number of prosecution interview advocacy/accompaniments (includes accompaniment with prosecuting attorney and with victim/witness)"]
[null,null,"Number of individuals served through prosecution interview advocacy/accompaniments (includes accompaniment with prosecuting attorney and with victim/witness)"]
[null,null,"Number of criminal advocacy/accompaniments"]
[null,null,"Number of individuals served through criminal advocacy/accompaniments"]
[]
[null,"To provide appropriate and high quality medical care to victims/patients","Number of performances of medical or nonmedical forensic exam or interview, or medical evidence collection"]
[null,null,"Number of individuals served through the performance of medical or nonmedical forensic exam or interview, or medical evidence collection"]
[]
[]
[]
[null,"To reduce trauma symptoms of victims of crimes who are engaged in mental health services","Number of intakes or initial assessments"]
[null,null,"Number of individual counseling instances"]
[null,null,"Number of individuals served through individual counseling instances"]
[null,null,"Number of support groups (facilitated or peer) instances"]
[null,null,"Number of individuals served through support groups (facilitated or peer)"]
[null,null,"Number of other therapy (traditional, cultural, or alternative healing; art, writing, or play therapy, etc.)"]
[null,null,"Number of individuals served through other therapy  (traditional, cultural, or alternative healing; art, writing, or play therapy, etc.)"]
[]
[null,"To raise awareness of the issue or of the services that you offer","Number of in-person outreach events attended by the organization"]
[null,null,"Number of unique visitors to your website"]
[null,null,"Number of new social media followers"]
[]
[]
["If applicable, fill in additional strategic area(s), goal(s), and measure(s) under the Strategic Area #4 section and so on. Period 1 is full entry and all other periods are updates only for this step."]
[]
["Step 4: Enter the milestone. Provide the milestone included in the program logic model for the corresponding item to show what you plan to achieve by the end of your award. If your program milestone needs to be adjusted given external factors or changes to your program, consult with your MOVA Grant Manager prior to altering the milestone from previous periods."]
[]
["Step 5: Determine Output Type. Select from the dropdown who or what the output is focused on. This includes options to provide more specificity such as population of interest, staff-based outputs, types of services (if applicable and different from the detail provided above as part of the measure), outreach, organizational-level outputs (e.g., policies, practices), collaboration and referral, and other. For example, if one of your program goals is to provide access to safe nights by offering at least 6,000 days of shelter care, here is where you will have an opportunity to define whether this is a service type-related output or a specific population your program is tracking nights of shelter care for within this measure.  If you have multiple awards, use the open-ended field here to specify which award the entries apply to."]
[]
["Step 6: IN EACH PERIOD, input the corresponding updates for the goals chosen. The progress toward achieving each goal will automatically update to show cumulative totals across quarters."]
[]
["KEY OUTCOMES. Subrecipients are expected to implement a standard set of key outcomes to demonstrate what has been achieved by their program. This section is meant to capture what you may already be collecting. It also provides recommendations for potential areas based on what we know about the impact of VOCA across the Commonwealth and utilizing existing logic models. This will allow for similar programs to select common measures, while maintaining options for unique contributions. During each reporting period, you will provide the average or overall outcome for each measure entered in this section for that period. How many times that question was administered is captured in the \"Demographics\" tab to auto-calculate the response rate. New measures can be introduced as your program develops and instrumentation changes; however, do not change the outcomes between reporting periods without consulting with your MOVA Grant Manager. These items correspond to approved program logic models. Sample measures are included in the dropdown options within the OMT and supporting materials provided during launch."]
[]
["Step 1: Select Strategic Areas. Following the same strategic areas specified in the previous tab, select the appropriate label for the corresponding strategic area for the outcome being measured. Choose from several options or create your own description (i.e., Mental Health Services, Housing and Shelter). "]
["• In the first column, select the strategic area that relates to the outcome in your logic model. "]
[]
["Step 2: Determine Outcome Type. Select from the dropdown who or what the outcome is focused on. This includes options such as client outcomes, staff-based outcome, quality of services, outreach, organizational-level outcomes, collaboration and referral, specific populations, and other. For example, if one of your program goals is related to training staff on trauma-informed practices, here is where you will have an opportunity to specify that the corresponding outcomes is related to staff outcomes from the training(s)."]
["• Looking at your outcome, use the dropdown menu to find the grouping that best describes what your program hopes to achieve. "]
[]
["Step 3: Select Sub-Category. Once you have selected an Outcome Type, you will then further classify the sub-category the short- or long-term outcome is related to, which will further define the associated strategic areas. "]
["• Classify the category of your outcome."]
[]
["Step 4: Define the Question or Measure Used. For each outcome, describe how it was measured. Often times this will be through either client surveys, program data on service levels, case management data, tracking of referral outcomes, or results from assessments. Programs are able to enter information for each measure utilized or a combination of measures that assess a key construct such as client well-being. In this example, you might include individual measures for mental health, employment, housing, and safety or select to include client well-being overall. "]
["• Include the full next for the question that is being used to measure the outcome. "]
[]
["Step 5: Specify the Scale Range. Provide the detailed related to each outcome to explain how it was measured. The options include selecting from a dropdown list of sample measures where you can include whether it was a quantitative or qualitative, type of scale if applicable (e.g., 5 response options), and types of responses (e.g., agreement items, true/false statements, yes/no, etc.). "]
["• Select the option that best describes the options in the previously selected scale "]
[]
["Step 6: Enter Milestones. Provide the milestone included in the program logic model for the corresponding item to show what you plan to achieve by the end of your award. There is additional space to provide more detail regarding the qualitative milestones given that non-numeric milestones require additional information."]
["• Type in the milestone or numeric goal for the outcome for the grant period. "]
[]
["• This is an optional space to provide additional information about the milestone.  If you have multiple awards, use the open-ended field here to specify which award the entries apply to."]
["Step 7: IN EACH PERIOD,update the findings for the current reporting period. Enter the average score or result for the specified outcome during each reporting period. For example, if you asked program participants about how well the service met their needs/expectations using a 10-point scale from “did not meet my needs/expectations at all” to “met all of my needs/expectations,” you would enter the average response for each reporting period on that item. You may have a goal of achieving an 8 out of 10 over the course of the program."]
[]
[]
[]
[null,"For technical assistance, contact the Virtual Support Desk at TTACEval@icf.com or call 703-251-0368."]

{"sheet":"Goals","index":2,"n_rows":35,"n_cols":32,"rows_kept":35,"cut":false,"hidden":true,"merged":[[17,23,17,25],[17,26,17,27],[17,28,17,29],[17,30,17,31],[17,8,17,12],[17,3,17,7],[17,13,17,14],[17,15,17,18],[17,19,17,20],[17,21,17,22]]}
["Type of Organization",null,"Government Agencies","Nonprofit Organizations","Tribal Organizations","Campus Organizations"]
[]
[null,null,"Corrections","Child Abuse Service Organizations","Child Abuse Service Organizations","Campus-Based Victims Services"]
[null,null,"Courts","Coalition","Court ","Law Enforcement "]
[null,null,"Juvenile Justice","Domestic and Family Violence Organization","Domestic and Family Violence Organizations","Physical or Mental Health Service Program"]
[null,null,"Law Enforcement ","Faith-Based Organization ","Faith-Based Organization ","Other Campus Organization"]
[null,null,"Prosecutor","Organization Provides Domestic Violence and Sexual Assault Services","Juvenile Justice"]
[null,null,"Other Government Agency","Organization by/for underserved victims of crime","Law Enforcement "]
[null,null,null,"Sexual Assault Service Organization ","Organization Provides Domestic Violence and Sexual Assault Services"]
[null,null,null,"Multiservice Agency ","Prosecutor"]
[null,null,null,"Other Nonprofit Organization","Sexual Assault Service Organizations"]
[null,null,null,null,"Other Justice-Based Agency "]
[null,null,null,null,"Other Agency that is NOT Justice-Based "]
[null,null,null,null,"Organization by/for underserved victims of crime"]
[null,null,null,null,"Other Tribal Government, Agency, Organization"]
[]
[]
["Strategic Area (for drop down menu)",null,"Administrative Capacity","Case Management and Advocacy",null,null,null,null,"Community Engagement and Outreach",null,null,null,null,"Crisis Intervention and Hotline",null,"Education and Training",null,null,null,"Financial Reimbursement or Compensation ",null,"Housing and Shelter",null,"Language Access",null,null,"Legal Services",null,"Medical and Forensic Services",null,"Mental Health Services"]
["Select Strategic Area",null,"To improve the provision of services to clients/victims through increased administrative capacity","To empower the victim/client","To engage the victims/clients in systems that the victim/client chooses","To use the victim/survivor experience to advance a larger mission of system change","To facilitate the client/victim’s engagement in care or recovery","To support caregiver or family members of the victim/survivor","To increase underserved communities’ access to services","To raise awareness of the issue or of the services that you offer","To strengthen relationships with other service providers","To coordinate services at the local, state or national level through the convening of a high risk team, multi-disciplinary team or other multidisciplinary groups","To implement protective factors and reduce risk factors in a community","To provide crisis services that are accessible to the client/victim population served","To stabilize a victim from a point of physical, emotional or financial crisis","To increase the competency of allied service providers and/or your own staff","To improve the well-being or understanding of clients/victims through trainings, seminars or other educational opportunities","To provide LEP co-workers and colleagues with the ability to access continuing education training and outreach events in a language that is most comfortable for them","To engage and support volunteers and interns providing support to victims/survivors or your organization","To provide for the client/victim’s basic emergency financial needs","To support the stabilization of a client/victim after a traumatic incident","To provide access to safe nights","To ensure the stability of survivor's future housing","To provide the client/victim with the ability to access systems of care in a language that is most comfortable for the victim","To provide written materials and forms in a language that is most comfortable for the client/victim","To provide victim service providers ready and efficient access to interpretation services in a way that increases the providers' ability to provide services to the client","To support the client/victim’s engagement in the legal or criminal justice","To meet the legal needs of the client/victim of crime as stated by the client/victim","To provide appropriate and high quality medical care to victims/patients/clients","To support client/victim’s engagement in medical systems","To reduce trauma symptoms of victims of crimes who are engaged in mental health services","To increase the access of individuals into systems of mental health care"]
["Administrative Capacity",null,"Number of policies or protocols created to improve direct services or administrative work","Number of interventions with employer, creditor, landlord, or academic institution","Number of individuals who received advocacy in engaging the: criminal justice system, civil protective system, mental health system, immigration system, education system, family court/family civil law systems, substance abuse treatment systems or medical forensic exam","Number of instances in which the provider engaged the traditional media to achieve a larger system goal","Number of transportation assistance (includes coordination of services) instances","Number of instances of individual advocacy provision","Number of outreach materials created to specifically reach underserved populations either through language, accessibility or cultural specificity   ","Number of in-person outreach events attended by the organization","Number of formalized partnerships created with other community organizations","Number of meetings or convenings attended","Number of activities conducted in the reporting quarter in which the primary purpose of the activity was primary prevention or development of a shared community vision","Number of crisis intervention (in-person, includes safety planning, etc.) instances","Number of on-scene crisis response (e.g., community crisis response) instances","Number of training or education events conducted during the reported quarter","Number of training or education events conducted during the reported quarter","Number of training or education events conducted during the reported quarter","Number of new volunteers or interned trained","Number of emergency financial assistance (includes emergency loans and petty cash, payment for items such as food and/or clothing, changing windows and/or locks, taxis, prophylactic and nonprophylactic medications, durable medical equipment, etc.) provision instances","Number of instances of basic needs (includes clothes, school supplies, furniture, toiletries, etc.) provisions","Number of emergency shelter or safe house instances","Number of relocation assistance instances","Number of interpreter requests","Number of materials created in language other than English","Number of different service providers that requested interpretation services during the reporting quarter","Number of notifications of criminal justice events (e.g., case status, arrest, court proceedings, case disposition, release, etc.)","Number of civil legal assistance in obtaining protection or restraining order instances","Number of performances of medical or nonmedical forensic exam or interview, or medical evidence collection","Number of instances of victim advocacy/accompaniment to emergency medical care","Number of intakes or initial assessments","Number of victims that engaged in a screening or intake process during the reporting quarter"]
["Case Management and Advocacy",null,"Number of new evaluation efforts launched","Number of individuals served through an intervention with employer, creditor, landlord, or academic institution","Number of individuals who received referrals to other victim/survivor service programs","Number of instances in which the provider gave testimony to a 3rd party to advance the interest of a victim/client or a collective group of victims/clients","Number of individuals served through transportation assistance (includes coordination of services)","Number of individuals served through individual advocacy",null,"Number of unique visitors to your website","Number of community meetings or convenings attended","Number of individuals referred to local, state or national coordination group","Number of participants engaged in activities for which the primary purpose was primary prevention or development of a shared community vision","Number of individuals served through crisis intervention (in-person, includes safety planning, etc.)","Number of individuals served through on-scene crisis response (e.g., community crisis response) instances","Number of participants trained or educated during the reporting quarter","Number of participants trained or educated during the reporting quarter","Number of participants trained or educated during the reporting quarter","Number of trainings offered for volunteers or interned","Number of individuals served through emergency financial assistance (includes emergency loans and petty cash, payment for items such as food and/or clothing, changing windows and/or locks, taxis, prophylactic and nonprophylactic medications, durable medical equipment, etc.)","Number of individuals served through the provision of items needed to fulfill basic needs (includes clothes, school supplies, furniture, toiletries, etc.)","Number of individuals served through emergency shelter or safe house","Number of individuals served through relocation assistance","Number of individuals served through interpreter requests","Number of materials translated in a language other than English","Number of different service providers that received services during the reporting quarter","Number of individuals served through notifications of criminal justice events (e.g., case status, arrest, court proceedings, case disposition, release, etc.)"," Number of individuals who received civil legal assistance in obtaining protection or restraining order","Number of individuals served through the performance of medical or nonmedical forensic exam or interview, or medical evidence collection","Number of individuals served through victim advocacy/accompaniment to emergency medical care","Number of individual counseling instances","Number of victims that were screened and referred to another mental health provider during the reporting quarter"]
["Community Engagement and Outreach",null,"Number of new data collection efforts launched","Number of individual advocacy instances","Number of referrals to other services/supports/resources",null,"Number of child or dependent care assistance (includes coordination of services) instances","Number of instances of counseling or therapeutic services",null,"Number of new social media followers",null,null,null,"Number of hotline/crisis line counseling instances","Number of referrals to other services/supports/resources","Number of employed or contracted case managers or advocates that engaged in continuing education during the reporting period","Number of curriculums created to provide training for victims",null,null,null,"Number of financial assistance to provide housing assistance or security (payment of rent, utilities, repairs)","Number of transitional housing instances","Number of budgeting and financial education support instances","Number of requests for interpretation services unfilled",null,null,"Number of information about the criminal justice process provision instances","Number of civil legal assistance with family law issues (e.g., custody, visitation, or support) instances",null,"Number of instances of victim advocacy/accompaniment to medical forensic exam","Number of individuals served through individual counseling instances"]
["Crisis Intervention and Hotline",null,"Number of technology purchases or system enhancements","Number of individuals served through individual advocacy",null,null,"Number of individuals served through child or dependent care assistance (includes coordination of services)","Number of individuals served through counseling or therapeutic services",null,null,null,null,null,"Number of individuals served through hotline/crisis line","Number of individuals who received referrals to other services/supports/resources","Number of curriculums created to provide training for allied service providers or your own staff",null,null,null,null,null,"Number of individuals served through transitional housing instances","Number of individuals served through budgeting and financial education support instances","Number of individuals served by program staff in a language other than English by program staff",null,null,"Number of individuals served through the provision of information about the criminal justice process","Number of individuals served through civil legal assistance with family law issues (e.g., custody, visitation, or support) instances",null,"Number of individuals served through victim advocacy/accompaniment to emergency medical care","Number of support groups (facilitated or peer) instances"]
["Education and Training",null,"Number of trainings conducted",null,null,null,null,"Number of instances of classes, workshops or other skill building educational activities",null,null,null,null,null,null,null,"Number of staff provided with supervision",null,null,null,null,null,null,"Number of individuals who left shelter for permanent housing","Number of instances of service provision by program staff in a language other than English",null,null,"Number of law enforcement interview advocacy/accompaniments","Number of immigration assistance (e.g., special visas, continued presence application, and other immigration relief) instances",null,null,"Number of individuals served through support groups (facilitated or peer)"]
["Financial Reimbursement or Compensation",null,null,null,null,null,null,"Number of individuals served through classes, workshops or other skill building educational activities",null,null,null,null,null,null,null,"Number of individual supervision instances",null,null,null,null,null,null,null,null,null,null,"Number of individuals served through law enforcement interview advocacy/accompaniment","Number of individuals served through immigration assistance (e.g., special visas, continued presence application, and other immigration relief) instances",null,null,"Number of other therapy (traditional, cultural, or alternative healing; art, writing, or play therapy, etc.)"]
["Housing and Shelter",null,null,null,null,null,null,null,null,null,null,null,null,null,null,null,null,null,null,null,null,null,null,null,null,null,"Number of prosecution interview advocacy/accompaniments (includes accompaniment with prosecuting attorney and with victim/witness)","Number of other legal advice and/or counsel instances",null,null,"Number of individuals served through other therapy  (traditional, cultural, or alternative healing; art, writing, or play therapy, etc.)"]
["Language Access",null,null,null,null,null,null,null,null,null,null,null,null,null,null,null,null,null,null,null,null,null,null,null,null,null,"Number of individuals served through prosecution interview advocacy/accompaniments (includes accompaniment with prosecuting attorney and with victim/witness)","Number of individuals served through other legal advice and/or counsel instances"]
["Legal Services",null,null,null,null,null,null,null,null,null,null,null,null,null,null,null,null,null,null,null,null,null,null,null,null,null,"Number of criminal advocacy/accompaniments"]
["Medical and Forensic Services",null,null,null,null,null,null,null,null,null,null,null,null,null,null,null,null,null,null,null,null,null,null,null,null,null,"Number of individuals served through criminal advocacy/accompaniments"]
["Mental Health Services",null,null,null,null,null,null,null,null,null,null,null,null,null,null,null,null,null,null,null,null,null,null,null,null,null,"Number of victim impact statement assistance instances"]
["Other Strategic Area",null,null,null,null,null,null,null,null,null,null,null,null,null,null,null,null,null,null,null,null,null,null,null,null,null,"Number of individuals who received victim impact statement assistance"]
[null,null,null,null,null,null,null,null,null,null,null,null,null,null,null,null,null,null,null,null,null,null,null,null,null,null,"Number of instances of assistance with restitution (includes assistance in requesting and when collection efforts are not successful)"]
[null,null,null,null,null,null,null,null,null,null,null,null,null,null,null,null,null,null,null,null,null,null,null,null,null,null,"Number of individuals who received assistance with restitution (includes assistance in requesting and when collection efforts are not successful)"]
[null,null,null,null,null,null,null,null,null,null,null,null,null,null,null,null,null,null,null,null,null,null,null,null,null,null,"Number of other emergency justice‐related assistance instances"]
[null,null,null,null,null,null,null,null,null,null,null,null,null,null,null,null,null,null,null,null,null,null,null,null,null,null,"Number of individuals served through other emergency justice‐related assistance instances"]

{"sheet":"1. Demographics","index":3,"n_rows":372,"n_cols":37,"rows_kept":372,"cut":false,"hidden":false,"merged":[[153,15,153,17],[153,24,153,26],[153,21,153,23],[153,18,153,20],[153,27,153,29],[139,15,139,17],[135,18,135,20],[136,18,136,20],[137,18,137,20],[138,18,138,20],[139,18,139,20],[135,21,135,23],[136,21,136,23],[137,21,137,23],[138,21,138,23],[139,21,139,23],[135,24,135,26],[136,24,136,26],[137,24,137,26],[138,24,138,26],[139,24,139,26],[135,27,135,29],[136,27,136,29],[137,27,137,29],[138,27,138,29],[139,27,139,29],[151,15,151,17],[150,15,150,17],[149,15,149,17],[148,15,148,17],[140,27,140,29],[135,15,135,17],[135,1,135,5],[136,1,136,5],[137,1,137,5],[138,1,138,5],[139,1,139,5],[135,7,135,8],[136,7,136,8],[137,7,137,8],[138,7,138,8],[139,7,139,8],[135,9,135,11],[136,9,136,11],[137,9,137,11],[138,9,138,11],[139,9,139,11],[135,12,135,14],[136,12,136,14],[137,12,137,14],[138,12,138,14],[139,12,139,14],[29,1,29,9],[30,2,30,4],[31,2,31,4],[368,0,369,0],[30,5,30,8],[31,5,31,10],[114,24,114,25],[115,24,115,25],[118,21,118,22],[119,21,119,22],[120,21,120,22],[116,24,116,25],[117,24,117,25],[118,24,118,25],[119,24,119,25],[120,24,120,25],[116,27,116,28],[117,27,117,28],[118,27,118,28],[119,27,119,28],[120,27,120,28],[116,1,116,4],[117,1,117,4],[118,1,118,4],[119,1,119,4],[120,1,120,4],[116,5,116,6],[117,5,117,6],[118,5,118,6],[119,5,119,6],[120,5,120,6],[116,9,116,10],[120,9,120,10],[116,12,116,13],[117,12,117,13],[110,18,110,19],[106,21,106,22],[107,21,107,22],[108,21,108,22],[109,21,109,22],[110,21,110,22],[106,24,106,25],[107,24,107,25],[108,24,108,25],[109,24,109,25],[110,24,110,25],[120,12,120,13],[118,12,118,13],[119,12,119,13],[114,9,114,10],[115,9,115,10],[110,27,110,28],[113,24,113,25],[110,1,110,6],[106,9,106,10],[107,9,107,10],[108,9,108,10],[109,9,109,10],[110,9,110,10],[106,12,106,13],[107,12,107,13],[108,12,108,13],[109,12,109,13],[110,12,110,13],[106,15,106,16],[107,15,107,16],[108,15,108,16],[109,15,109,16],[110,15,110,16],[113,9,113,10],[111,18,111,19],[111,21,111,22],[106,18,106,19],[107,18,107,19],[108,18,108,19],[109,18,109,19],[113,1,113,4],[113,5,113,6],[96,1,96,4],[97,1,97,4],[98,1,98,4],[99,1,99,4],[100,1,100,4],[96,5,96,6],[97,5,97,6],[98,5,98,6],[99,5,99,6],[100,5,100,6],[105,18,105,19],[105,21,105,22],[106,27,106,28],[107,27,107,28],[108,27,108,28],[109,27,109,28],[87,27,87,28],[88,27,88,28],[89,27,89,28],[90,27,90,28],[91,27,91,28],[102,1,102,4],[102,5,102,6],[102,9,102,10],[96,9,96,10],[97,9,97,10],[98,9,98,10],[99,9,99,10],[100,9,100,10],[102,15,102,16],[102,12,102,13],[96,12,96,13],[102,18,102,19],[96,21,96,22],[75,27,75,28],[76,27,76,28],[77,27,77,28],[78,27,78,28],[81,21,81,22],[86,12,86,13],[86,21,86,22],[87,24,87,25],[88,24,88,25],[89,24,89,25],[90,24,90,25],[91,24,91,25],[81,24,81,25],[86,15,86,16],[92,15,92,16],[85,18,85,19],[87,21,87,22],[88,21,88,22],[89,21,89,22],[90,21,90,22],[91,21,91,22],[97,12,97,13],[98,12,98,13],[99,12,99,13],[100,12,100,13],[96,15,96,16],[97,15,97,16],[98,15,98,16],[99,15,99,16],[100,15,100,16],[96,18,96,19],[97,18,97,19],[98,18,98,19],[99,18,99,19],[100,18,100,19],[74,18,74,19],[75,18,75,19],[87,1,87,4],[88,1,88,4],[89,1,89,4],[90,1,90,4],[91,1,91,4],[87,5,87,6],[88,5,88,6],[89,5,89,6],[90,5,90,6],[91,5,91,6],[87,9,87,10],[88,9,88,10],[89,9,89,10],[90,9,90,10],[91,9,91,10],[78,1,78,4],[74,5,74,6],[75,5,75,6],[76,5,76,6],[77,5,77,6],[78,5,78,6],[74,9,74,10],[75,9,75,10],[76,9,76,10],[77,9,77,10],[78,9,78,10],[74,12,74,13],[75,12,75,13],[76,12,76,13],[77,12,77,13],[78,12,78,13],[74,15,74,16],[75,15,75,16],[76,15,76,16],[77,15,77,16],[78,15,78,16],[66,9,66,10],[67,9,67,10],[63,12,63,13],[64,12,64,13],[65,12,65,13],[66,12,66,13],[67,12,67,13],[63,15,63,16],[64,15,64,16],[65,15,65,16],[66,15,66,16],[67,15,67,16],[70,12,70,13],[68,15,68,16],[69,15,69,16],[70,15,70,16],[63,27,63,28],[64,27,64,28],[65,27,65,28],[66,27,66,28],[67,27,67,28],[58,12,58,13],[54,15,54,16],[55,15,55,16],[56,15,56,16],[57,15,57,16],[58,15,58,16],[54,18,54,19],[55,18,55,19],[56,18,56,19],[57,18,57,19],[58,18,58,19],[56,27,56,28],[57,27,57,28],[58,27,58,28],[57,24,57,25],[58,24,58,25],[54,27,54,28],[55,27,55,28],[61,27,61,28],[61,15,61,16],[62,15,62,16],[61,18,61,19],[62,18,62,19],[61,12,61,13],[62,27,62,28],[64,1,64,4],[65,1,65,4],[63,5,63,6],[64,5,64,6],[65,5,65,6],[63,9,63,10],[64,9,64,10],[65,9,65,10],[24,12,25,14],[24,18,25,20],[24,15,25,17],[24,21,25,23],[24,24,25,26],[24,9,25,11],[24,27,25,29],[112,1,112,6],[27,1,27,8],[46,15,46,16],[43,18,43,19],[44,18,44,19],[45,18,45,19],[46,18,46,19],[43,21,43,22],[44,21,44,22],[45,21,45,22],[46,21,46,22],[43,24,43,25],[44,24,44,25],[45,24,45,25],[46,24,46,25],[37,7,37,8],[63,18,63,19],[114,1,114,4],[114,5,114,6],[115,1,115,4],[115,5,115,6],[121,1,121,4],[121,5,121,6],[368,1,369,30],[326,7,327,8],[43,1,43,4],[44,1,44,4],[45,1,45,4],[46,1,46,4],[47,1,47,4],[43,9,43,10],[44,9,44,10],[45,9,45,10],[46,9,46,10],[43,12,43,13],[44,12,44,13],[45,12,45,13],[46,12,46,13],[43,15,43,16],[298,1,298,29],[308,1,311,29],[307,1,307,29],[334,1,335,16],[336,1,336,14],[336,16,336,30],[319,7,319,8],[320,7,321,8],[44,15,44,16],[45,15,45,16],[370,1,370,14],[370,16,370,30],[371,1,383,14],[371,16,383,30],[221,1,221,3],[221,4,221,6],[222,1,222,3],[222,4,222,6],[223,1,223,3],[223,4,223,6],[224,1,224,3],[224,4,224,6],[225,1,225,3],[225,4,225,6],[325,1,327,6],[325,7,325,8],[329,1,331,6],[329,7,329,8],[330,7,331,8],[323,11,323,14],[351,1,352,30],[353,1,353,14],[353,16,353,30],[304,1,306,6],[315,1,317,6],[319,1,321,6],[299,1,302,29],[315,24,315,26],[315,27,315,29],[316,9,317,11],[316,12,317,14],[316,15,317,17],[313,11,313,14],[315,7,315,8],[316,7,317,8],[315,9,315,11],[315,12,315,14],[315,15,315,17],[315,18,315,20],[315,21,315,23],[316,18,317,20],[316,21,317,23],[316,24,317,26],[316,27,317,29],[304,7,304,8],[305,7,306,8],[289,1,289,6],[290,1,290,6],[291,1,291,6],[292,1,292,6],[293,1,293,6],[294,1,294,6],[295,1,295,6],[296,1,296,6],[305,9,306,11],[305,12,306,14],[305,15,306,17],[305,18,306,20],[305,21,306,23],[305,24,306,26],[305,27,306,29],[293,15,293,16],[297,1,297,6],[304,21,304,23],[304,24,304,26],[304,27,304,29],[296,9,296,10],[295,9,295,10],[294,9,294,10],[293,9,293,10],[292,9,292,10],[291,9,291,10],[188,4,188,6],[183,4,183,6],[280,1,280,6],[281,1,281,6],[244,1,244,6],[246,1,246,6],[247,1,247,6],[245,1,245,6],[252,1,252,6],[254,1,254,6],[255,1,255,6],[256,1,256,6],[227,4,227,6],[228,4,228,6],[229,4,229,6],[230,4,230,6],[231,4,231,6],[204,1,204,6],[203,1,203,6],[201,1,201,6],[199,1,199,6],[265,1,265,6],[248,1,248,6],[253,1,253,6],[267,1,267,6],[278,1,278,6],[249,1,249,6],[251,1,251,6],[233,1,233,6],[234,1,234,6],[200,1,200,6],[232,1,232,6],[257,1,257,6],[258,1,258,6],[259,1,259,6],[260,1,260,6],[261,1,261,6],[262,1,262,6],[263,1,263,6],[271,1,271,6],[272,1,272,6],[273,1,273,6],[274,1,274,6],[266,1,266,6],[268,1,268,6],[269,1,269,6],[270,1,270,6],[276,1,276,6],[277,1,277,6],[228,1,228,3],[229,1,229,3],[216,1,216,6],[217,1,217,6],[288,1,288,6],[287,1,287,6],[286,1,286,6],[284,7,284,8],[284,1,284,6],[277,7,277,8],[283,7,283,8],[283,10,283,11],[283,13,283,14],[283,16,283,17],[283,19,283,20],[283,22,283,23],[283,25,283,26],[283,28,283,29],[283,1,283,6],[277,9,277,11],[277,12,277,14],[277,15,277,17],[277,18,277,20],[277,21,277,23],[277,24,277,26],[280,27,280,28],[281,27,281,28],[286,18,286,19],[287,18,287,19],[288,18,288,19],[286,24,286,25],[287,24,287,25],[288,24,288,25],[285,1,285,6],[279,1,279,6],[279,27,279,28],[252,7,252,8],[244,7,244,8],[251,7,251,8],[251,10,251,11],[251,13,251,14],[251,16,251,17],[251,19,251,20],[251,22,251,23],[251,25,251,26],[251,28,251,29],[248,9,248,10],[247,9,247,10],[246,9,246,10],[252,27,252,29],[252,24,252,26],[252,21,252,23],[252,18,252,20],[252,15,252,17],[244,27,244,29],[244,24,244,26],[244,21,244,23],[244,18,244,20],[244,15,244,17],[244,12,244,14],[244,9,244,11],[249,27,249,28],[248,27,248,28],[247,27,247,28],[246,27,246,28],[249,24,249,25],[248,24,248,25],[247,24,247,25],[187,4,187,6],[188,1,188,3],[276,7,276,8],[276,10,276,11],[276,13,276,14],[276,16,276,17],[276,19,276,20],[276,22,276,23],[276,25,276,26],[276,28,276,29],[266,7,266,8],[265,7,265,8],[265,10,265,11],[265,13,265,14],[265,16,265,17],[265,19,265,20],[265,22,265,23],[265,25,265,26],[265,28,265,29],[271,18,271,19],[272,18,272,19],[273,18,273,19],[274,18,274,19],[268,21,268,22],[269,21,269,22],[270,21,270,22],[271,21,271,22],[268,18,268,19],[269,18,269,19],[270,18,270,19],[272,21,272,22],[273,21,273,22],[206,27,206,29],[205,27,205,29],[219,7,219,8],[208,1,210,6],[205,7,205,8],[206,7,206,8],[209,7,210,8],[208,7,208,8],[237,1,239,6],[219,1,219,6],[220,1,220,6],[215,7,215,8],[216,7,216,8],[243,7,243,8],[243,10,243,11],[243,1,243,6],[2,36,18,43],[242,7,242,8],[241,1,241,29],[237,7,237,8],[238,7,239,8],[131,1,131,5],[130,1,130,5],[129,1,129,5],[123,1,123,6],[184,4,184,6],[184,1,184,3],[185,1,185,3],[185,4,185,6],[186,1,186,3],[186,4,186,6],[187,1,187,3],[214,18,214,20],[214,21,214,23],[214,24,214,26],[214,27,214,29],[208,9,208,11],[208,12,208,14],[208,15,208,17],[208,18,208,20],[208,21,208,23],[208,24,208,26],[208,27,208,29],[209,27,210,29],[209,24,210,26],[209,21,210,23],[209,18,210,20],[209,15,210,17],[209,12,210,14],[209,9,210,11],[200,18,200,20],[194,15,194,17],[193,15,193,17],[192,15,192,17],[191,15,191,17],[190,15,190,17],[189,15,189,17],[204,9,204,10],[203,9,203,10],[202,9,202,10],[202,12,202,13],[203,12,203,13],[204,12,204,13],[202,15,202,16],[203,15,203,16],[204,15,204,16],[202,18,202,19],[197,12,197,14],[16,7,16,8],[17,7,18,8],[13,21,14,23],[13,24,14,26],[13,27,14,29],[10,1,12,6],[16,1,18,6],[21,1,23,6],[11,7,12,8],[22,7,23,8],[13,3,14,6],[13,7,14,8],[10,7,10,8],[13,9,14,11],[13,12,14,14],[13,15,14,17],[13,18,14,20],[10,9,10,11],[11,9,12,11],[11,12,12,14],[11,15,12,17],[11,18,12,20],[11,21,12,23],[11,24,12,26],[11,27,12,29],[10,12,10,14],[10,15,10,17],[10,18,10,20],[10,21,10,23],[10,24,10,26],[10,27,10,29],[16,9,16,11],[131,7,131,8],[132,7,132,8],[54,1,54,4],[55,1,55,4],[56,1,56,4],[57,1,57,4],[58,1,58,4],[43,5,43,6],[44,5,44,6],[45,5,45,6],[46,5,46,6],[47,5,47,6],[54,5,54,6],[55,5,55,6],[56,5,56,6],[57,5,57,6],[58,5,58,6],[106,1,106,6],[107,1,107,6],[108,1,108,6],[109,1,109,6],[125,1,125,28],[51,12,51,13],[50,24,50,25],[51,24,51,25],[51,21,51,22],[52,21,52,22],[53,21,53,22],[59,21,59,22],[48,21,48,22],[56,21,56,22],[54,9,54,10],[0,20,0,29],[1,23,1,29],[4,26,4,29],[164,1,164,3],[164,7,164,8],[33,1,34,17],[72,1,72,4],[80,1,80,4],[6,26,6,29],[4,23,4,25],[6,23,6,25],[4,2,7,20],[9,2,9,20],[122,1,122,6],[53,1,53,4],[59,1,59,4],[61,1,61,4],[69,1,69,4],[146,7,146,8],[21,7,21,8],[24,7,25,8],[24,3,25,6],[105,1,105,6],[111,1,111,6],[94,1,94,4],[103,1,103,4],[103,5,103,6],[86,5,86,6],[82,1,82,6],[93,1,93,6],[92,5,92,6],[94,5,94,6],[160,7,160,17],[194,1,194,6],[195,1,195,6],[196,1,196,6],[132,1,132,5],[149,7,149,8],[147,7,147,8],[148,7,148,8],[83,5,83,6],[81,1,81,4],[141,1,141,5],[142,1,142,5],[197,1,197,6],[169,19,169,29],[198,12,198,14],[199,12,199,14],[200,12,200,14],[200,15,200,17],[199,15,199,17],[198,15,198,17],[197,15,197,17],[196,15,196,17],[189,18,189,20],[190,18,190,20],[191,18,191,20],[192,18,192,20],[193,18,193,20],[194,18,194,20],[195,18,195,20],[198,1,198,6],[198,7,198,8],[199,7,199,8],[200,7,200,8],[191,7,191,8],[192,7,192,8],[193,7,193,8],[194,7,194,8],[195,7,195,8],[196,7,196,8],[197,7,197,8],[194,12,194,14],[195,12,195,14],[196,12,196,14],[227,1,227,3],[217,7,217,8],[218,7,218,8],[213,1,214,6],[225,9,225,10],[224,9,224,10],[223,9,223,10],[222,9,222,10],[221,9,221,10],[221,12,221,13],[154,7,154,8],[157,7,157,8],[189,7,189,8],[190,7,190,8],[205,1,205,6],[218,1,218,6],[134,1,134,5],[140,1,140,5],[133,1,133,5],[126,19,126,29],[127,7,127,8],[126,7,126,16],[134,7,134,8],[140,7,140,8],[128,1,128,5],[42,1,42,4],[81,5,81,6],[130,7,130,8],[53,5,53,6],[86,1,86,4],[92,1,92,4],[128,7,128,8],[129,7,129,8],[84,5,84,6],[72,5,72,6],[80,5,80,6],[83,1,83,4],[126,1,127,6],[47,9,47,10],[47,12,47,13],[47,18,47,19],[47,21,47,22],[36,1,37,6],[38,1,38,6],[49,1,49,6],[60,1,60,6],[71,1,71,6],[149,1,149,3],[170,7,170,8],[169,1,170,6],[226,1,226,6],[182,1,182,6],[162,1,162,3],[162,7,162,8],[163,1,163,3],[163,7,163,8],[178,1,178,6],[179,1,179,6],[174,1,174,6],[175,1,175,6],[176,1,176,6],[177,1,177,6],[182,7,182,8],[206,1,206,6],[166,1,167,29],[150,1,150,3],[157,1,157,3],[154,1,154,3],[152,1,152,3],[151,1,151,3],[160,1,161,6],[151,7,151,8],[152,7,152,8],[104,1,104,6],[85,5,85,6],[95,1,95,4],[101,1,101,4],[95,5,95,6],[101,5,101,6],[68,1,68,4],[68,5,68,6],[73,1,73,4],[79,1,79,4],[73,5,73,6],[79,5,79,6],[84,1,84,4],[85,1,85,4],[39,5,39,6],[42,5,42,6],[48,5,48,6],[50,5,50,6],[59,5,59,6],[61,5,61,6],[69,5,69,6],[70,5,70,6],[39,1,39,4],[70,1,70,4],[66,1,66,4],[67,1,67,4],[66,5,66,6],[67,5,67,6],[74,1,74,4],[75,1,75,4],[76,1,76,4],[77,1,77,4],[63,1,63,4],[150,7,150,8],[235,1,235,6],[170,27,170,29],[214,9,214,11],[214,12,214,14],[214,15,214,17],[171,1,171,6],[337,1,349,14],[337,16,349,30],[354,1,366,14],[354,16,366,30],[40,1,40,4],[41,1,41,4],[40,5,40,6],[41,5,41,6],[51,1,51,4],[52,1,52,4],[51,5,51,6],[52,5,52,6],[62,1,62,4],[62,5,62,6],[48,1,48,4],[50,1,50,4],[213,19,213,29],[213,7,213,17],[168,1,168,29],[202,1,202,6],[141,7,141,8],[142,7,142,8],[133,7,133,8],[169,7,169,17],[145,1,146,6],[161,7,161,8],[155,7,155,8],[156,7,156,8],[145,7,145,17],[145,19,145,29],[159,1,159,25],[147,21,147,23],[148,21,148,23],[149,21,149,23],[150,21,150,23],[177,7,177,8],[178,7,178,8],[179,7,179,8],[180,7,180,8],[181,7,181,8],[172,1,172,6],[173,1,173,6],[180,1,180,6],[181,1,181,6],[171,7,171,8],[172,7,172,8],[173,7,173,8],[174,7,174,8],[175,7,175,8],[176,7,176,8],[148,1,148,3],[147,1,147,3],[157,15,157,17],[156,15,156,17],[155,15,155,17],[154,15,154,17],[152,15,152,17],[39,18,39,19],[47,15,47,16],[16,12,16,14],[16,15,16,17],[16,18,16,20],[16,21,16,23],[16,24,16,26],[16,27,16,29],[21,21,21,23],[21,24,21,26],[21,27,21,29],[22,9,23,11],[22,12,23,14],[22,15,23,17],[22,18,23,20],[22,21,23,23],[22,24,23,26],[22,27,23,29],[17,9,18,11],[17,12,18,14],[17,15,18,17],[17,18,18,20],[17,21,18,23],[17,24,18,26],[17,27,18,29],[21,9,21,11],[21,12,21,14],[21,15,21,17],[21,18,21,20],[35,1,35,29],[36,7,36,17],[36,19,36,29],[39,21,39,22],[39,24,39,25],[40,24,40,25],[41,24,41,25],[42,24,42,25],[48,24,48,25],[39,27,39,28],[40,27,40,28],[41,27,41,28],[42,27,42,28],[48,27,48,28],[47,27,47,28],[54,21,54,22],[55,21,55,22],[39,9,39,10],[40,9,40,10],[41,9,41,10],[42,9,42,10],[48,9,48,10],[48,12,48,13],[42,12,42,13],[41,12,41,13],[40,12,40,13]],"merged_total":2102,"flags":["merged_cut"]}
[null,null,null,null,null,null,null,null,null,null,null,null,null,null,null,null,null,null,null,null,"Outcome Measurement Tool (OMT)\nMA - Victim Witness Assistance Board\n\nNeed Support? Contact TTACEval@icf.com or call toll-free 703-251-0368.\n"]
[null,null,null,null,null,"POPULATION DEMOGRAPHICS AND DIRECT SERVICES",null,null,null,null,null,null,null,null,null,null,null,null,null,null,null,null,null,"(#1) DATA ENTRY TAB",null,null,null,null,null,null,null,null,null,null,null,null,"NOTES:"]
[]
[]
[null,null,"INSTRUCTIONS: This section should be completed each reporting period. Use the areas in beige to enter the specified information. Once you have specified the race/ethnicity fields that align with your reporting structure, they will remain in your workbook for subsequent reporting periods. As you enter the number of individuals by demographic category, the cells totaling the data will begin to population and auto-generate the PMT Summary tab/worksheet. Selecting additional categories beyond those labeled as \"general\" is not required. \n\nDo NOT edit previous reporting periods without speaking with your Grant Manager first.",null,null,null,null,null,null,null,null,null,null,null,null,null,null,null,null,null,null,null,null,"Completion Status:",null,null,"Enter Status"]
[]
[null,null,null,null,null,null,null,null,null,null,null,null,null,null,null,null,null,null,null,null,null,null,null,"Reporting Period:",null,null,"Period 2 (January – March 2021)"]
[]
[]
[null,null,"KEY DEFINITIONS: \n\nCount each NEW individual in only one race/ethnicity type as self-reported. Individuals who self-report in more than one category should be counted in the \"Multiple Races\" category. The total number in each demographic category should equal the number of NEW individuals reported in Section 3. This data is used for statistical purposes to comply with Federal regulations.\n\nAll \"0\" entries must represent a true value of zero.\n\nIf no data is collected for a category, select \"Not Tracked\" from the list of options in the associated race/ethnicity category. This means that as a subgrantee, you are not able to submit data in this category due to the need to update this in your data tracking system, but that efforts are underway to track data as requested. Report in the \"Not Tracked\" section the number of individuals whose demographic data were not tracked.\n\nIf no data is collected for an individual, count that individual in the Not Reported category. This means that this data is collected by your organization, but it was not provided by the person completing the intake form.\n\nIf you select \"Other\" from the dropdown options, enter an explanation next to your response or this will be marked as missing data in the system."]
[null,"SECTION 1: TOTAL number of individuals who received services during the reporting period:",null,null,null,null,null,"Reporting Period 1",null,"Reporting Period 2",null,null,"Reporting Period 3",null,null,"Reporting Period 4",null,null,"Reporting Period 5",null,null,"Reporting Period 6",null,null,"Reporting Period 7",null,null,"Reporting Period 8"]
[]
[]
[null,null,null,"Validation check with types of victimization section below. Totals under Section 5 should equal question 1 total.",null,null,null,{"$f":"SUM(H172:I183,I184,H190:I201,I202,H206:H207)-H12","v":0},null,{"$f":"SUM(J172:L183,L184,J190:L201,L202,J206:L207)-J12","v":0},null,null,{"$f":"SUM(M172:O183,O184,M190:O201,O202,M206:O207)-M12","v":0},null,null,{"$f":"SUM(P172:R183,R184,P190:R201,R202,P206:R207)-P12","v":0},null,null,{"$f":"SUM(S172:U183,U184,S190:U201,U202,S206:U207)-S12","v":0},null,null,{"$f":"SUM(V172:X183,X184,V190:X201,X202,V206:X207)-V12","v":0},null,null,{"$f":"SUM(Y172:AA183,AA184,Y190:AA201,AA202,Y206:AA207)-Y12","v":0},null,null,{"$f":"SUM(AB172:AD183,AD184,AB190:AD201,AD202,AB206:AD207)-AB12","v":0}]
[]
[]
[null,"SECTION 2: TOTAL number of anonymous contacts received during the reporting period: ",null,null,null,null,null,"Reporting Period 1",null,"Reporting Period 2",null,null,"Reporting Period 3",null,null,"Reporting Period 4",null,null,"Reporting Period 5",null,null,"Reporting Period 6",null,null,"Reporting Period 7",null,null,"Reporting Period 8"]
[]
[]
[]
[]
[null,"SECTION 3: Of the number of individuals entered in question 1, how many were NEW individuals who received services from your agency for the first time during the reporting period: ",null,null,null,null,null,"Reporting Period 1",null,"Reporting Period 2",null,null,"Reporting Period 3",null,null,"Reporting Period 4",null,null,"Reporting Period 5",null,null,"Reporting Period 6",null,null,"Reporting Period 7",null,null,"Reporting Period 8"]
[]
[]
[null,null,null,"Validation check against race/ethnicity below. Totals under Section 4A should equal question 3 total.",null,null,null,{"$f":"SUM(I39,I50,I61,I72,I83,I94,I105,I113,H123,H124)-H23","v":0},null,{"$f":"SUM(L39,L50,L61,L72,L83,L94,L105,L113,J123,J124)-J23","v":0},null,null,{"$f":"SUM(O39,O50,O61,O72,O83,O94,O105,O113,M123,M124)-M23","v":0},null,null,{"$f":"SUM(R39,R50,R61,R72,R83,R94,R105,R113,P123,P124)-P23","v":0},null,null,{"$f":"SUM(U39,U50,U61,U72,U83,U94,U105,U113,S123,S124)-S23","v":0},null,null,{"$f":"SUM(X39,X50,X61,X72,X83,X94,X105,X113,V123,V124)-V23","v":0},null,null,{"$f":"SUM(AA39,AA50,AA61,AA72,AA83,AA94,AA105,AA113,Y123,Y124)-Y23","v":0},null,null,{"$f":"SUM(AD39,AD50,AD61,AD72,AD83,AD94,AD105,AD113,AB123,AB124)-AB23","v":0}]
[]
[]
[null,"Is your agency able to track individuals throughout the Fiscal Year?",null,null,null,null,null,null,null,null,"Select one."]
[]
[null,"Each section below is designated with \"Mandatory (M)\" and \"Optional (O)\" in Column A that mirrors the OMT Guidebook for Programs:"]
[null,"M","Mandatory measures",null,null,"(e.g., main race/ethnicity categories)"]
[null,"O","Optional reporting",null,null,"(e.g., sub-categories under each racial/ethnic group)"]
[]
[null,"SECTION 4: Demographics\nEnter the totals for NEW individuals identified in Question 3 by the following demographic descriptors. "]
[]
[null,"A. Race/Ethnicity (Self-Reported) - NEW individuals"]
[null,"Population",null,null,null,null,null,"Number of NEW Individuals - Year 1",null,null,null,null,null,null,null,null,null,null,null,"Number of NEW Individuals - Year 2"]
[null,null,null,null,null,null,null,"Reporting Period 1",null,"Reporting Period 2",null,null,"Reporting Period 3",null,null,"Reporting Period 4",null,null,"Reporting Period 5",null,null,"Reporting Period 6",null,null,"Reporting Period 7",null,null,"Reporting Period 8"]
["M","American Indian or Alaska Native Total",null,null,null,null,null,null,{"$f":"SUM(H40:H49)","v":0},null,null,{"$f":"SUM(J40:K49)","v":0},null,null,{"$f":"SUM(M40:N49)","v":0},null,null,{"$f":"SUM(P40:Q49)","v":0},null,null,{"$f":"SUM(S40:T49)","v":0},null,null,{"$f":"SUM(V40:W49)","v":0},null,null,{"$f":"SUM(Y40:Z49)","v":0},null,null,{"$f":"SUM(AB40:AC49)","v":0}]
[null,"American Indian/Alaska Native (general)"]
[null,"Select from Options"]
[null,"Select from Options"]
[null,"Select from Options"]
[null,"Select from Options"]
[null,"Select from Options"]
[null,"Select from Options"]
[null,"Select from Options"]
[null,"Select from Options"]
[null,"Select from Options"]
["M","Asian Total",null,null,null,null,null,null,{"$f":"SUM(H51:H60)","v":0},null,null,{"$f":"SUM(J51:K60)","v":0},null,null,{"$f":"SUM(M51:N60)","v":0},null,null,{"$f":"SUM(P51:Q60)","v":0},null,null,{"$f":"SUM(S51:T60)","v":0},null,null,{"$f":"SUM(V51:W60)","v":0},null,null,{"$f":"SUM(Y51:Z60)","v":0},null,null,{"$f":"SUM(AB51:AC60)","v":0}]
[null,"Asian (general)"]
[null,"Select from Options"]
[null,"Select from Options"]
[null,"Select from Options"]
[null,"Select from Options"]
[null,"Select from Options"]
[null,"Select from Options"]
[null,"Select from Options"]
[null,"Select from Options"]
[null,"Select from Options"]
["M","Black or African American Total",null,null,null,null,null,null,{"$f":"SUM(H62:H71)","v":0},null,null,{"$f":"SUM(J62:K71)","v":0},null,null,{"$f":"SUM(M62:N71)","v":0},null,null,{"$f":"SUM(P62:Q71)","v":0},null,null,{"$f":"SUM(S62:T71)","v":0},null,null,{"$f":"SUM(V62:W71)","v":0},null,null,{"$f":"SUM(Y62:Z71)","v":0},null,null,{"$f":"SUM(AB62:AC71)","v":0}]
[null,"Black/African America (general)"]
[null,"Select from Options"]
[null,"Select from Options"]
[null,"Select from Options"]
[null,"Select from Options"]
[null,"Select from Options"]
[null,"Select from Options"]
[null,"Select from Options"]
[null,"Select from Options"]
[null,"Select from Options"]
["M","Hispanic or Latino Total",null,null,null,null,null,null,{"$f":"SUM(H73:H82)","v":0},null,null,{"$f":"SUM(J73:K82)","v":0},null,null,{"$f":"SUM(M73:N82)","v":0},null,null,{"$f":"SUM(P73:Q82)","v":0},null,null,{"$f":"SUM(S73:T82)","v":0},null,null,{"$f":"SUM(V73:W82)","v":0},null,null,{"$f":"SUM(Y73:Z82)","v":0},null,null,{"$f":"SUM(AB73:AC82)","v":0}]
[null,"Hispanic/Latino (general)"]
[null,"Select from Options"]
[null,"Select from Options"]
[null,"Select from Options"]
[null,"Select from Options"]
[null,"Select from Options"]
[null,"Select from Options"]
[null,"Select from Options"]
[null,"Select from Options"]
[null,"Select from Options"]
["M","Native Hawaiian or Pacific Islander Total",null,null,null,null,null,null,{"$f":"SUM(H84:H93)","v":0},null,null,{"$f":"SUM(J84:K93)","v":0},null,null,{"$f":"SUM(M84:N93)","v":0},null,null,{"$f":"SUM(P84:Q93)","v":0},null,null,{"$f":"SUM(S84:T93)","v":0},null,null,{"$f":"SUM(V84:W93)","v":0},null,null,{"$f":"SUM(Y84:Z93)","v":0},null,null,{"$f":"SUM(AB84:AC93)","v":0}]
[null,"Native Hawaiian/Pacific Islander (general)"]
[null,"Select from Options"]
[null,"Select from Options"]
[null,"Select from Options"]
[null,"Select from Options"]
[null,"Select from Options"]
[null,"Select from Options"]
[null,"Select from Options"]
[null,"Select from Options"]
[null,"Select from Options"]
["M","White Non-Latino or Caucasian Total",null,null,null,null,null,null,{"$f":"SUM(H95:H104)","v":0},null,null,{"$f":"SUM(J95:K104)","v":0},null,null,{"$f":"SUM(M95:N104)","v":0},null,null,{"$f":"SUM(P95:Q104)","v":0},null,null,{"$f":"SUM(S95:T104)","v":0},null,null,{"$f":"SUM(V95:W104)","v":0},null,null,{"$f":"SUM(Y95:Z104)","v":0},null,null,{"$f":"SUM(AB95:AC104)","v":0}]
[null,"White Non-Latino/Caucasian (general)"]
[null,"Select from Options"]
[null,"Select from Options"]
[null,"Select from Options"]
[null,"Select from Options"]
[null,"Select from Options"]
[null,"Select from Options"]
[null,"Select from Options"]
[null,"Select from Options"]
[null,"Select from Options"]
[null,"Some Other Race/Ethnicity (please specify below):",null,null,null,null,null,null,{"$f":"SUM(H106:H112)","v":0},null,null,{"$f":"SUM(J106:K112)","v":0},null,null,{"$f":"SUM(M106:N112)","v":0},null,null,{"$f":"SUM(P106:Q112)","v":0},null,null,{"$f":"SUM(S106:T112)","v":0},null,null,{"$f":"SUM(V106:W112)","v":0},null,null,{"$f":"SUM(Y106:Z112)","v":0},null,null,{"$f":"SUM(AB106:AC112)","v":0}]
[]
[]
[]
[]
[]
[]
[]
["M","Multiple Races",null,null,null,null,null,null,{"$f":"SUM(H114:H122)","v":0},null,null,{"$f":"SUM(J114:K122)","v":0},null,null,{"$f":"SUM(M114:N122)","v":0},null,null,{"$f":"SUM(P114:Q122)","v":0},null,null,{"$f":"SUM(S114:T122)","v":0},null,null,{"$f":"SUM(V114:W122)","v":0},null,null,{"$f":"SUM(Y114:Z122)","v":0},null,null,{"$f":"SUM(AB114:AC122)","v":0}]
[null,"Multiple Races (general)"]
[null,"Select from Options"]
[null,"Select from Options"]
[null,"Select from Options"]
[null,"Select from Options"]
[null,"Select from Options"]
[null,"Select from Options"]
[null,"Select from Options"]
[null,"Select from Options"]
["M","Individuals Not Reported"]
["M","Individuals Not Tracked"]
[]
[null,"B. Gender Identity (Self-Reported) - NEW individuals"]
[null,"Population",null,null,null,null,null,"Number of New Individuals - Year 1",null,null,null,null,null,null,null,null,null,null,null,"Number of New Individuals - Year 2"]
[null,null,null,null,null,null,null,"Reporting Period 1",null,"Reporting Period 2",null,null,"Reporting Period 3",null,null,"Reporting Period 4",null,null,"Reporting Period 5",null,null,"Reporting Period 6",null,null,"Reporting Period 7",null,null,"Reporting Period 8"]
["M","Male"]
["M","Female"]
["O","Transgender Male"]
["O","Transgender Female"]
["O","Genderqueer/Non-Conforming/Non-Binary"]
["M","Other Gender (please specify below):"]
[]
[]
[]
[]
[]
[]
[]
["M","Not Reported"]
["M","Not Tracked"]
[]
["M","C. Age (Self-Reported) - NEW individuals. Report the age of the victim at the time of the victimization."]
[null,"Population",null,null,null,null,null,"Number of New Individuals - Year 1",null,null,null,null,null,null,null,null,null,null,null,"Number of New Individuals - Year 2"]
[null,null,null,null,null,null,null,"Reporting Period 1",null,"Reporting Period 2",null,null,"Reporting Period 3",null,null,"Reporting Period 4",null,null,"Reporting Period 5",null,null,"Reporting Period 6",null,null,"Reporting Period 7",null,null,"Reporting Period 8"]
[null,"Age 0-12"]
[null,"Age 13-17"]
[null,"Age 18-24"]
[null,"Age 25-59"]
["O","      Optional: Age 31-34"]
["O","      Optional: Age 35-59"]
[null,"Age 60 and Older"]
["O","      Optional: Age 60-65"]
["O","      Optional: Age 66 and Older"]
[null,"Not Reported"]
[null,"Not Tracked"]
[]
["O","D. Geographic Region (Self-Reported) - NEW individuals living in the following areas"]
[null,"Population",null,null,null,null,null,"Number of New Individuals - Year 1",null,null,null,null,null,null,null,null,null,null,null,"Number of New Individuals - Year 2"]
[null,null,null,null,null,null,null,"Reporting Period 1",null,"Reporting Period 2",null,null,"Reporting Period 3",null,null,"Reporting Period 4",null,null,"Reporting Period 5",null,null,"Reporting Period 6",null,null,"Reporting Period 7",null,null,"Reporting Period 8"]
[null,"Urban Area (50,000 or more)"]
[null,"Suburban Area (2,500-49,000)"]
[null,"Rural Area (less than 2,500)"]
[]
[null,"SECTION 5: Types of Victimization\nEnter the totals for the specified reporting period for ALL individuals identified in Question 1 and 2. An individual MAY be counted in more than one victimization type. An individual MAY NOT be counted more than once within the same victimization type."]
[]
["M","A. Number of Individuals who Received Services Based on a Presenting Victimization During the Reporting Period - ALL individuals"]
[null,"Victimization Type",null,null,null,null,null,"Number of Individuals - Year 1",null,null,null,null,null,null,null,null,null,null,null,"Number of Individuals - Year 2"]
[null,null,null,null,null,null,null,"Reporting Period 1",null,"Reporting Period 2",null,null,"Reporting Period 3",null,null,"Reporting Period 4",null,null,"Reporting Period 5",null,null,"Reporting Period 6",null,null,"Reporting Period 7",null,null,"Reporting Period 8"]
[null,"Adult Physical Assault (Includes Aggravated and Simple Assault)"]
[null,"Adult Sexual Assault"]
[null,"Adults Sexually Abused/Assaulted as Children"]
[null,"Arson"]
[null,"Bullying (Verbal, Cyber, or Physical) "]
[null,"Burglary"]
[null,"Child Physical Abuse or Neglect"]
[null,"Child Pornography"]
[null,"Child Sexual Abuse/Assault"]
[null,"Domestic and/or Family Violence"]
[null,"DUI/DWI Incidents"]
[null,"Elder Abuse or Neglect"]
[null,"Hate Crime ",null,null,"Explanation Required Below:",null,null,null,{"$f":"SUM(H185:H189)","v":0},null,null,{"$f":"SUM(J185:K189)","v":0},null,null,{"$f":"SUM(M185:N189)","v":0},null,null,{"$f":"SUM(P185:Q189)","v":0},null,null,{"$f":"SUM(S185:T189)","v":0},null,null,{"$f":"SUM(V185:W189)","v":0},null,null,{"$f":"SUM(Y185:Z189)","v":0},null,null,{"$f":"SUM(AB185:AC189)","v":0}]
[null,"Hate Crime: Racial"]
[null,"Hate Crime: Religious"]
[null,"Hate Crime: Gender"]
[null,"Hate Crime: Sexual Orientation"]
[null,"Hate Crime: Other"]
[null,"Human Trafficking: Labor"]
[null,"Human Trafficking: Sex"]
[null,"Identity Theft/Fraud/Financial Crime"]
[null,"Kidnapping (non-custodial)"]
[null,"Kidnapping (custodial)"]
[null,"Mass Violence (Domestic/International)"]
[null,"Other Vehicular Victimization (e.g., Hit and Run) "]
[null,"Robbery"]
[null,"Stalking/Harassment"]
[null,"Survivors of Homicide Victims "]
[null,"Teen Dating Victimization"]
[null,"Terrorism (Domestic/International)"]
[null,"Other Victimization (please specify below):",null,null,null,null,null,null,{"$f":"SUM(H203:H205)","v":0},null,null,{"$f":"SUM(J203:K205)","v":0},null,null,{"$f":"SUM(M203:N205)","v":0},null,null,{"$f":"SUM(P203:Q205)","v":0},null,null,{"$f":"SUM(S203:T205)","v":0},null,null,{"$f":"SUM(V203:W205)","v":0},null,null,{"$f":"SUM(Y203:Z205)","v":0},null,null,{"$f":"SUM(AB203:AC205)","v":0}]
[]
[]
[]
[null,"Not Reported"]
[null,"Not Tracked"]
[]
[null,"B. Of the individuals who received services, how many presented with more than one type of victimization during the reporting period?",null,null,null,null,null,"Reporting Period 1",null,"Reporting Period 2",null,null,"Reporting Period 3",null,null,"Reporting Period 4",null,null,"Reporting Period 5",null,null,"Reporting Period 6",null,null,"Reporting Period 7",null,null,"Reporting Period 8"]
["M"]
[]
[]
["M","C. Special Classification or Individuals (Self-Reported) - ALL individuals"]
[null,"Special Classification Type",null,null,null,null,null,"Number of Individuals - Year 1",null,null,null,null,null,null,null,null,null,null,null,"Number of Individuals - Year 2"]
[null,null,null,null,null,null,null,"Reporting Period 1",null,"Reporting Period 2",null,null,"Reporting Period 3",null,null,"Reporting Period 4",null,null,"Reporting Period 5",null,null,"Reporting Period 6",null,null,"Reporting Period 7",null,null,"Reporting Period 8"]
[null,"Deaf/Hard of Hearing"]
[null,"Homeless"]
[null,"Immigrants/Refugees/Asylum Seekers"]
[null,"LGBTQ"]
[null,"Veterans"]
[null,"Victims with Disabilities: Cognitive/Physical/Mental",null,null,null,null,null,null,{"$f":"SUM(H222:H226)","v":0},null,null,{"$f":"SUM(J222:K226)","v":0},null,null,{"$f":"SUM(M222:N226)","v":0},null,null,{"$f":"SUM(P222:Q226)","v":0},null,null,{"$f":"SUM(S222:T226)","v":0},null,null,{"$f":"SUM(V222:W226)","v":0},null,null,{"$f":"SUM(Y222:Z226)","v":0},null,null,{"$f":"SUM(AB222:AC226)","v":0}]
["O","Select from Options"]
["O","Select from Options"]
["O","Select from Options"]
["O","Select from Options"]
["O","Select from Options"]
[null,"Victims with Limited English Proficiency",null,null,null,null,null,null,{"$f":"SUM(H228:H232)","v":0},null,null,{"$f":"SUM(J228:K232)","v":0},null,null,{"$f":"SUM(M228:N232)","v":0},null,null,{"$f":"SUM(P228:Q232)","v":0},null,null,{"$f":"SUM(S228:T232)","v":0},null,null,{"$f":"SUM(V228:W232)","v":0},null,null,{"$f":"SUM(Y228:Z232)","v":0},null,null,{"$f":"SUM(AB228:AC232)","v":0}]
["O","Select from Options"]
["O","Select from Options"]
["O","Select from Options"]
["O","Select from Options"]
["O","Select from Options"]
[null,"Other Special Classification Type (please specify below):",null,null,null,null,null,null,{"$f":"SUM(H234:H236)","v":0},null,null,{"$f":"SUM(J234:K236)","v":0},null,null,{"$f":"SUM(M234:N236)","v":0},null,null,{"$f":"SUM(P234:Q236)","v":0},null,null,{"$f":"SUM(S234:T236)","v":0},null,null,{"$f":"SUM(V234:W236)","v":0},null,null,{"$f":"SUM(Y234:Z236)","v":0},null,null,{"$f":"SUM(AB234:AC236)","v":0}]
[]
[]
[]
[]
["M","SECTION 6: Number of individuals assisted with a victim compensation application during the reporting period: ",null,null,null,null,null,"Reporting Period 1",null,"Reporting Period 2",null,null,"Reporting Period 3",null,null,"Reporting Period 4",null,null,"Reporting Period 5",null,null,"Reporting Period 6",null,null,"Reporting Period 7",null,null,"Reporting Period 8"]
[]
[]
[]
["M","SECTION 7:  Services Received\nFirst select the types of services provided by your organization from the dropdown options. Then enter the total number of individuals who received services AND the number of time each service was provided by your organization during the reporting period within each category."]
[null,null,null,null,null,null,null,"Reporting Period 1",null,"Reporting Period 2",null,null,"Reporting Period 3",null,null,"Reporting Period 4",null,null,"Reporting Period 5",null,null,"Reporting Period 6",null,null,"Reporting Period 7",null,null,"Reporting Period 8"]
[null,"A. Information & Referral",null,null,null,null,null,"Yes or No?",null,null,"Yes or No?",null,null,"Yes or No?",null,null,"Yes or No?",null,null,"Yes or No?",null,null,"Yes or No?",null,null,"Yes or No?",null,null,"Yes or No?"]
[null,"Number of Individuals"]
[null,"Number of Times/Occurrences",null,null,null,null,null,null,{"$f":"SUM(H247:H250)","v":0},null,null,{"$f":"SUM(J247:K250)","v":0},null,null,{"$f":"SUM(M247:N250)","v":0},null,null,{"$f":"SUM(P247:Q250)","v":0},null,null,{"$f":"SUM(S247:T250)","v":0},null,null,{"$f":"SUM(V247:W250)","v":0},null,null,{"$f":"SUM(Y247:Z250)","v":0},null,null,{"$f":"SUM(AB247:AC250)","v":0}]
[null,"1. Information about the criminal justice process"]
[null,"2. Information on victim rights/how to obtain notifications"]
[null,"3. Referral to other victim service programs"]
[null,"4. Referral to other services/supports/resources"]
[]
[null,"B. Personal Advocacy/Accompaniment",null,null,null,null,null,"Yes or No?",null,null,"Yes or No?",null,null,"Yes or No?",null,null,"Yes or No?",null,null,"Yes or No?",null,null,"Yes or No?",null,null,"Yes or No?",null,null,"Yes or No?"]
[null,"Number of Individuals"]
[null,"Number of Times/Occurrences",null,null,null,null,null,null,{"$f":"SUM(H255:H264)","v":0},null,null,{"$f":"SUM(J255:K264)","v":0},null,null,{"$f":"SUM(M255:N264)","v":0},null,null,{"$f":"SUM(P255:Q264)","v":0},null,null,{"$f":"SUM(S255:T264)","v":0},null,null,{"$f":"SUM(V255:W264)","v":0},null,null,{"$f":"SUM(Y255:Z264)","v":0},null,null,{"$f":"SUM(AB255:AC264)","v":0}]
[null,"1. Victim advocacy/accompaniment to emergency medical care"]
[null,"2. Victim advocacy/accompaniment to medical forensic exam"]
[null,"3. Law enforcement interview advocacy/accompaniment"]
[null,"4. Individual advocacy"]
[null,"5. Performance of medical or nonmedical forensic exam or interview, or medical evidence collection"]
[null,"6. Immigration assistance (e.g., special visas, continued presence application, and other immigration relief)"]
[null,"7. Intervention with employer, creditor, landlord, or academic institution"]
[null,"8. Child or dependent care assistance (includes coordination of services)"]
[null,"9. Transportation assistance (includes coordination of services)"]
[null,"10. Interpreter services"]
[]
[null,"C. Emotional Support or Safety Services",null,null,null,null,null,"Yes or No?",null,null,"Yes or No?",null,null,"Yes or No?",null,null,"Yes or No?",null,null,"Yes or No?",null,null,"Yes or No?",null,null,"Yes or No?",null,null,"Yes or No?"]
[null,"Number of Individuals"]
[null,"Number of Times/Occurrences",null,null,null,null,null,null,{"$f":"SUM(H269:H275)","v":0},null,null,{"$f":"SUM(J269:K275)","v":0},null,null,{"$f":"SUM(M269:N275)","v":0},null,null,{"$f":"SUM(P269:Q275)","v":0},null,null,{"$f":"SUM(S269:T275)","v":0},null,null,{"$f":"SUM(V269:W275)","v":0},null,null,{"$f":"SUM(Y269:Z275)","v":0},null,null,{"$f":"SUM(AB269:AC275)","v":0}]
[null,"1. Crisis intervention (in-person, includes safety planning, etc.)"]
[null,"2. Hotline/crisis line counseling"]
[null,"3. On-scene crisis response (e.g., community crisis response)"]
[null,"4. Individual counseling"]
[null,"5. Support groups (facilitated or peer)"]
[null,"6. Other therapy (traditional, cultural, or alternative healing; art, writing, or play therapy, etc.)"]
[null,"7. Emergency financial assistance (includes emergency loans and petty cash, payment for items such as food and/or clothing, changing windows and/or locks, taxis, prophylactic and nonprophylactic medications, durable medical equipment, etc.)"]
[]
[null,"D. Shelter/Housing Services",null,null,null,null,null,"Yes or No?",null,null,"Yes or No?",null,null,"Yes or No?",null,null,"Yes or No?",null,null,"Yes or No?",null,null,"Yes or No?",null,null,"Yes or No?",null,null,"Yes or No?"]
[null,"Number of Individuals"]
[null,"Number of Times/Occurrences",null,null,null,null,null,null,{"$f":"SUM(H280:H282)","v":0},null,null,{"$f":"SUM(J280:K283)","v":0},null,null,{"$f":"SUM(M280:N283)","v":0},null,null,{"$f":"SUM(P280:Q283)","v":0},null,null,{"$f":"SUM(S280:T283)","v":0},null,null,{"$f":"SUM(V280:W283)","v":0},null,null,{"$f":"SUM(Y280:Z283)","v":0},null,null,{"$f":"SUM(AB280:AC283)","v":0}]
[null,"1. Emergency shelter or safe house"]
[null,"2. Transitional housing"]
[null,"3. Relocation assistance (includes assistance with obtaining housing)"]
[]
[null,"E. Criminal/Civil Justice System Assistance",null,null,null,null,null,"Yes or No?",null,null,"Yes or No?",null,null,"Yes or No?",null,null,"Yes or No?",null,null,"Yes or No?",null,null,"Yes or No?",null,null,"Yes or No?",null,null,"Yes or No?"]
[null,"Number of Individuals"]
[null,"Number of Times/Occurrences",null,null,null,null,null,null,{"$f":"SUM(H287:H297)","v":0},null,null,{"$f":"SUM(J287:K297)","v":0},null,null,{"$f":"SUM(M287:N297)","v":0},null,null,{"$f":"SUM(P287:Q297)","v":0},null,null,{"$f":"SUM(S287:T297)","v":0},null,null,{"$f":"SUM(V287:W297)","v":0},null,null,{"$f":"SUM(Y287:Z297)","v":0},null,null,{"$f":"SUM(AB287:AC297)","v":0}]
[null,"1. Notification of criminal justice events (e.g., case status, arrest, court proceedings, case disposition, release, etc.)"]
[null,"2. Victim impact statement assistance"]
[null,"3. Assistance with restitution (includes assistance in requesting and when collection efforts are not successful)"]
[null,"4. Civil legal assistance in obtaining protection or restraining order"]
[null,"5. Civil legal assistance with family law issues (e.g., custody, visitation, or support)"]
[null,"6. Other emergency justice‐related assistance"]
[null,"7. Immigration assistance (e.g., special visas, continued presence application, and other immigration relief)"]
[null,"8. Prosecution interview advocacy/accompaniment (includes accompaniment with prosecuting attorney and with victim/witness)"]
[null,"9. Law enforcement interview advocacy/accompaniment"]
[null,"10. Criminal advocacy/accompaniment"]
[null,"11. Other legal advice and/or counsel"]
[]
[null,"Additional Comments: "]
[null,"Insert comments here."]
[]
[]
[]
[]
["M","8. Number of requests for services that were unmet because of organizational capacity issues: ",null,null,null,null,null,"Reporting Period 1",null,"Reporting Period 2",null,null,"Reporting Period 3",null,null,"Reporting Period 4",null,null,"Reporting Period 5",null,null,"Reporting Period 6",null,null,"Reporting Period 7",null,null,"Reporting Period 8"]
[]
[]
[null,"Please Explain. "]
[null,"Insert explanation here."]
[]
[]
[]
[]
["M","10. Does your organization formally survey clients for feedback on services received? "]
[]
["M","11. Number of surveys distributed to clients (included, but not limited to, those distributed by hand, mail or electronic methods):",null,null,null,null,null,"Reporting Period 1",null,"Reporting Period 2",null,null,"Reporting Period 3",null,null,"Reporting Period 4",null,null,"Reporting Period 5",null,null,"Reporting Period 6",null,null,"Reporting Period 7",null,null,"Reporting Period 8"]
[]
[]
[]
["M","12. Number of surveys completed by clients: ",null,null,null,null,null,"Reporting Period 1",null,"Reporting Period 2",null,null,"Reporting Period 3",null,null,"Reporting Period 4",null,null,"Reporting Period 5",null,null,"Reporting Period 6",null,null,"Reporting Period 7",null,null,"Reporting Period 8"]
[]
[]
[]
["O","13. Does your organization formally survey staff for feedback on trainings received? "]
[]
["O","14. Number of surveys distributed to staff (included, but not limited to, those distributed by hand, mail or electronic methods):",null,null,null,null,null,"Reporting Period 1",null,"Reporting Period 2",null,null,"Reporting Period 3",null,null,"Reporting Period 4",null,null,"Reporting Period 5",null,null,"Reporting Period 6",null,null,"Reporting Period 7",null,null,"Reporting Period 8"]
[]
[]
[]
["O","15. Number of surveys completed by staff: ",null,null,null,null,null,"Reporting Period 1",null,"Reporting Period 2",null,null,"Reporting Period 3",null,null,"Reporting Period 4",null,null,"Reporting Period 5",null,null,"Reporting Period 6",null,null,"Reporting Period 7",null,null,"Reporting Period 8"]
[]
[]
[]
[]
[null,"16. Please discuss some of the challenges your victim assistance program faced during the course of the federal fiscal year: "]
["M"]
[null,"Year 1",null,null,null,null,null,null,null,null,null,null,null,null,null,null,"Year 2"]
[null,"Insert response here.",null,null,null,null,null,null,null,null,null,null,null,null,null,null,"Insert response here. "]
[]
[]
[]
[]
[]
[]
[]
[]
[]
[]
[]
[]
[]
[null,"17. Please describe some of the services that victims needed but could not be provided. What were the challenges that prevented those services from being provided: "]
["M"]
[null,"Year 1",null,null,null,null,null,null,null,null,null,null,null,null,null,null,"Year 2"]
[null,"Insert response here.",null,null,null,null,null,null,null,null,null,null,null,null,null,null,"Insert response here."]
[]
[]
[]
[]
[]
[]
[]
[]
[]
[]
[]
[]
[]
["O","OPTIONAL. Please share a success story or client spotlight in the space below. Do not include any identifying or confidential information. "]
[]
[null,"Year 1",null,null,null,null,null,null,null,null,null,null,null,null,null,null,"Year 2"]
[null,"Insert response here.",null,null,null,null,null,null,null,null,null,null,null,null,null,null,"Insert response here."]

{"sheet":"2. Goals","index":4,"n_rows":207,"n_cols":29,"rows_kept":207,"cut":false,"hidden":false,"merged":[[1,10,1,21],[116,1,116,2],[7,28,21,35],[15,1,15,2],[15,3,15,4],[7,3,7,4],[6,3,6,4],[7,8,7,10],[6,8,6,10],[6,20,6,21],[4,20,5,21],[116,20,116,21]]}
[]
[null,null,null,null,{"$f":"SUBSTITUTE(C27,\" \",\"_\")","v":""},null,null,null,null,null,"Outcome Measurement Tool (OMT)\nMA - Victim Witness Assistance Board\n\nNeed Support? Contact TTACEval@icf.com or call 703-251-0368.\n"]
[null,null," ESTABLISHING GOALS, STRATEGIC AREAS, AND OUTPUT MEASURES",null,null,null,null,null,null,null,null,null,null,null,null,null,"(#2) DATA ENTRY TAB"]
[]
[null,"Subgrantee Organization",null,null,null,null,null,null,null,null,null,null,null,null,null,null,null,null,null,null,"Period 2 (January – March 2021)"]
[null,null,"Organization Name"]
[null,"User Contact Information",null,null,null,null,null,null,null,null,null,null,null,null,null,null,null,null,null,null,"Reporting Period",null,null,null,null,null,null,null,"NOTES:"]
[null,null,"User Name (First Name and Last Name)","Email Address",null,"Phone",null,null,"New User?"]
[]
[null,"Organization Category:"]
[null,"Agency Type:",null,"*Note this field requires a response to the Organization Category first."]
[]
[]
[null,"SECTION 15: Goals \nDuring the first reporting period, complete the chart below to outline at least 2-3 strategic areas of focus within your award and the associated goals for each areas. It is recommended to have 1-2 goals per strategic area with measurable milestones to track throughout your award. Please consult your logic model when constructing your goals for the award. Once these are entered, each reporting period will be for updates only and entering the values for each period to track your progress. This report is an outline of what you hope to achieve through your grant funding."]
[]
[null,"Step 1: Choose 2-3 Strategic Areas using the dropdown menu of categories.\nStep 2: Provide 1-2 Goals under each Strategic Area.\nStep 4: Select how you will measure each goal over the course of your award by providing 2-3 Measures to assess your outcomes.\nStep 5: Enter your predicted Milestones for each measure to show what you plan to achieve by the end of your award. \nStep 6: During each reporting period, enter the values (numeric) for each established measure in the correct column.",null,"OUTPUT TYPE\nSelect from the dropdown who or what the output is focused on and then provide additional detail in the corresponding cell. If you have multiple awards, use the open-ended field here to specify which award the entries apply to.",null,"MILESTONE","Period 1",null,"Period 2",null,"Period 3",null,"Period 4",null,"Period 5",null,"Period 6",null,"Period 7",null,"Period 8","Progress Toward Goal \n(auto-calculated)"]
[null,"Sample Strategic Area:","Mental Health Services"]
[null,"Sample: What is your Goal?","To reduce trauma symptoms of victims of crimes who are engaged in mental health services"]
[null,"Output Measure #1","Number of support groups (facilitated or peer) instances","Service types","Peer groups",40,2,null,5,null,3,null,0,null,4,null,6,null,1,null,2,{"$f":"(SUM(G19:U19))/F19","v":0.57499999999999996}]
[null,"Output Measure #2","Number of individuals served through individual counseling instances","Volume of services",null,100,10,null,22,null,12,null,6,null,5,null,20,null,15,null,8,{"$f":"(SUM(G20:U20))/F20","v":0.98}]
[null,"Output Measure #3","Number of support groups (facilitated or peer) instances","Sub-population","Immigrant populations",100,10,null,22,null,12,null,6,null,5,null,20,null,15,null,8,{"$f":"(SUM(G21:U21))/F21","v":0.98}]
[null,"Output Measure #4","Number of victims that engaged in a screening or intake process during the reporting quarter","Volume of services","ERM award only",40,2,null,5,null,3,null,0,null,4,null,6,null,1,null,2,{"$f":"(SUM(G22:U22))/F22","v":0.57499999999999996}]
[null,"Output Measure #5","Number of victims that were screened and referred to another mental health provider during the reporting quarter","Collaboration and referrals","ERM award only",30,1,null,2,null,3,null,2,null,2,null,4,null,2,null,2,{"$f":"(SUM(G23:U23))/F23","v":0.6}]
[]
[]
[null,"Strategic Area #1:","Select Strategic Area"]
[null,"What is your Goal?"]
[null,"Output Measure #1",null,"Select from the options","Specify here",null,null,null,null,null,null,null,null,null,null,null,null,null,null,null,null,{"$f":"(SUM(G28:U28))/F28","v":{"$error":"#DIV/0!"}}]
[null,"Output Measure #2",null,"Select from the options","Specify here",null,null,null,null,null,null,null,null,null,null,null,null,null,null,null,null,{"$f":"(SUM(G29:U29))/F29","v":{"$error":"#DIV/0!"}}]
[null,"Output Measure #3",null,"Select from the options","Specify here",null,null,null,null,null,null,null,null,null,null,null,null,null,null,null,null,{"$f":"(SUM(G30:U30))/F30","v":{"$error":"#DIV/0!"}}]
[null,"What is another Goal?"]
[null,"Output Measure #1",null,"Select from the options","Specify here",null,null,null,null,null,null,null,null,null,null,null,null,null,null,null,null,{"$f":"(SUM(G32:U32))/F32","v":{"$error":"#DIV/0!"}}]
[null,"Output Measure #2",null,"Select from the options","Specify here",null,null,null,null,null,null,null,null,null,null,null,null,null,null,null,null,{"$f":"(SUM(G33:U33))/F33","v":{"$error":"#DIV/0!"}}]
[null,"Output Measure #3",null,"Select from the options","Specify here",null,null,null,null,null,null,null,null,null,null,null,null,null,null,null,null,{"$f":"(SUM(G34:U34))/F34","v":{"$error":"#DIV/0!"}}]
[null,"Strategic Area #2:","Select Strategic Area"]
[null,"What is your Goal?"]
[null,"Output Measure #1",null,"Select from the options","Specify here",null,null,null,null,null,null,null,null,null,null,null,null,null,null,null,null,{"$f":"(SUM(G37:U37))/F37","v":{"$error":"#DIV/0!"}}]
[null,"Output Measure #2",null,"Select from the options","Specify here",null,null,null,null,null,null,null,null,null,null,null,null,null,null,null,null,{"$f":"(SUM(G38:U38))/F38","v":{"$error":"#DIV/0!"}}]
[null,"Output Measure #3",null,"Select from the options","Specify here",null,null,null,null,null,null,null,null,null,null,null,null,null,null,null,null,{"$f":"(SUM(G39:U39))/F39","v":{"$error":"#DIV/0!"}}]
[null,"What is another Goal?"]
[null,"Output Measure #1",null,"Select from the options","Specify here",null,null,null,null,null,null,null,null,null,null,null,null,null,null,null,null,{"$f":"(SUM(G41:U41))/F41","v":{"$error":"#DIV/0!"}}]
[null,"Output Measure #2",null,"Select from the options","Specify here",null,null,null,null,null,null,null,null,null,null,null,null,null,null,null,null,{"$f":"(SUM(G42:U42))/F42","v":{"$error":"#DIV/0!"}}]
[null,"Output Measure #3",null,"Select from the options","Specify here",null,null,null,null,null,null,null,null,null,null,null,null,null,null,null,null,{"$f":"(SUM(G43:U43))/F43","v":{"$error":"#DIV/0!"}}]
[null,"Strategic Area #3:","Select Strategic Area"]
[null,"What is your Goal?"]
[null,"Output Measure #1",null,"Select from the options","Specify here",null,null,null,null,null,null,null,null,null,null,null,null,null,null,null,null,{"$f":"(SUM(G46:U46))/F46","v":{"$error":"#DIV/0!"}}]
[null,"Output Measure #2",null,"Select from the options","Specify here",null,null,null,null,null,null,null,null,null,null,null,null,null,null,null,null,{"$f":"(SUM(G47:U47))/F47","v":{"$error":"#DIV/0!"}}]
[null,"Output Measure #3",null,"Select from the options","Specify here",null,null,null,null,null,null,null,null,null,null,null,null,null,null,null,null,{"$f":"(SUM(G48:U48))/F48","v":{"$error":"#DIV/0!"}}]
[null,"What is another Goal?"]
[null,"Output Measure #1",null,"Select from the options","Specify here",null,null,null,null,null,null,null,null,null,null,null,null,null,null,null,null,{"$f":"(SUM(G50:U50))/F50","v":{"$error":"#DIV/0!"}}]
[null,"Output Measure #2",null,"Select from the options","Specify here",null,null,null,null,null,null,null,null,null,null,null,null,null,null,null,null,{"$f":"(SUM(G51:U51))/F51","v":{"$error":"#DIV/0!"}}]
[null,"Output Measure #3",null,"Select from the options","Specify here",null,null,null,null,null,null,null,null,null,null,null,null,null,null,null,null,{"$f":"(SUM(G52:U52))/F52","v":{"$error":"#DIV/0!"}}]
[null,"Strategic Area #4:","Select Strategic Area"]
[null,"What is your Goal?"]
[null,"Output Measure #1",null,"Select from the options","Specify here",null,null,null,null,null,null,null,null,null,null,null,null,null,null,null,null,{"$f":"(SUM(G55:U55))/F55","v":{"$error":"#DIV/0!"}}]
[null,"Output Measure #2",null,"Select from the options","Specify here",null,null,null,null,null,null,null,null,null,null,null,null,null,null,null,null,{"$f":"(SUM(G56:U56))/F56","v":{"$error":"#DIV/0!"}}]
[null,"Output Measure #3",null,"Select from the options","Specify here",null,null,null,null,null,null,null,null,null,null,null,null,null,null,null,null,{"$f":"(SUM(G57:U57))/F57","v":{"$error":"#DIV/0!"}}]
[null,"What is another Goal?"]
[null,"Output Measure #1",null,"Select from the options","Specify here",null,null,null,null,null,null,null,null,null,null,null,null,null,null,null,null,{"$f":"(SUM(G59:U59))/F59","v":{"$error":"#DIV/0!"}}]
[null,"Output Measure #2",null,"Select from the options","Specify here",null,null,null,null,null,null,null,null,null,null,null,null,null,null,null,null,{"$f":"(SUM(G60:U60))/F60","v":{"$error":"#DIV/0!"}}]
[null,"Output Measure #3",null,"Select from the options","Specify here",null,null,null,null,null,null,null,null,null,null,null,null,null,null,null,null,{"$f":"(SUM(G61:U61))/F61","v":{"$error":"#DIV/0!"}}]
[null,"Strategic Area #5:","Select Strategic Area"]
[null,"What is your Goal?"]
[null,"Output Measure #1",null,"Select from the options","Specify here",null,null,null,null,null,null,null,null,null,null,null,null,null,null,null,null,{"$f":"(SUM(G64:U64))/F64","v":{"$error":"#DIV/0!"}}]
[null,"Output Measure #2",null,"Select from the options","Specify here",null,null,null,null,null,null,null,null,null,null,null,null,null,null,null,null,{"$f":"(SUM(G65:U65))/F65","v":{"$error":"#DIV/0!"}}]
[null,"Output Measure #3",null,"Select from the options","Specify here",null,null,null,null,null,null,null,null,null,null,null,null,null,null,null,null,{"$f":"(SUM(G66:U66))/F66","v":{"$error":"#DIV/0!"}}]
[null,"What is another Goal?"]
[null,"Output Measure #1",null,"Select from the options","Specify here",null,null,null,null,null,null,null,null,null,null,null,null,null,null,null,null,{"$f":"(SUM(G68:U68))/F68","v":{"$error":"#DIV/0!"}}]
[null,"Output Measure #2",null,"Select from the options","Specify here",null,null,null,null,null,null,null,null,null,null,null,null,null,null,null,null,{"$f":"(SUM(G69:U69))/F69","v":{"$error":"#DIV/0!"}}]
[null,"Output Measure #3",null,"Select from the options","Specify here",null,null,null,null,null,null,null,null,null,null,null,null,null,null,null,null,{"$f":"(SUM(G70:U70))/F70","v":{"$error":"#DIV/0!"}}]
[null,"Strategic Area #6:","Select Strategic Area"]
[null,"What is your Goal?"]
[null,"Output Measure #1",null,"Select from the options","Specify here",null,null,null,null,null,null,null,null,null,null,null,null,null,null,null,null,{"$f":"(SUM(G73:U73))/F73","v":{"$error":"#DIV/0!"}}]
[null,"Output Measure #2",null,"Select from the options","Specify here",null,null,null,null,null,null,null,null,null,null,null,null,null,null,null,null,{"$f":"(SUM(G74:U74))/F74","v":{"$error":"#DIV/0!"}}]
[null,"Output Measure #3",null,"Select from the options","Specify here",null,null,null,null,null,null,null,null,null,null,null,null,null,null,null,null,{"$f":"(SUM(G75:U75))/F75","v":{"$error":"#DIV/0!"}}]
[null,"What is another Goal?"]
[null,"Output Measure #1",null,"Select from the options","Specify here",null,null,null,null,null,null,null,null,null,null,null,null,null,null,null,null,{"$f":"(SUM(G77:U77))/F77","v":{"$error":"#DIV/0!"}}]
[null,"Output Measure #2",null,"Select from the options","Specify here",null,null,null,null,null,null,null,null,null,null,null,null,null,null,null,null,{"$f":"(SUM(G78:U78))/F78","v":{"$error":"#DIV/0!"}}]
[null,"Output Measure #3",null,"Select from the options","Specify here",null,null,null,null,null,null,null,null,null,null,null,null,null,null,null,null,{"$f":"(SUM(G79:U79))/F79","v":{"$error":"#DIV/0!"}}]
[null,"Strategic Area #7:","Select Strategic Area"]
[null,"What is your Goal?"]
[null,"Output Measure #1",null,"Select from the options","Specify here",null,null,null,null,null,null,null,null,null,null,null,null,null,null,null,null,{"$f":"(SUM(G82:U82))/F82","v":{"$error":"#DIV/0!"}}]
[null,"Output Measure #2",null,"Select from the options","Specify here",null,null,null,null,null,null,null,null,null,null,null,null,null,null,null,null,{"$f":"(SUM(G83:U83))/F83","v":{"$error":"#DIV/0!"}}]
[null,"Output Measure #3",null,"Select from the options","Specify here",null,null,null,null,null,null,null,null,null,null,null,null,null,null,null,null,{"$f":"(SUM(G84:U84))/F84","v":{"$error":"#DIV/0!"}}]
[null,"What is another Goal?"]
[null,"Output Measure #1",null,"Select from the options","Specify here",null,null,null,null,null,null,null,null,null,null,null,null,null,null,null,null,{"$f":"(SUM(G86:U86))/F86","v":{"$error":"#DIV/0!"}}]
[null,"Output Measure #2",null,"Select from the options","Specify here",null,null,null,null,null,null,null,null,null,null,null,null,null,null,null,null,{"$f":"(SUM(G87:U87))/F87","v":{"$error":"#DIV/0!"}}]
[null,"Output Measure #3",null,"Select from the options","Specify here",null,null,null,null,null,null,null,null,null,null,null,null,null,null,null,null,{"$f":"(SUM(G88:U88))/F88","v":{"$error":"#DIV/0!"}}]
[null,"Strategic Area #8:","Select Strategic Area"]
[null,"What is your Goal?"]
[null,"Output Measure #1",null,"Select from the options","Specify here",null,null,null,null,null,null,null,null,null,null,null,null,null,null,null,null,{"$f":"(SUM(G91:U91))/F91","v":{"$error":"#DIV/0!"}}]
[null,"Output Measure #2",null,"Select from the options","Specify here",null,null,null,null,null,null,null,null,null,null,null,null,null,null,null,null,{"$f":"(SUM(G92:U92))/F92","v":{"$error":"#DIV/0!"}}]
[null,"Output Measure #3",null,"Select from the options","Specify here",null,null,null,null,null,null,null,null,null,null,null,null,null,null,null,null,{"$f":"(SUM(G93:U93))/F93","v":{"$error":"#DIV/0!"}}]
[null,"What is another Goal?"]
[null,"Output Measure #1",null,"Select from the options","Specify here",null,null,null,null,null,null,null,null,null,null,null,null,null,null,null,null,{"$f":"(SUM(G95:U95))/F95","v":{"$error":"#DIV/0!"}}]
[null,"Output Measure #2",null,"Select from the options","Specify here",null,null,null,null,null,null,null,null,null,null,null,null,null,null,null,null,{"$f":"(SUM(G96:U96))/F96","v":{"$error":"#DIV/0!"}}]
[null,"Output Measure #3",null,"Select from the options","Specify here",null,null,null,null,null,null,null,null,null,null,null,null,null,null,null,null,{"$f":"(SUM(G97:U97))/F97","v":{"$error":"#DIV/0!"}}]
[null,"Strategic Area #9:","Select Strategic Area"]
[null,"What is your Goal?"]
[null,"Output Measure #1",null,"Select from the options","Specify here",null,null,null,null,null,null,null,null,null,null,null,null,null,null,null,null,{"$f":"(SUM(G100:U100))/F100","v":{"$error":"#DIV/0!"}}]
[null,"Output Measure #2",null,"Select from the options","Specify here",null,null,null,null,null,null,null,null,null,null,null,null,null,null,null,null,{"$f":"(SUM(G101:U101))/F101","v":{"$error":"#DIV/0!"}}]
[null,"Output Measure #3",null,"Select from the options","Specify here",null,null,null,null,null,null,null,null,null,null,null,null,null,null,null,null,{"$f":"(SUM(G102:U102))/F102","v":{"$error":"#DIV/0!"}}]
[null,"What is another Goal?"]
[null,"Output Measure #1",null,"Select from the options","Specify here",null,null,null,null,null,null,null,null,null,null,null,null,null,null,null,null,{"$f":"(SUM(G104:U104))/F104","v":{"$error":"#DIV/0!"}}]
[null,"Output Measure #2",null,"Select from the options","Specify here",null,null,null,null,null,null,null,null,null,null,null,null,null,null,null,null,{"$f":"(SUM(G105:U105))/F105","v":{"$error":"#DIV/0!"}}]
[null,"Output Measure #3",null,"Select from the options","Specify here",null,null,null,null,null,null,null,null,null,null,null,null,null,null,null,null,{"$f":"(SUM(G106:U106))/F106","v":{"$error":"#DIV/0!"}}]
[null,"Strategic Area #10:","Select Strategic Area"]
[null,"What is your Goal?"]
[null,"Output Measure #1",null,"Select from the options","Specify here",null,null,null,null,null,null,null,null,null,null,null,null,null,null,null,null,{"$f":"(SUM(G109:U109))/F109","v":{"$error":"#DIV/0!"}}]
[null,"Output Measure #2",null,"Select from the options","Specify here",null,null,null,null,null,null,null,null,null,null,null,null,null,null,null,null,{"$f":"(SUM(G110:U110))/F110","v":{"$error":"#DIV/0!"}}]
[null,"Output Measure #3",null,"Select from the options","Specify here",null,null,null,null,null,null,null,null,null,null,null,null,null,null,null,null,{"$f":"(SUM(G111:U111))/F111","v":{"$error":"#DIV/0!"}}]
[null,"What is another Goal?"]
[null,"Output Measure #1",null,"Select from the options","Specify here",null,null,null,null,null,null,null,null,null,null,null,null,null,null,null,null,{"$f":"(SUM(G113:U113))/F113","v":{"$error":"#DIV/0!"}}]
[null,"Output Measure #2",null,"Select from the options","Specify here",null,null,null,null,null,null,null,null,null,null,null,null,null,null,null,null,{"$f":"(SUM(G114:U114))/F114","v":{"$error":"#DIV/0!"}}]
[null,"Output Measure #3",null,"Select from the options","Specify here",null,null,null,null,null,null,null,null,null,null,null,null,null,null,null,null,{"$f":"(SUM(G115:U115))/F115","v":{"$error":"#DIV/0!"}}]
[]
[null,"Options below allow for customized entries.",null,null,null,null,null,null,null,null,null,null,null,null,null,null,null,null,null,null,"Note: Progress tracking below may need to be updated following the first submission depending on the type of information provided."]
[null,"Custom Strategic Area #1 - OTHER:","Select Strategic Area"]
[null,"What is your Goal?"]
[null,"Output Measure #1",null,"Select from the options","Specify here",null,null,null,null,null,null,null,null,null,null,null,null,null,null,null,null,{"$f":"(SUM(G120:U120))/F120","v":{"$error":"#DIV/0!"}}]
[null,"Output Measure #2",null,"Select from the options","Specify here",null,null,null,null,null,null,null,null,null,null,null,null,null,null,null,null,{"$f":"(SUM(G121:U121))/F121","v":{"$error":"#DIV/0!"}}]
[null,"Output Measure #3",null,"Select from the options","Specify here",null,null,null,null,null,null,null,null,null,null,null,null,null,null,null,null,{"$f":"(SUM(G122:U122))/F122","v":{"$error":"#DIV/0!"}}]
[null,"What is another Goal?"]
[null,"Output Measure #1",null,"Select from the options","Specify here",null,null,null,null,null,null,null,null,null,null,null,null,null,null,null,null,{"$f":"(SUM(G124:U124))/F124","v":{"$error":"#DIV/0!"}}]
[null,"Output Measure #2",null,"Select from the options","Specify here",null,null,null,null,null,null,null,null,null,null,null,null,null,null,null,null,{"$f":"(SUM(G125:U125))/F125","v":{"$error":"#DIV/0!"}}]
[null,"Output Measure #3",null,"Select from the options","Specify here",null,null,null,null,null,null,null,null,null,null,null,null,null,null,null,null,{"$f":"(SUM(G126:U126))/F126","v":{"$error":"#DIV/0!"}}]
[null,"Custom Strategic Area #2 - OTHER:","Select Strategic Area"]
[null,"What is your Goal?"]
[null,"Output Measure #1",null,"Select from the options","Specify here",null,null,null,null,null,null,null,null,null,null,null,null,null,null,null,null,{"$f":"(SUM(G129:U129))/F129","v":{"$error":"#DIV/0!"}}]
[null,"Output Measure #2",null,"Select from the options","Specify here",null,null,null,null,null,null,null,null,null,null,null,null,null,null,null,null,{"$f":"(SUM(G130:U130))/F130","v":{"$error":"#DIV/0!"}}]
[null,"Output Measure #3",null,"Select from the options","Specify here",null,null,null,null,null,null,null,null,null,null,null,null,null,null,null,null,{"$f":"(SUM(G131:U131))/F131","v":{"$error":"#DIV/0!"}}]
[null,"What is another Goal?"]
[null,"Output Measure #1",null,"Select from the options","Specify here",null,null,null,null,null,null,null,null,null,null,null,null,null,null,null,null,{"$f":"(SUM(G133:U133))/F133","v":{"$error":"#DIV/0!"}}]
[null,"Output Measure #2",null,"Select from the options","Specify here",null,null,null,null,null,null,null,null,null,null,null,null,null,null,null,null,{"$f":"(SUM(G134:U134))/F134","v":{"$error":"#DIV/0!"}}]
[null,"Output Measure #3",null,"Select from the options","Specify here",null,null,null,null,null,null,null,null,null,null,null,null,null,null,null,null,{"$f":"(SUM(G135:U135))/F135","v":{"$error":"#DIV/0!"}}]
[null,"Custom Strategic Area #3 - OTHER:","Select Strategic Area"]
[null,"What is your Goal?"]
[null,"Output Measure #1",null,"Select from the options","Specify here",null,null,null,null,null,null,null,null,null,null,null,null,null,null,null,null,{"$f":"(SUM(G138:U138))/F138","v":{"$error":"#DIV/0!"}}]
[null,"Output Measure #2",null,"Select from the options","Specify here",null,null,null,null,null,null,null,null,null,null,null,null,null,null,null,null,{"$f":"(SUM(G139:U139))/F139","v":{"$error":"#DIV/0!"}}]
[null,"Output Measure #3",null,"Select from the options","Specify here",null,null,null,null,null,null,null,null,null,null,null,null,null,null,null,null,{"$f":"(SUM(G140:U140))/F140","v":{"$error":"#DIV/0!"}}]
[null,"What is another Goal?"]
[null,"Output Measure #1",null,"Select from the options","Specify here",null,null,null,null,null,null,null,null,null,null,null,null,null,null,null,null,{"$f":"(SUM(G142:U142))/F142","v":{"$error":"#DIV/0!"}}]
[null,"Output Measure #2",null,"Select from the options","Specify here",null,null,null,null,null,null,null,null,null,null,null,null,null,null,null,null,{"$f":"(SUM(G143:U143))/F143","v":{"$error":"#DIV/0!"}}]
[null,"Output Measure #3",null,"Select from the options","Specify here",null,null,null,null,null,null,null,null,null,null,null,null,null,null,null,null,{"$f":"(SUM(G144:U144))/F144","v":{"$error":"#DIV/0!"}}]
[null,"Custom Strategic Area #4 - OTHER:","Select Strategic Area"]
[null,"What is your Goal?"]
[null,"Output Measure #1",null,"Select from the options","Specify here",null,null,null,null,null,null,null,null,null,null,null,null,null,null,null,null,{"$f":"(SUM(G147:U147))/F147","v":{"$error":"#DIV/0!"}}]
[null,"Output Measure #2",null,"Select from the options","Specify here",null,null,null,null,null,null,null,null,null,null,null,null,null,null,null,null,{"$f":"(SUM(G148:U148))/F148","v":{"$error":"#DIV/0!"}}]
[null,"Output Measure #3",null,"Select from the options","Specify here",null,null,null,null,null,null,null,null,null,null,null,null,null,null,null,null,{"$f":"(SUM(G149:U149))/F149","v":{"$error":"#DIV/0!"}}]
[null,"What is another Goal?"]
[null,"Output Measure #1",null,"Select from the options","Specify here",null,null,null,null,null,null,null,null,null,null,null,null,null,null,null,null,{"$f":"(SUM(G151:U151))/F151","v":{"$error":"#DIV/0!"}}]
[null,"Output Measure #2",null,"Select from the options","Specify here",null,null,null,null,null,null,null,null,null,null,null,null,null,null,null,null,{"$f":"(SUM(G152:U152))/F152","v":{"$error":"#DIV/0!"}}]
[null,"Output Measure #3",null,"Select from the options","Specify here",null,null,null,null,null,null,null,null,null,null,null,null,null,null,null,null,{"$f":"(SUM(G153:U153))/F153","v":{"$error":"#DIV/0!"}}]
[null,"Custom Strategic Area #5 - OTHER:","Select Strategic Area"]
[null,"What is your Goal?"]
[null,"Output Measure #1",null,"Select from the options","Specify here",null,null,null,null,null,null,null,null,null,null,null,null,null,null,null,null,{"$f":"(SUM(G156:U156))/F156","v":{"$error":"#DIV/0!"}}]
[null,"Output Measure #2",null,"Select from the options","Specify here",null,null,null,null,null,null,null,null,null,null,null,null,null,null,null,null,{"$f":"(SUM(G157:U157))/F157","v":{"$error":"#DIV/0!"}}]
[null,"Output Measure #3",null,"Select from the options","Specify here",null,null,null,null,null,null,null,null,null,null,null,null,null,null,null,null,{"$f":"(SUM(G158:U158))/F158","v":{"$error":"#DIV/0!"}}]
[null,"What is another Goal?"]
[null,"Output Measure #1",null,"Select from the options","Specify here",null,null,null,null,null,null,null,null,null,null,null,null,null,null,null,null,{"$f":"(SUM(G160:U160))/F160","v":{"$error":"#DIV/0!"}}]
[null,"Output Measure #2",null,"Select from the options","Specify here",null,null,null,null,null,null,null,null,null,null,null,null,null,null,null,null,{"$f":"(SUM(G161:U161))/F161","v":{"$error":"#DIV/0!"}}]
[null,"Output Measure #3",null,"Select from the options","Specify here",null,null,null,null,null,null,null,null,null,null,null,null,null,null,null,null,{"$f":"(SUM(G162:U162))/F162","v":{"$error":"#DIV/0!"}}]
[null,"Custom Strategic Area #6 - OTHER:","Select Strategic Area"]
[null,"What is your Goal?"]
[null,"Output Measure #1",null,"Select from the options","Specify here",null,null,null,null,null,null,null,null,null,null,null,null,null,null,null,null,{"$f":"(SUM(G165:U165))/F165","v":{"$error":"#DIV/0!"}}]
[null,"Output Measure #2",null,"Select from the options","Specify here",null,null,null,null,null,null,null,null,null,null,null,null,null,null,null,null,{"$f":"(SUM(G166:U166))/F166","v":{"$error":"#DIV/0!"}}]
[null,"Output Measure #3",null,"Select from the options","Specify here",null,null,null,null,null,null,null,null,null,null,null,null,null,null,null,null,{"$f":"(SUM(G167:U167))/F167","v":{"$error":"#DIV/0!"}}]
[null,"What is another Goal?"]
[null,"Output Measure #1",null,"Select from the options","Specify here",null,null,null,null,null,null,null,null,null,null,null,null,null,null,null,null,{"$f":"(SUM(G169:U169))/F169","v":{"$error":"#DIV/0!"}}]
[null,"Output Measure #2",null,"Select from the options","Specify here",null,null,null,null,null,null,null,null,null,null,null,null,null,null,null,null,{"$f":"(SUM(G170:U170))/F170","v":{"$error":"#DIV/0!"}}]
[null,"Output Measure #3",null,"Select from the options","Specify here",null,null,null,null,null,null,null,null,null,null,null,null,null,null,null,null,{"$f":"(SUM(G171:U171))/F171","v":{"$error":"#DIV/0!"}}]
[null,"Custom Strategic Area #7 - OTHER:","Select Strategic Area"]
[null,"What is your Goal?"]
[null,"Output Measure #1",null,"Select from the options","Specify here",null,null,null,null,null,null,null,null,null,null,null,null,null,null,null,null,{"$f":"(SUM(G174:U174))/F174","v":{"$error":"#DIV/0!"}}]
[null,"Output Measure #2",null,"Select from the options","Specify here",null,null,null,null,null,null,null,null,null,null,null,null,null,null,null,null,{"$f":"(SUM(G175:U175))/F175","v":{"$error":"#DIV/0!"}}]
[null,"Output Measure #3",null,"Select from the options","Specify here",null,null,null,null,null,null,null,null,null,null,null,null,null,null,null,null,{"$f":"(SUM(G176:U176))/F176","v":{"$error":"#DIV/0!"}}]
[null,"What is another Goal?"]
[null,"Output Measure #1",null,"Select from the options","Specify here",null,null,null,null,null,null,null,null,null,null,null,null,null,null,null,null,{"$f":"(SUM(G178:U178))/F178","v":{"$error":"#DIV/0!"}}]
[null,"Output Measure #2",null,"Select from the options","Specify here",null,null,null,null,null,null,null,null,null,null,null,null,null,null,null,null,{"$f":"(SUM(G179:U179))/F179","v":{"$error":"#DIV/0!"}}]
[null,"Output Measure #3",null,"Select from the options","Specify here",null,null,null,null,null,null,null,null,null,null,null,null,null,null,null,null,{"$f":"(SUM(G180:U180))/F180","v":{"$error":"#DIV/0!"}}]
[null,"Custom Strategic Area #8 - OTHER:","Select Strategic Area"]
[null,"What is your Goal?"]
[null,"Output Measure #1",null,"Select from the options","Specify here",null,null,null,null,null,null,null,null,null,null,null,null,null,null,null,null,{"$f":"(SUM(G183:U183))/F183","v":{"$error":"#DIV/0!"}}]
[null,"Output Measure #2",null,"Select from the options","Specify here",null,null,null,null,null,null,null,null,null,null,null,null,null,null,null,null,{"$f":"(SUM(G184:U184))/F184","v":{"$error":"#DIV/0!"}}]
[null,"Output Measure #3",null,"Select from the options","Specify here",null,null,null,null,null,null,null,null,null,null,null,null,null,null,null,null,{"$f":"(SUM(G185:U185))/F185","v":{"$error":"#DIV/0!"}}]
[null,"What is another Goal?"]
[null,"Output Measure #1",null,"Select from the options","Specify here",null,null,null,null,null,null,null,null,null,null,null,null,null,null,null,null,{"$f":"(SUM(G187:U187))/F187","v":{"$error":"#DIV/0!"}}]
[null,"Output Measure #2",null,"Select from the options","Specify here",null,null,null,null,null,null,null,null,null,null,null,null,null,null,null,null,{"$f":"(SUM(G188:U188))/F188","v":{"$error":"#DIV/0!"}}]
[null,"Output Measure #3",null,"Select from the options","Specify here",null,null,null,null,null,null,null,null,null,null,null,null,null,null,null,null,{"$f":"(SUM(G189:U189))/F189","v":{"$error":"#DIV/0!"}}]
[null,"Custom Strategic Area #9 - OTHER:","Select Strategic Area"]
[null,"What is your Goal?"]
[null,"Output Measure #1",null,"Select from the options","Specify here",null,null,null,null,null,null,null,null,null,null,null,null,null,null,null,null,{"$f":"(SUM(G192:U192))/F192","v":{"$error":"#DIV/0!"}}]
[null,"Output Measure #2",null,"Select from the options","Specify here",null,null,null,null,null,null,null,null,null,null,null,null,null,null,null,null,{"$f":"(SUM(G193:U193))/F193","v":{"$error":"#DIV/0!"}}]
[null,"Output Measure #3",null,"Select from the options","Specify here",null,null,null,null,null,null,null,null,null,null,null,null,null,null,null,null,{"$f":"(SUM(G194:U194))/F194","v":{"$error":"#DIV/0!"}}]
[null,"What is another Goal?"]
[null,"Output Measure #1",null,"Select from the options","Specify here",null,null,null,null,null,null,null,null,null,null,null,null,null,null,null,null,{"$f":"(SUM(G196:U196))/F196","v":{"$error":"#DIV/0!"}}]
[null,"Output Measure #2",null,"Select from the options","Specify here",null,null,null,null,null,null,null,null,null,null,null,null,null,null,null,null,{"$f":"(SUM(G197:U197))/F197","v":{"$error":"#DIV/0!"}}]
[null,"Output Measure #3",null,"Select from the options","Specify here",null,null,null,null,null,null,null,null,null,null,null,null,null,null,null,null,{"$f":"(SUM(G198:U198))/F198","v":{"$error":"#DIV/0!"}}]
[null,"Custom Strategic Area #10 - OTHER:","Select Strategic Area"]
[null,"What is your Goal?"]
[null,"Output Measure #1",null,"Select from the options","Specify here",null,null,null,null,null,null,null,null,null,null,null,null,null,null,null,null,{"$f":"(SUM(G201:U201))/F201","v":{"$error":"#DIV/0!"}}]
[null,"Output Measure #2",null,"Select from the options","Specify here",null,null,null,null,null,null,null,null,null,null,null,null,null,null,null,null,{"$f":"(SUM(G202:U202))/F202","v":{"$error":"#DIV/0!"}}]
[null,"Output Measure #3",null,"Select from the options","Specify here",null,null,null,null,null,null,null,null,null,null,null,null,null,null,null,null,{"$f":"(SUM(G203:U203))/F203","v":{"$error":"#DIV/0!"}}]
[null,"What is another Goal?"]
[null,"Output Measure #1",null,"Select from the options","Specify here",null,null,null,null,null,null,null,null,null,null,null,null,null,null,null,null,{"$f":"(SUM(G205:U205))/F205","v":{"$error":"#DIV/0!"}}]
[null,"Output Measure #2",null,"Select from the options","Specify here",null,null,null,null,null,null,null,null,null,null,null,null,null,null,null,null,{"$f":"(SUM(G206:U206))/F206","v":{"$error":"#DIV/0!"}}]
[null,"Output Measure #3",null,"Select from the options","Specify here",null,null,null,null,null,null,null,null,null,null,null,null,null,null,null,null,{"$f":"(SUM(G207:U207))/F207","v":{"$error":"#DIV/0!"}}]

{"sheet":"3. Key Outcomes","index":5,"n_rows":174,"n_cols":42,"rows_kept":174,"cut":false,"hidden":false,"merged":[[96,11,96,12],[172,32,172,33],[173,32,173,33],[97,17,97,18],[97,20,97,21],[97,23,97,24],[97,26,97,27],[97,29,97,30],[97,32,97,33],[96,14,96,15],[96,17,96,18],[96,20,96,21],[96,23,96,24],[96,26,96,27],[96,29,96,30],[96,32,96,33],[163,32,163,33],[164,32,164,33],[165,32,165,33],[166,32,166,33],[167,32,167,33],[168,32,168,33],[169,32,169,33],[170,32,170,33],[147,32,147,33],[148,32,148,33],[149,32,149,33],[150,32,150,33],[151,32,151,33],[152,32,152,33],[153,32,153,33],[171,32,171,33],[154,32,154,33],[155,32,155,33],[156,32,156,33],[157,32,157,33],[158,32,158,33],[159,32,159,33],[160,32,160,33],[161,32,161,33],[162,32,162,33],[138,32,138,33],[139,32,139,33],[140,32,140,33],[141,32,141,33],[142,32,142,33],[143,32,143,33],[144,32,144,33],[145,32,145,33],[146,32,146,33],[129,32,129,33],[130,32,130,33],[131,32,131,33],[132,32,132,33],[133,32,133,33],[134,32,134,33],[135,32,135,33],[136,32,136,33],[137,32,137,33],[120,32,120,33],[121,32,121,33],[122,32,122,33],[123,32,123,33],[124,32,124,33],[125,32,125,33],[126,32,126,33],[127,32,127,33],[128,32,128,33],[172,29,172,30],[173,29,173,30],[98,32,98,33],[99,32,99,33],[100,32,100,33],[101,32,101,33],[102,32,102,33],[103,32,103,33],[104,32,104,33],[105,32,105,33],[106,32,106,33],[107,32,107,33],[108,32,108,33],[109,32,109,33],[110,32,110,33],[111,32,111,33],[112,32,112,33],[113,32,113,33],[114,32,114,33],[115,32,115,33],[116,32,116,33],[117,32,117,33],[118,32,118,33],[119,32,119,33],[163,29,163,30],[164,29,164,30],[165,29,165,30],[166,29,166,30],[167,29,167,30],[168,29,168,30],[169,29,169,30],[170,29,170,30],[171,29,171,30],[154,29,154,30],[155,29,155,30],[156,29,156,30],[157,29,157,30],[158,29,158,30],[159,29,159,30],[160,29,160,30],[161,29,161,30],[162,29,162,30],[145,29,145,30],[146,29,146,30],[147,29,147,30],[148,29,148,30],[149,29,149,30],[150,29,150,30],[151,29,151,30],[152,29,152,30],[153,29,153,30],[136,29,136,30],[137,29,137,30],[138,29,138,30],[139,29,139,30],[140,29,140,30],[141,29,141,30],[142,29,142,30],[143,29,143,30],[144,29,144,30],[127,29,127,30],[128,29,128,30],[129,29,129,30],[130,29,130,30],[131,29,131,30],[132,29,132,30],[133,29,133,30],[134,29,134,30],[135,29,135,30],[118,29,118,30],[119,29,119,30],[120,29,120,30],[121,29,121,30],[122,29,122,30],[123,29,123,30],[124,29,124,30],[125,29,125,30],[126,29,126,30],[170,26,170,27],[171,26,171,27],[172,26,172,27],[173,26,173,27],[98,29,98,30],[99,29,99,30],[100,29,100,30],[101,29,101,30],[102,29,102,30],[103,29,103,30],[104,29,104,30],[105,29,105,30],[106,29,106,30],[107,29,107,30],[108,29,108,30],[109,29,109,30],[110,29,110,30],[111,29,111,30],[112,29,112,30],[113,29,113,30],[114,29,114,30],[115,29,115,30],[116,29,116,30],[117,29,117,30],[161,26,161,27],[162,26,162,27],[163,26,163,27],[164,26,164,27],[165,26,165,27],[166,26,166,27],[167,26,167,27],[168,26,168,27],[169,26,169,27],[152,26,152,27],[153,26,153,27],[154,26,154,27],[155,26,155,27],[156,26,156,27],[157,26,157,27],[158,26,158,27],[159,26,159,27],[160,26,160,27],[143,26,143,27],[144,26,144,27],[145,26,145,27],[146,26,146,27],[147,26,147,27],[148,26,148,27],[149,26,149,27],[150,26,150,27],[151,26,151,27],[134,26,134,27],[135,26,135,27],[136,26,136,27],[137,26,137,27],[138,26,138,27],[139,26,139,27],[140,26,140,27],[141,26,141,27],[142,26,142,27],[125,26,125,27],[126,26,126,27],[127,26,127,27],[128,26,128,27],[129,26,129,27],[130,26,130,27],[131,26,131,27],[132,26,132,27],[133,26,133,27],[116,26,116,27],[117,26,117,27],[118,26,118,27],[119,26,119,27],[120,26,120,27],[121,26,121,27],[122,26,122,27],[123,26,123,27],[124,26,124,27],[168,23,168,24],[169,23,169,24],[170,23,170,24],[171,23,171,24],[172,23,172,24],[173,23,173,24],[98,26,98,27],[99,26,99,27],[100,26,100,27],[101,26,101,27],[102,26,102,27],[103,26,103,27],[104,26,104,27],[105,26,105,27],[106,26,106,27],[107,26,107,27],[108,26,108,27],[109,26,109,27],[110,26,110,27],[111,26,111,27],[112,26,112,27],[113,26,113,27],[114,26,114,27],[115,26,115,27],[159,23,159,24],[160,23,160,24],[161,23,161,24],[162,23,162,24],[163,23,163,24],[164,23,164,24],[165,23,165,24],[166,23,166,24],[167,23,167,24],[150,23,150,24],[151,23,151,24],[152,23,152,24],[153,23,153,24],[154,23,154,24],[155,23,155,24],[156,23,156,24],[157,23,157,24],[158,23,158,24],[141,23,141,24],[142,23,142,24],[143,23,143,24],[144,23,144,24],[145,23,145,24],[146,23,146,24],[147,23,147,24],[148,23,148,24],[149,23,149,24],[132,23,132,24],[133,23,133,24],[134,23,134,24],[135,23,135,24],[136,23,136,24],[137,23,137,24],[138,23,138,24],[139,23,139,24],[140,23,140,24],[123,23,123,24],[124,23,124,24],[125,23,125,24],[126,23,126,24],[127,23,127,24],[128,23,128,24],[129,23,129,24],[130,23,130,24],[131,23,131,24],[114,23,114,24],[115,23,115,24],[116,23,116,24],[117,23,117,24],[118,23,118,24],[119,23,119,24],[120,23,120,24],[121,23,121,24],[122,23,122,24],[166,20,166,21],[167,20,167,21],[168,20,168,21],[169,20,169,21],[170,20,170,21],[171,20,171,21],[172,20,172,21],[173,20,173,21],[98,23,98,24],[99,23,99,24],[100,23,100,24],[101,23,101,24],[102,23,102,24],[103,23,103,24],[104,23,104,24],[105,23,105,24],[106,23,106,24],[107,23,107,24],[108,23,108,24],[109,23,109,24],[110,23,110,24],[111,23,111,24],[112,23,112,24],[113,23,113,24],[157,20,157,21],[158,20,158,21],[159,20,159,21],[160,20,160,21],[161,20,161,21],[162,20,162,21],[163,20,163,21],[164,20,164,21],[165,20,165,21],[148,20,148,21],[149,20,149,21],[150,20,150,21],[151,20,151,21],[152,20,152,21],[153,20,153,21],[154,20,154,21],[155,20,155,21],[156,20,156,21],[139,20,139,21],[140,20,140,21],[141,20,141,21],[142,20,142,21],[143,20,143,21],[144,20,144,21],[145,20,145,21],[146,20,146,21],[147,20,147,21],[130,20,130,21],[131,20,131,21],[132,20,132,21],[133,20,133,21],[134,20,134,21],[135,20,135,21],[136,20,136,21],[137,20,137,21],[138,20,138,21],[121,20,121,21],[122,20,122,21],[123,20,123,21],[124,20,124,21],[125,20,125,21],[126,20,126,21],[127,20,127,21],[128,20,128,21],[129,20,129,21],[173,17,173,18],[98,20,98,21],[99,20,99,21],[100,20,100,21],[101,20,101,21],[102,20,102,21],[103,20,103,21],[104,20,104,21],[105,20,105,21],[106,20,106,21],[107,20,107,21],[108,20,108,21],[109,20,109,21],[110,20,110,21],[111,20,111,21],[112,20,112,21],[113,20,113,21],[114,20,114,21],[115,20,115,21],[116,20,116,21],[117,20,117,21],[118,20,118,21],[119,20,119,21],[120,20,120,21],[164,17,164,18],[165,17,165,18],[166,17,166,18],[167,17,167,18],[168,17,168,18],[169,17,169,18],[170,17,170,18],[171,17,171,18],[172,17,172,18],[155,17,155,18],[156,17,156,18],[157,17,157,18],[158,17,158,18],[159,17,159,18],[160,17,160,18],[161,17,161,18],[162,17,162,18],[163,17,163,18],[146,17,146,18],[147,17,147,18],[148,17,148,18],[149,17,149,18],[150,17,150,18],[151,17,151,18],[152,17,152,18],[153,17,153,18],[154,17,154,18],[137,17,137,18],[138,17,138,18],[139,17,139,18],[140,17,140,18],[141,17,141,18],[142,17,142,18],[143,17,143,18],[144,17,144,18],[145,17,145,18],[128,17,128,18],[129,17,129,18],[130,17,130,18],[131,17,131,18],[132,17,132,18],[133,17,133,18],[134,17,134,18],[135,17,135,18],[136,17,136,18],[119,17,119,18],[120,17,120,18],[121,17,121,18],[122,17,122,18],[123,17,123,18],[124,17,124,18],[125,17,125,18],[126,17,126,18],[127,17,127,18],[171,14,171,15],[172,14,172,15],[173,14,173,15],[98,17,98,18],[99,17,99,18],[100,17,100,18],[101,17,101,18],[102,17,102,18],[103,17,103,18],[104,17,104,18],[105,17,105,18],[106,17,106,18],[107,17,107,18],[108,17,108,18],[109,17,109,18],[110,17,110,18],[111,17,111,18],[112,17,112,18],[113,17,113,18],[114,17,114,18],[115,17,115,18],[116,17,116,18],[117,17,117,18],[118,17,118,18],[162,14,162,15],[163,14,163,15],[164,14,164,15],[165,14,165,15],[166,14,166,15],[167,14,167,15],[168,14,168,15],[169,14,169,15],[170,14,170,15],[153,14,153,15],[154,14,154,15],[155,14,155,15],[156,14,156,15],[157,14,157,15],[158,14,158,15],[159,14,159,15],[160,14,160,15],[161,14,161,15],[144,14,144,15],[145,14,145,15],[146,14,146,15],[147,14,147,15],[148,14,148,15],[149,14,149,15],[150,14,150,15],[151,14,151,15],[152,14,152,15],[135,14,135,15],[136,14,136,15],[137,14,137,15],[138,14,138,15],[139,14,139,15],[140,14,140,15],[141,14,141,15],[142,14,142,15],[143,14,143,15],[126,14,126,15],[127,14,127,15],[128,14,128,15],[129,14,129,15],[130,14,130,15],[131,14,131,15],[132,14,132,15],[133,14,133,15],[134,14,134,15],[117,14,117,15],[118,14,118,15],[119,14,119,15],[120,14,120,15],[121,14,121,15],[122,14,122,15],[123,14,123,15],[124,14,124,15],[125,14,125,15],[169,11,169,12],[170,11,170,12],[171,11,171,12],[172,11,172,12],[173,11,173,12],[98,14,98,15],[99,14,99,15],[100,14,100,15],[101,14,101,15],[102,14,102,15],[103,14,103,15],[104,14,104,15],[105,14,105,15],[106,14,106,15],[107,14,107,15],[108,14,108,15],[109,14,109,15],[110,14,110,15],[111,14,111,15],[112,14,112,15],[113,14,113,15],[114,14,114,15],[115,14,115,15],[116,14,116,15],[160,11,160,12],[161,11,161,12],[162,11,162,12],[163,11,163,12],[164,11,164,12],[165,11,165,12],[166,11,166,12],[167,11,167,12],[168,11,168,12],[151,11,151,12],[152,11,152,12],[153,11,153,12],[154,11,154,12],[155,11,155,12],[156,11,156,12],[157,11,157,12],[158,11,158,12],[159,11,159,12],[142,11,142,12],[143,11,143,12],[144,11,144,12],[145,11,145,12],[146,11,146,12],[147,11,147,12],[148,11,148,12],[149,11,149,12],[150,11,150,12],[133,11,133,12],[134,11,134,12],[135,11,135,12],[136,11,136,12],[137,11,137,12],[138,11,138,12],[139,11,139,12],[140,11,140,12],[141,11,141,12],[124,11,124,12],[125,11,125,12],[126,11,126,12],[127,11,127,12],[128,11,128,12],[129,11,129,12],[130,11,130,12],[131,11,131,12],[132,11,132,12],[115,11,115,12],[116,11,116,12],[117,11,117,12],[118,11,118,12],[119,11,119,12],[120,11,120,12],[121,11,121,12],[122,11,122,12],[123,11,123,12],[106,11,106,12],[107,11,107,12],[108,11,108,12],[109,11,109,12],[110,11,110,12],[111,11,111,12],[112,11,112,12],[113,11,113,12],[114,11,114,12],[97,11,97,12],[98,11,98,12],[99,11,99,12],[100,11,100,12],[101,11,101,12],[102,11,102,12],[103,11,103,12],[104,11,104,12],[105,11,105,12],[155,4,155,6],[166,4,166,6],[167,4,167,6],[168,4,168,6],[169,4,169,6],[170,4,170,6],[171,4,171,6],[172,4,172,6],[173,4,173,6],[157,4,157,6],[158,4,158,6],[159,4,159,6],[160,4,160,6],[161,4,161,6],[162,4,162,6],[163,4,163,6],[164,4,164,6],[165,4,165,6],[146,4,146,6],[147,4,147,6],[148,4,148,6],[149,4,149,6],[150,4,150,6],[151,4,151,6],[152,4,152,6],[153,4,153,6],[154,4,154,6],[137,4,137,6],[138,4,138,6],[139,4,139,6],[140,4,140,6],[141,4,141,6],[142,4,142,6],[143,4,143,6],[144,4,144,6],[145,4,145,6],[128,4,128,6],[129,4,129,6],[130,4,130,6],[131,4,131,6],[132,4,132,6],[133,4,133,6],[134,4,134,6],[135,4,135,6],[136,4,136,6],[119,4,119,6],[120,4,120,6],[121,4,121,6],[122,4,122,6],[123,4,123,6],[124,4,124,6],[125,4,125,6],[126,4,126,6],[127,4,127,6],[93,0,93,10],[12,10,14,10],[12,9,14,9],[12,8,14,8],[12,7,14,7],[12,6,14,6],[12,5,14,5],[12,4,14,4],[12,3,14,3],[12,2,14,2],[12,0,14,0],[104,4,104,6],[105,4,105,6],[106,4,106,6],[107,4,107,6],[108,4,108,6],[109,4,109,6],[110,4,110,6],[156,4,156,6],[96,4,96,6],[97,4,97,6],[98,4,98,6],[99,4,99,6],[100,4,100,6],[101,4,101,6],[102,4,102,6],[103,4,103,6],[111,4,111,6],[112,4,112,6],[113,4,113,6],[114,4,114,6],[115,4,115,6],[116,4,116,6],[117,4,117,6],[118,4,118,6],[94,21,94,22],[94,24,94,25],[94,27,94,28],[94,30,94,31],[94,33,94,34],[94,12,94,13],[94,15,94,16],[94,18,94,19],[94,4,94,6],[2,3,2,6],[17,41,33,48],[1,8,1,15],[11,12,11,13],[11,15,11,16],[11,18,11,19],[11,21,11,22],[11,24,11,25],[11,27,11,28],[11,30,11,31],[11,33,11,34],[16,41,16,42],[2,12,2,15],[3,0,7,4],[8,0,10,6],[8,7,10,35]]}
[]
[null,null,null,null,{"$f":"SUBSTITUTE(SUBSTITUTE(SUBSTITUTE(C17,\" \",\"_\"), \"/\", \"_\"),\"-\",\"_\")","v":"Select_one._"},null,null,null,"Outcome Measurement Tool (OMT)\nMA - Victim Witness Assistance Board\n\nNeed Support? Contact TTACEval@icf.com or call 703-251-0368.\n"]
[null,null,null,"SHORT- AND LONG-TERM OUTCOMES",null,null,null,null,null,null,null,null,"(#3) DATA ENTRY TAB"]
["Subrecipients are expected to implement a standard set of key outcomes to demonstrate what has been achieved by their program. This section is meant to capture what you may already be collecting. It also provides recommendations for potential areas based on what we know about the impact of VOCA across the Commonwealth and utilizing existing logic models. This will allow for similar programs to select common measures, while maintaining options for unique contributions. During each reporting period, you will provide the average or overall outcome for each measure entered in this section for that period. How many times that question was administered is captured in the \"Demographics\" tab to auto-calculate the response rate. New measures can be introduced as your program develops and instrumentation changes; however, do not change the outcomes between reporting periods without consulting your MOVA Grant Manager. These items correspond to approved program logic models. Sample measures are included in the dropdown options within the OMT below and supporting materials provided. Refer to the Appendix for additional information."]
[]
[]
[]
[]
["SECTION 16: Short and Long-term Outcomes\n\nStep 1 - Select Strategic Area: Following the same strategic areas specified in the previous tab, select the appropriate label for the corresponding strategic area for the outcome being measured. Choose from several options or create your own description (i.e., Mental Health Services, Housing and Shelter). \n\nStep 2 - Determine Outcome Type: Select from the dropdown who or what the outcome is focused on. This includes options such as client outcomes, staff-based outcome, quality of services, outreach, organizational-level outcomes, collaboration and referral, specific populations, and other. For example, if one of your program goals is related to training staff on trauma-informed practices, here is where you will have an opportunity to specify that the corresponding outcomes is related to staff outcomes from the training(s).  \n\nStep 3 - Select Sub-Category: Once you have selected an Outcome Type, you will then further classify the sub-category the short- or long-term outcome is related to, which will further define the associated strategic areas.  Examples are provided below to show potential sub-categories to be selected within a specific outcome type.  \n\nStep 4 - Define Question/Measure: For each outcome, describe how it was measured. Often times this will be through either client surveys, program data on service levels, case management data, tracking of referral outcomes, or results from assessments. Programs are able to enter information for each measure utilized or a combination of measures that assess a key construct such as client well-being. In this example, you might include individual measures for mental health, employment, housing, and safety or select to include client well-being overall. \n\nStep 5 - Specify Scale/Range: Provide the detailed related to each outcome to explain how it was measured. The options include selecting from a dropdown list of sample measures where you can include whether it was a quantitative or qualitative, type of scale if applicable (e.g., 5 response options), and types of responses (e.g., agreement items, true/false statements, yes/no, etc.). \n\nStep 6 - Enter Milestone: Provide the milestone included in the program logic model for the corresponding item to show what you plan to achieve by the end of your award. There is additional space to provide more detail regarding the milestone given that non-numeric milestones require additional information.\n\nDuring each reporting period:\nUpdate Findings for current reporting period: Enter the average score or result for the specified outcome during each reporting period. For example, if you asked program participants about how well the service met their needs/expectations using a 10-point scale from “did not meet my needs/expectations at all” to “met all of my needs/expectations,” you would enter the average response for each reporting period on that item. You may have a goal of achieving an 8 out of 10 over the course of the program."]
[]
[]
[null,null,null,null,null,null,null,null,null,null,null,null,"Reporting Period 1",null,null,"Reporting Period 2",null,null,"Reporting Period 3",null,null,"Reporting Period 4",null,null,"Reporting Period 5",null,null,"Reporting Period 6",null,null,"Reporting Period 7",null,null,"Reporting Period 8",null,"Overall Average\n(auto-calculated)"]
["Strategic Area\n\nThe strategic area related to the outcomes.\n\n","Goal\nThe goal related to the outcomes","Outcome Type\n\nWho/What is the outcome \nfocused on?\n\n","Sub-Category\n\nFurther classify outcomes.","Question/Measure/Item\n\nInclude the full text for the questions that are \nadministered to assess outcomes.","Define Measure\n\nType of response options to the specified question.","Scale Range\n\nWhat are the response options?\n\nDefine the highest and lowest value with descriptors to tell what the number represents","Short or Long-Term\n\nSelect the timing for when this outcome is measured in terms of whether it is listed as short- or long-term within your logic model.","Milestone\n\nTarget set to assist with tracking progress toward your goals. ","Milestone Note \n\nProvide description or addiitonal information to help interpret the milestone and details contained within this row. \n\n If you have multiple awards, use the open-ended field here to specify which award the entries apply to.","Data Collection/Administration \n\nOptional - Provide a brief description for how this information was collected (e.g., surveys, interviews, case data, after each session).",null,"Response Rate\n Overall:",{"$f":"'PMT Summary'!I211/'PMT Summary'!I207","v":{"$error":"#DIV/0!"}},null,"Response Rate\n Overall:",{"$f":"'PMT Summary'!K211/'PMT Summary'!K207","v":{"$error":"#DIV/0!"}},null,"Response Rate\n Overall:",{"$f":"'PMT Summary'!M211/'PMT Summary'!M207","v":{"$error":"#DIV/0!"}},null,"Response Rate\n Overall:",{"$f":"'PMT Summary'!O211/'PMT Summary'!O207","v":{"$error":"#DIV/0!"}},null,"Response Rate\n Overall:",{"$f":"'PMT Summary'!Q211/'PMT Summary'!Q207","v":{"$error":"#DIV/0!"}},null,"Response Rate\n Overall:",{"$f":"'PMT Summary'!S211/'PMT Summary'!S207","v":{"$error":"#DIV/0!"}},null,"Response Rate\n Overall:",{"$f":"'PMT Summary'!U211/'PMT Summary'!U207","v":{"$error":"#DIV/0!"}},null,"Response Rate\n Overall:",{"$f":"'PMT Summary'!W211/'PMT Summary'!W207","v":{"$error":"#DIV/0!"}},{"$f":"AVERAGE(AI13,AF13,AC13,Z13,W13,T13,Q13,N13)","v":{"$error":"#DIV/0!"}}]
[null,null,null,null,null,null,null,null,null,null,null,null,"Response Rate\nStaff:",{"$f":"'1. Demographics'!H327/'1. Demographics'!H331","v":{"$error":"#DIV/0!"}},null,"Response Rate\nStaff:",{"$f":"'1. Demographics'!K327/'1. Demographics'!K331","v":{"$error":"#DIV/0!"}},null,"Response Rate\nStaff:",{"$f":"'1. Demographics'!N327/'1. Demographics'!N331","v":{"$error":"#DIV/0!"}},null,"Response Rate\nStaff:",{"$f":"'1. Demographics'!Q327/'1. Demographics'!Q331","v":{"$error":"#DIV/0!"}},null,"Response Rate\nStaff:",{"$f":"'1. Demographics'!T327/'1. Demographics'!T331","v":{"$error":"#DIV/0!"}},null,"Response Rate\nStaff:",{"$f":"'1. Demographics'!W327/'1. Demographics'!W331","v":{"$error":"#DIV/0!"}},null,"Response Rate\nStaff:",{"$f":"'1. Demographics'!Z327/'1. Demographics'!Z331","v":{"$error":"#DIV/0!"}},null,"Response Rate\nStaff:",{"$f":"'1. Demographics'!AC327/'1. Demographics'!AC331","v":{"$error":"#DIV/0!"}},{"$f":"AVERAGE(AI14,AF14,AC14,Z14,W14,T14,Q14,N14)","v":{"$error":"#DIV/0!"}}]
[null,null,null,null,null,null,null,null,null,null,null,null,"Input Score Below","Total Number of Times Collected/ Individuals",null,"Input Score Below","Total Number of Times Collected/ Individuals",null,"Input Score Below","Total Number of Times Collected/ Individuals",null,"Input Score Below","Total Number of Times Collected/ Individuals",null,"Input Score Below","Total Number of Times Collected/ Individuals",null,"Input Score Below","Total Number of Times Collected/ Individuals",null,"Input Score Below","Total Number of Times Collected/ Individuals",null,"Input Score Below","Total Number of Times Collected/ Individuals"]
["Case Management and Advocacy","To empower the victim post-trauma","Client/Participant/Self-Reported","Example: Improve Well-Being OR Safety and Protection","The services I received helped improve my sense of safety and security.","Ordered scale (Likert)","1 = Strongly Disagree, \n5 = Strongly Agree","Short-term outcome",4,"Single item (Likert scale) averaged across all participatints to show the overall score.","Administered as a paper-pencil questionnaire after each session with clients; voluntary and based on readiness to be included",null,4,45,null,4.5,20,null,4,10,null,4,14,null,3.5,62,null,3.5,12,null,4.5,19,null,4,10,{"$f":"AVERAGE(M16,P16,S16,V16,Y16,AB16,AE16,AH16)","v":4}]
["Select Strategic Area","To reduce trauma symptoms of crime victims who are engaged in mental health services","Select one. ",null,null,"Select type.",null,"Select option.",null,null,null,null,null,null,null,null,null,null,null,null,null,null,null,null,null,null,null,null,null,null,null,null,null,null,null,{"$f":"AVERAGE(M17,P17,S17,V17,Y17,AB17,AE17,AH17)","v":{"$error":"#DIV/0!"}},null,null,null,null,null,"NOTES:"]
["Select Strategic Area",null,"Select one.",null,null,"Select type.",null,"Select option.",null,null,null,null,null,null,null,null,null,null,null,null,null,null,null,null,null,null,null,null,null,null,null,null,null,null,null,{"$error":"#DIV/0!"}]
["Select Strategic Area",null,"Select one.",null,null,"Select type.",null,"Select option.",null,null,null,null,null,null,null,null,null,null,null,null,null,null,null,null,null,null,null,null,null,null,null,null,null,null,null,{"$error":"#DIV/0!"}]
["Select Strategic Area",null,"Select one.",null,null,"Select type.",null,"Select option.",null,null,null,null,null,null,null,null,null,null,null,null,null,null,null,null,null,null,null,null,null,null,null,null,null,null,null,{"$error":"#DIV/0!"}]
["Select Strategic Area",null,"Select one.",null,null,"Select type.",null,"Select option.",null,null,null,null,null,null,null,null,null,null,null,null,null,null,null,null,null,null,null,null,null,null,null,null,null,null,null,{"$error":"#DIV/0!"}]
["Select Strategic Area",null,"Select one.",null,null,"Select type.",null,"Select option.",null,null,null,null,null,null,null,null,null,null,null,null,null,null,null,null,null,null,null,null,null,null,null,null,null,null,null,{"$error":"#DIV/0!"}]
["Select Strategic Area",null,"Select one.",null,null,"Select type.",null,"Select option.",null,null,null,null,null,null,null,null,null,null,null,null,null,null,null,null,null,null,null,null,null,null,null,null,null,null,null,{"$error":"#DIV/0!"}]
["Select Strategic Area",null,"Select one.",null,null,"Select type.",null,"Select option.",null,null,null,null,null,null,null,null,null,null,null,null,null,null,null,null,null,null,null,null,null,null,null,null,null,null,null,{"$error":"#DIV/0!"}]
["Select Strategic Area",null,"Select one.",null,null,"Select type.",null,"Select option.",null,null,null,null,null,null,null,null,null,null,null,null,null,null,null,null,null,null,null,null,null,null,null,null,null,null,null,{"$error":"#DIV/0!"}]
["Select Strategic Area",null,"Select one.",null,null,"Select type.",null,"Select option.",null,null,null,null,null,null,null,null,null,null,null,null,null,null,null,null,null,null,null,null,null,null,null,null,null,null,null,{"$error":"#DIV/0!"}]
["Select Strategic Area",null,"Select one.",null,null,"Select type.",null,"Select option.",null,null,null,null,null,null,null,null,null,null,null,null,null,null,null,null,null,null,null,null,null,null,null,null,null,null,null,{"$error":"#DIV/0!"}]
["Select Strategic Area",null,"Select one.",null,null,"Select type.",null,"Select option.",null,null,null,null,null,null,null,null,null,null,null,null,null,null,null,null,null,null,null,null,null,null,null,null,null,null,null,{"$error":"#DIV/0!"}]
["Select Strategic Area",null,"Select one.",null,null,"Select type.",null,"Select option.",null,null,null,null,null,null,null,null,null,null,null,null,null,null,null,null,null,null,null,null,null,null,null,null,null,null,null,{"$error":"#DIV/0!"}]
["Select Strategic Area",null,"Select one.",null,null,"Select type.",null,"Select option.",null,null,null,null,null,null,null,null,null,null,null,null,null,null,null,null,null,null,null,null,null,null,null,null,null,null,null,{"$error":"#DIV/0!"}]
["Select Strategic Area",null,"Select one.",null,null,"Select type.",null,"Select option.",null,null,null,null,null,null,null,null,null,null,null,null,null,null,null,null,null,null,null,null,null,null,null,null,null,null,null,{"$error":"#DIV/0!"}]
["Select Strategic Area",null,"Select one.",null,null,"Select type.",null,"Select option.",null,null,null,null,null,null,null,null,null,null,null,null,null,null,null,null,null,null,null,null,null,null,null,null,null,null,null,{"$error":"#DIV/0!"}]
["Select Strategic Area",null,"Select one.",null,null,"Select type.",null,"Select option.",null,null,null,null,null,null,null,null,null,null,null,null,null,null,null,null,null,null,null,null,null,null,null,null,null,null,null,{"$error":"#DIV/0!"}]
["Select Strategic Area",null,"Select one.",null,null,"Select type.",null,"Select option.",null,null,null,null,null,null,null,null,null,null,null,null,null,null,null,null,null,null,null,null,null,null,null,null,null,null,null,{"$error":"#DIV/0!"}]
["Select Strategic Area",null,"Select one.",null,null,"Select type.",null,"Select option.",null,null,null,null,null,null,null,null,null,null,null,null,null,null,null,null,null,null,null,null,null,null,null,null,null,null,null,{"$error":"#DIV/0!"}]
["Select Strategic Area",null,"Select one.",null,null,"Select type.",null,"Select option.",null,null,null,null,null,null,null,null,null,null,null,null,null,null,null,null,null,null,null,null,null,null,null,null,null,null,null,{"$error":"#DIV/0!"}]
["Select Strategic Area",null,"Select one.",null,null,"Select type.",null,"Select option.",null,null,null,null,null,null,null,null,null,null,null,null,null,null,null,null,null,null,null,null,null,null,null,null,null,null,null,{"$error":"#DIV/0!"}]
["Select Strategic Area",null,"Select one.",null,null,"Select type.",null,"Select option.",null,null,null,null,null,null,null,null,null,null,null,null,null,null,null,null,null,null,null,null,null,null,null,null,null,null,null,{"$error":"#DIV/0!"}]
["Select Strategic Area",null,"Select one.",null,null,"Select type.",null,"Select option.",null,null,null,null,null,null,null,null,null,null,null,null,null,null,null,null,null,null,null,null,null,null,null,null,null,null,null,{"$error":"#DIV/0!"}]
["Select Strategic Area",null,"Select one.",null,null,"Select type.",null,"Select option.",null,null,null,null,null,null,null,null,null,null,null,null,null,null,null,null,null,null,null,null,null,null,null,null,null,null,null,{"$error":"#DIV/0!"}]
["Select Strategic Area",null,"Select one.",null,null,"Select type.",null,"Select option.",null,null,null,null,null,null,null,null,null,null,null,null,null,null,null,null,null,null,null,null,null,null,null,null,null,null,null,{"$error":"#DIV/0!"}]
["Select Strategic Area",null,"Select one.",null,null,"Select type.",null,"Select option.",null,null,null,null,null,null,null,null,null,null,null,null,null,null,null,null,null,null,null,null,null,null,null,null,null,null,null,{"$error":"#DIV/0!"}]
["Select Strategic Area",null,"Select one.",null,null,"Select type.",null,"Select option.",null,null,null,null,null,null,null,null,null,null,null,null,null,null,null,null,null,null,null,null,null,null,null,null,null,null,null,{"$error":"#DIV/0!"}]
["Select Strategic Area",null,"Select one.",null,null,"Select type.",null,"Select option.",null,null,null,null,null,null,null,null,null,null,null,null,null,null,null,null,null,null,null,null,null,null,null,null,null,null,null,{"$error":"#DIV/0!"}]
["Select Strategic Area",null,"Select one.",null,null,"Select type.",null,"Select option.",null,null,null,null,null,null,null,null,null,null,null,null,null,null,null,null,null,null,null,null,null,null,null,null,null,null,null,{"$error":"#DIV/0!"}]
["Select Strategic Area",null,"Select one.",null,null,"Select type.",null,"Select option.",null,null,null,null,null,null,null,null,null,null,null,null,null,null,null,null,null,null,null,null,null,null,null,null,null,null,null,{"$error":"#DIV/0!"}]
["Select Strategic Area",null,"Select one.",null,null,"Select type.",null,"Select option.",null,null,null,null,null,null,null,null,null,null,null,null,null,null,null,null,null,null,null,null,null,null,null,null,null,null,null,{"$error":"#DIV/0!"}]
["Select Strategic Area",null,"Select one.",null,null,"Select type.",null,"Select option.",null,null,null,null,null,null,null,null,null,null,null,null,null,null,null,null,null,null,null,null,null,null,null,null,null,null,null,{"$error":"#DIV/0!"}]
["Select Strategic Area",null,"Select one.",null,null,"Select type.",null,"Select option.",null,null,null,null,null,null,null,null,null,null,null,null,null,null,null,null,null,null,null,null,null,null,null,null,null,null,null,{"$error":"#DIV/0!"}]
["Select Strategic Area",null,"Select one.",null,null,"Select type.",null,"Select option.",null,null,null,null,null,null,null,null,null,null,null,null,null,null,null,null,null,null,null,null,null,null,null,null,null,null,null,{"$error":"#DIV/0!"}]
["Select Strategic Area",null,"Select one.",null,null,"Select type.",null,"Select option.",null,null,null,null,null,null,null,null,null,null,null,null,null,null,null,null,null,null,null,null,null,null,null,null,null,null,null,{"$error":"#DIV/0!"}]
["Select Strategic Area",null,"Select one.",null,null,"Select type.",null,"Select option.",null,null,null,null,null,null,null,null,null,null,null,null,null,null,null,null,null,null,null,null,null,null,null,null,null,null,null,{"$error":"#DIV/0!"}]
["Select Strategic Area",null,"Select one.",null,null,"Select type.",null,"Select option.",null,null,null,null,null,null,null,null,null,null,null,null,null,null,null,null,null,null,null,null,null,null,null,null,null,null,null,{"$error":"#DIV/0!"}]
["Select Strategic Area",null,"Select one.",null,null,"Select type.",null,"Select option.",null,null,null,null,null,null,null,null,null,null,null,null,null,null,null,null,null,null,null,null,null,null,null,null,null,null,null,{"$error":"#DIV/0!"}]
["Select Strategic Area",null,"Select one.",null,null,"Select type.",null,"Select option.",null,null,null,null,null,null,null,null,null,null,null,null,null,null,null,null,null,null,null,null,null,null,null,null,null,null,null,{"$error":"#DIV/0!"}]
["Select Strategic Area",null,"Select one.",null,null,"Select type.",null,"Select option.",null,null,null,null,null,null,null,null,null,null,null,null,null,null,null,null,null,null,null,null,null,null,null,null,null,null,null,{"$error":"#DIV/0!"}]
["Select Strategic Area",null,"Select one.",null,null,"Select type.",null,"Select option.",null,null,null,null,null,null,null,null,null,null,null,null,null,null,null,null,null,null,null,null,null,null,null,null,null,null,null,{"$error":"#DIV/0!"}]
["Select Strategic Area",null,"Select one.",null,null,"Select type.",null,"Select option.",null,null,null,null,null,null,null,null,null,null,null,null,null,null,null,null,null,null,null,null,null,null,null,null,null,null,null,{"$error":"#DIV/0!"}]
["Select Strategic Area",null,"Select one.",null,null,"Select type.",null,"Select option.",null,null,null,null,null,null,null,null,null,null,null,null,null,null,null,null,null,null,null,null,null,null,null,null,null,null,null,{"$error":"#DIV/0!"}]
["Select Strategic Area",null,"Select one.",null,null,"Select type.",null,"Select option.",null,null,null,null,null,null,null,null,null,null,null,null,null,null,null,null,null,null,null,null,null,null,null,null,null,null,null,{"$error":"#DIV/0!"}]
["Select Strategic Area",null,"Select one.",null,null,"Select type.",null,"Select option.",null,null,null,null,null,null,null,null,null,null,null,null,null,null,null,null,null,null,null,null,null,null,null,null,null,null,null,{"$error":"#DIV/0!"}]
["Select Strategic Area",null,"Select one.",null,null,"Select type.",null,"Select option.",null,null,null,null,null,null,null,null,null,null,null,null,null,null,null,null,null,null,null,null,null,null,null,null,null,null,null,{"$error":"#DIV/0!"}]
["Select Strategic Area",null,"Select one.",null,null,"Select type.",null,"Select option.",null,null,null,null,null,null,null,null,null,null,null,null,null,null,null,null,null,null,null,null,null,null,null,null,null,null,null,{"$error":"#DIV/0!"}]
["Select Strategic Area",null,"Select one.",null,null,"Select type.",null,"Select option.",null,null,null,null,null,null,null,null,null,null,null,null,null,null,null,null,null,null,null,null,null,null,null,null,null,null,null,{"$error":"#DIV/0!"}]
["Select Strategic Area",null,"Select one.",null,null,"Select type.",null,"Select option.",null,null,null,null,null,null,null,null,null,null,null,null,null,null,null,null,null,null,null,null,null,null,null,null,null,null,null,{"$error":"#DIV/0!"}]
["Select Strategic Area",null,"Select one.",null,null,"Select type.",null,"Select option.",null,null,null,null,null,null,null,null,null,null,null,null,null,null,null,null,null,null,null,null,null,null,null,null,null,null,null,{"$error":"#DIV/0!"}]
["Select Strategic Area",null,"Select one.",null,null,"Select type.",null,"Select option.",null,null,null,null,null,null,null,null,null,null,null,null,null,null,null,null,null,null,null,null,null,null,null,null,null,null,null,{"$error":"#DIV/0!"}]
["Select Strategic Area",null,"Select one.",null,null,"Select type.",null,"Select option.",null,null,null,null,null,null,null,null,null,null,null,null,null,null,null,null,null,null,null,null,null,null,null,null,null,null,null,{"$error":"#DIV/0!"}]
["Select Strategic Area",null,"Select one.",null,null,"Select type.",null,"Select option.",null,null,null,null,null,null,null,null,null,null,null,null,null,null,null,null,null,null,null,null,null,null,null,null,null,null,null,{"$error":"#DIV/0!"}]
["Select Strategic Area",null,"Select one.",null,null,"Select type.",null,"Select option.",null,null,null,null,null,null,null,null,null,null,null,null,null,null,null,null,null,null,null,null,null,null,null,null,null,null,null,{"$error":"#DIV/0!"}]
["Select Strategic Area",null,"Select one.",null,null,"Select type.",null,"Select option.",null,null,null,null,null,null,null,null,null,null,null,null,null,null,null,null,null,null,null,null,null,null,null,null,null,null,null,{"$error":"#DIV/0!"}]
["Select Strategic Area",null,"Select one.",null,null,"Select type.",null,"Select option.",null,null,null,null,null,null,null,null,null,null,null,null,null,null,null,null,null,null,null,null,null,null,null,null,null,null,null,{"$error":"#DIV/0!"}]
["Select Strategic Area",null,"Select one.",null,null,"Select type.",null,"Select option.",null,null,null,null,null,null,null,null,null,null,null,null,null,null,null,null,null,null,null,null,null,null,null,null,null,null,null,{"$error":"#DIV/0!"}]
["Select Strategic Area",null,"Select one.",null,null,"Select type.",null,"Select option.",null,null,null,null,null,null,null,null,null,null,null,null,null,null,null,null,null,null,null,null,null,null,null,null,null,null,null,{"$error":"#DIV/0!"}]
["Select Strategic Area",null,"Select one.",null,null,"Select type.",null,"Select option.",null,null,null,null,null,null,null,null,null,null,null,null,null,null,null,null,null,null,null,null,null,null,null,null,null,null,null,{"$error":"#DIV/0!"}]
["Select Strategic Area",null,"Select one.",null,null,"Select type.",null,"Select option.",null,null,null,null,null,null,null,null,null,null,null,null,null,null,null,null,null,null,null,null,null,null,null,null,null,null,null,{"$error":"#DIV/0!"}]
["Select Strategic Area",null,"Select one.",null,null,"Select type.",null,"Select option.",null,null,null,null,null,null,null,null,null,null,null,null,null,null,null,null,null,null,null,null,null,null,null,null,null,null,null,{"$error":"#DIV/0!"}]
["Select Strategic Area",null,"Select one.",null,null,"Select type.",null,"Select option.",null,null,null,null,null,null,null,null,null,null,null,null,null,null,null,null,null,null,null,null,null,null,null,null,null,null,null,{"$error":"#DIV/0!"}]
["Select Strategic Area",null,"Select one.",null,null,"Select type.",null,"Select option.",null,null,null,null,null,null,null,null,null,null,null,null,null,null,null,null,null,null,null,null,null,null,null,null,null,null,null,{"$error":"#DIV/0!"}]
["Select Strategic Area",null,"Select one.",null,null,"Select type.",null,"Select option.",null,null,null,null,null,null,null,null,null,null,null,null,null,null,null,null,null,null,null,null,null,null,null,null,null,null,null,{"$error":"#DIV/0!"}]
["Select Strategic Area",null,"Select one.",null,null,"Select type.",null,"Select option.",null,null,null,null,null,null,null,null,null,null,null,null,null,null,null,null,null,null,null,null,null,null,null,null,null,null,null,{"$f":"AVERAGE(M81,P81,S81,V81,Y81,AB81,AE81,AH81)","v":{"$error":"#DIV/0!"}}]
["Select Strategic Area",null,"Select one.",null,null,"Select type.",null,"Select option.",null,null,null,null,null,null,null,null,null,null,null,null,null,null,null,null,null,null,null,null,null,null,null,null,null,null,null,{"$error":"#DIV/0!"}]
["Select Strategic Area",null,"Select one.",null,null,"Select type.",null,"Select option.",null,null,null,null,null,null,null,null,null,null,null,null,null,null,null,null,null,null,null,null,null,null,null,null,null,null,null,{"$error":"#DIV/0!"}]
["Select Strategic Area",null,"Select one.",null,null,"Select type.",null,"Select option.",null,null,null,null,null,null,null,null,null,null,null,null,null,null,null,null,null,null,null,null,null,null,null,null,null,null,null,{"$error":"#DIV/0!"}]
["Select Strategic Area",null,"Select one.",null,null,"Select type.",null,"Select option.",null,null,null,null,null,null,null,null,null,null,null,null,null,null,null,null,null,null,null,null,null,null,null,null,null,null,null,{"$error":"#DIV/0!"}]
["Select Strategic Area",null,"Select one.",null,null,"Select type.",null,"Select option.",null,null,null,null,null,null,null,null,null,null,null,null,null,null,null,null,null,null,null,null,null,null,null,null,null,null,null,{"$error":"#DIV/0!"}]
["Select Strategic Area",null,"Select one.",null,null,"Select type.",null,"Select option.",null,null,null,null,null,null,null,null,null,null,null,null,null,null,null,null,null,null,null,null,null,null,null,null,null,null,null,{"$error":"#DIV/0!"}]
["Select Strategic Area",null,"Select one.",null,null,"Select type.",null,"Select option.",null,null,null,null,null,null,null,null,null,null,null,null,null,null,null,null,null,null,null,null,null,null,null,null,null,null,null,{"$error":"#DIV/0!"}]
["Select Strategic Area",null,"Select one.",null,null,"Select type.",null,"Select option.",null,null,null,null,null,null,null,null,null,null,null,null,null,null,null,null,null,null,null,null,null,null,null,null,null,null,null,{"$error":"#DIV/0!"}]
["Select Strategic Area",null,"Select one.",null,null,"Select type.",null,"Select option.",null,null,null,null,null,null,null,null,null,null,null,null,null,null,null,null,null,null,null,null,null,null,null,null,null,null,null,{"$error":"#DIV/0!"}]
["Select Strategic Area",null,"Select one.",null,null,"Select type.",null,"Select option.",null,null,null,null,null,null,null,null,null,null,null,null,null,null,null,null,null,null,null,null,null,null,null,null,null,null,null,{"$error":"#DIV/0!"}]
["Select Strategic Area",null,"Select one.",null,null,"Select type.",null,"Select option.",null,null,null,null,null,null,null,null,null,null,null,null,null,null,null,null,null,null,null,null,null,null,null,null,null,null,null,{"$error":"#DIV/0!"}]
["Select Strategic Area",null,"Select one.",null,null,"Select type.",null,"Select option.",null,null,null,null,null,null,null,null,null,null,null,null,null,null,null,null,null,null,null,null,null,null,null,null,null,null,null,{"$error":"#DIV/0!"}]
["SECTION 16b: Open Ended Responses\nFor some agencies, open ended responses from victims, staff and community members may provide additional information about short- and long-term outcome achievement. \n1.) Examine any open-ended questions asked in surveys, evaluations or other methods of collecting feedback. \n2.) Determine the related strategic area and goal and enter the information in the appropriate area. \n3.) For each outcome, determine the focus of it (clients, perception of staff or quality of services) from Outcome Type and the main theme of the outcome from Category. \n4.) In the Question column write the question you are asking staff, clients or community members to determine your organization's performance for the selected outcome. \n5.)Each reporting period, review your open ended comments and find the most prevelant theme for that reporting period. Write the top theme under the correct reporting tab and indicate how many of the responses included that theme. "]
["Strategic Area\n\nThe strategic area related to the outcomes.\n","Goal\nThe goal related to the outcomes","Outcome Type\n\nWho/What is the outcome focused on?","Category\n\nMain themes of outcomes.","Question\n\nInclude the full text for the questions that are \nadministered to assess outcomes.",null,null,"Short or Long-Term\n\nSelect the timing for when this outcome is measured in terms of whether it is listed as short- or long-term within your logic model.","Milestone\n\nTarget set to assist with tracking progress toward your goals. For example, what is the expected theme to emerge.","Milestone Note \n\nProvide description or additional information to help interpret the milestone and details contained within this row. ","Data Collection/Administration \n\nOptional - Provide a brief description for how this information was collected (e.g., surveys, interviews, case data, after each session).",null,"Reporting Period 1",null,null,"Reporting Period 2",null,null,"Reporting Period 3",null,null,"Reporting Period 4",null,null,"Reporting Period 5",null,null,"Reporting Period 6",null,null,"Reporting Period 7",null,null,"Reporting Period 8"]
[null,null,null,null,null,null,null,null,null,null,null,null,"Top Theme","%",null,"Top Theme","%",null,"Top Theme","%",null,"Top Theme","%",null,"Top Theme","%",null,"Top Theme","%",null,"Top Theme","%",null,"Top Theme","%"]
["Case Management and Advocacy",null,"Client/Participant/Self-Reported","Client/Victim Well-Being","What was most helpful about the program? ",null,null,"Short-term outcome","Responsive Staff","Focused on staff training, diversification, and lived experience - goal of higher satisfaction with staff engaged","Closeout survey - 5 items asking about areas to improve the program","Staff",null,0.8,"Staff",null,0.74,"Staff",null,0.74,"Staff",null,0.65,"Staff",null,0.8,"Staff",null,0.82,"Staff",null,0.79,"Staff",null,0.8]
["Select Strategic Area","To empower the victim post-trauma","Select one. ",null,null,null,null,"Select option."]
["Select Strategic Area",null,"Select one.",null,null,null,null,"Select option."]
["Select Strategic Area",null,"Select one.",null,null,null,null,"Select option."]
["Select Strategic Area",null,"Select one.",null,null,null,null,"Select option."]
["Select Strategic Area",null,"Select one.",null,null,null,null,"Select option."]
["Select Strategic Area",null,"Select one.",null,null,null,null,"Select option."]
["Select Strategic Area",null,"Select one.",null,null,null,null,"Select option."]
["Select Strategic Area",null,"Select one.",null,null,null,null,"Select option."]
["Select Strategic Area",null,"Select one.",null,null,null,null,"Select option."]
["Select Strategic Area",null,"Select one.",null,null,null,null,"Select option."]
["Select Strategic Area",null,"Select one.",null,null,null,null,"Select option."]
["Select Strategic Area",null,"Select one.",null,null,null,null,"Select option."]
["Select Strategic Area",null,"Select one.",null,null,null,null,"Select option."]
["Select Strategic Area",null,"Select one.",null,null,null,null,"Select option."]
["Select Strategic Area",null,"Select one.",null,null,null,null,"Select option."]
["Select Strategic Area",null,"Select one.",null,null,null,null,"Select option."]
["Select Strategic Area",null,"Select one.",null,null,null,null,"Select option."]
["Select Strategic Area",null,"Select one.",null,null,null,null,"Select option."]
["Select Strategic Area",null,"Select one.",null,null,null,null,"Select option."]
["Select Strategic Area",null,"Select one.",null,null,null,null,"Select option."]
["Select Strategic Area",null,"Select one.",null,null,null,null,"Select option."]
["Select Strategic Area",null,"Select one.",null,null,null,null,"Select option."]
["Select Strategic Area",null,"Select one.",null,null,null,null,"Select option."]
["Select Strategic Area",null,"Select one.",null,null,null,null,"Select option."]
["Select Strategic Area",null,"Select one.",null,null,null,null,"Select option."]
["Select Strategic Area",null,"Select one.",null,null,null,null,"Select option."]
["Select Strategic Area",null,"Select one.",null,null,null,null,"Select option."]
["Select Strategic Area",null,"Select one.",null,null,null,null,"Select option."]
["Select Strategic Area",null,"Select one.",null,null,null,null,"Select option."]
["Select Strategic Area",null,"Select one.",null,null,null,null,"Select option."]
["Select Strategic Area",null,"Select one.",null,null,null,null,"Select option."]
["Select Strategic Area",null,"Select one.",null,null,null,null,"Select option."]
["Select Strategic Area",null,"Select one.",null,null,null,null,"Select option."]
["Select Strategic Area",null,"Select one.",null,null,null,null,"Select option."]
["Select Strategic Area",null,"Select one.",null,null,null,null,"Select option."]
["Select Strategic Area",null,"Select one.",null,null,null,null,"Select option."]
["Select Strategic Area",null,"Select one.",null,null,null,null,"Select option."]
["Select Strategic Area",null,"Select one.",null,null,null,null,"Select option."]
["Select Strategic Area",null,"Select one.",null,null,null,null,"Select option."]
["Select Strategic Area",null,"Select one.",null,null,null,null,"Select option."]
["Select Strategic Area",null,"Select one.",null,null,null,null,"Select option."]
["Select Strategic Area",null,"Select one.",null,null,null,null,"Select option."]
["Select Strategic Area",null,"Select one.",null,null,null,null,"Select option."]
["Select Strategic Area",null,"Select one.",null,null,null,null,"Select option."]
["Select Strategic Area",null,"Select one.",null,null,null,null,"Select option."]
["Select Strategic Area",null,"Select one.",null,null,null,null,"Select option."]
["Select Strategic Area",null,"Select one.",null,null,null,null,"Select option."]
["Select Strategic Area",null,"Select one.",null,null,null,null,"Select option."]
["Select Strategic Area",null,"Select one.",null,null,null,null,"Select option."]
["Select Strategic Area",null,"Select one.",null,null,null,null,"Select option."]
["Select Strategic Area",null,"Select one.",null,null,null,null,"Select option."]
["Select Strategic Area",null,"Select one.",null,null,null,null,"Select option."]
["Select Strategic Area",null,"Select one.",null,null,null,null,"Select option."]
["Select Strategic Area",null,"Select one.",null,null,null,null,"Select option."]
["Select Strategic Area",null,"Select one.",null,null,null,null,"Select option."]
["Select Strategic Area",null,"Select one.",null,null,null,null,"Select option."]
["Select Strategic Area",null,"Select one.",null,null,null,null,"Select option."]
["Select Strategic Area",null,"Select one.",null,null,null,null,"Select option."]
["Select Strategic Area",null,"Select one.",null,null,null,null,"Select option."]
["Select Strategic Area",null,"Select one.",null,null,null,null,"Select option."]
["Select Strategic Area",null,"Select one.",null,null,null,null,"Select option."]
["Select Strategic Area",null,"Select one.",null,null,null,null,"Select option."]
["Select Strategic Area",null,"Select one.",null,null,null,null,"Select option."]
["Select Strategic Area",null,"Select one.",null,null,null,null,"Select option."]
["Select Strategic Area",null,"Select one.",null,null,null,null,"Select option."]
["Select Strategic Area",null,"Select one.",null,null,null,null,"Select option."]
["Select Strategic Area",null,"Select one.",null,null,null,null,"Select option."]
["Select Strategic Area",null,"Select one.",null,null,null,null,"Select option."]
["Select Strategic Area",null,"Select one.",null,null,null,null,"Select option."]
["Select Strategic Area",null,"Select one.",null,null,null,null,"Select option."]
["Select Strategic Area",null,"Select one.",null,null,null,null,"Select option."]
["Select Strategic Area",null,"Select one.",null,null,null,null,"Select option."]
["Select Strategic Area",null,"Select one.",null,null,null,null,"Select option."]
["Select Strategic Area",null,"Select one.",null,null,null,null,"Select option."]
["Select Strategic Area",null,"Select one.",null,null,null,null,"Select option."]
["Select Strategic Area",null,"Select one.",null,null,null,null,"Select option."]
["Select Strategic Area",null,"Select one.",null,null,null,null,"Select option."]

{"sheet":"Key Outcomes Hidden","index":6,"n_rows":41,"n_cols":10,"rows_kept":41,"cut":false,"hidden":true,"merged":[]}
["Select Strategic Area","Select one. ","Client/Participant/Self-Reported","Staff-Based","Quality of Services","Community Engagement/Outreach","Organizational-level","Collaboration/Referral","Service Population","Other"]
["Select Strategic Area",null,"Access Systems (i.e., justice, medical)","Accessible and Responsive","Ability to Access Services","Access to Services by Marginalized Communities","Board Governance","Awareness of Available Resources","Expand within Existing Service Population","Other"]
["Administrative Capacity",null,"Connections to Community Supports","Feedback on Staff - Comforting, Respectful, and Supportive of Clients","Confidential and Private","Access to Services by Underserved Communities","Culture and Values","Community Partnerships","Geographic Reach"]
["Case Management and Advocacy",null,"Client/Victim Well-Being","Individual Goal Achievement","Implementation of Best Practices","Communication Strategy and Tools","Data Collection and Evaluative Capacity","Engagement with Existing Partners","New Racial/Ethnic Population"]
["Community Engagement and Outreach",null,"Economic Supports","Knowledge Building","Language Access","Community Awareness of Issue","Financial Management","New Partnerships","Marginalized Population"]
["Crisis Intervention and Hotline",null,"Housing Stability","Represent Diversity of Experience","Location and Facility","Community Awareness of Services","Human Resources","Partner Awareness of Our Program/Services","Underserved Population"]
["Education and Training",null,"Independence and Empowerment","Skill Building","Program Satisfaction","Community Wide-Response to Issue Impacting Victims of Crime","Infrastructure and Technology"]
["Financial Reimbursement or Compensation",null,"Individual Goal Achievement","Staff Well-Being","Survivor-Centered Practices","Materials and Website","Leadership Capacity"]
["Housing and Shelter",null,"Knowledge Building","Volunteer Management","Trauma-Informed Care","Social Media Presence","Policies and Practices"]
["Language Access",null,"Personal Supports",null,null,null,"Program Implementation"]
["Legal Services",null,"Physical and Emotional Behavior",null,null,null,"Strategy and Planning"]
["Medical and Forensic Services",null,"Safety and Protection",null,null,null,"Vision and Mission"]
["Mental Health Services",null,"Skill Building"]
["Other"]
[]
[]
[]
[]
[]
["Administrative Capacity"]
["Case Management and Advocacy"]
["Community Engagement and Outreach"]
["Crisis Intervention and Hotline"]
["Education and Training"]
["Financial Reimbursement or Compensation"]
["Housing and Shelter"]
["Language Access"]
["Legal Services"]
["Medical and Forensic Services"]
["Mental Health Services"]
["Other"]
[]
[]
[]
[]
[]
[]
["Select option."]
["Short-term Outcome"]
["Long-term Outcome"]
["Unknown"]

{"sheet":"Lists Hidden","index":7,"n_rows":69,"n_cols":11,"rows_kept":69,"cut":false,"hidden":true,"merged":[[3,10,14,17],[0,10,0,17]]}
["American Indian or Alaska Native","Asian (Most Popular 2012)","Black or African American","Hispanic or Latino (Most Popular 2010)","Native Hawaiian or Pacific Islander","White Non-Latino or Caucasian","Multiple Races (general)","Languages (Client Survey 4H)","Disabilities","Multiple Races","Sources"]
["Select from Options","Select from Options","Select from Options","Select from Options","Select from Options","Select from Options","Select from Options"]
["American Indian/Alaska Native (general)","Asian (general)","Black/African America (general)","Hispanic/Latino (general)","Native Hawaiian/Pacific Islander (general)","White Non-Latino/Caucasian (general)","American Indian or Alaska Native/Asian","Select from Options","Select from Options"]
["Aztec","Asian Indian","African American","Colombian","Carolinian","Cajun","American Indian or Alaska Native/Black or African American","Albanian","Arthritis/rheumatism",null,"https://2020census.gov/en/about-questions/2020-census-questions-race.html\nhttps://www.pewresearch.org/interactives/what-census-calls-us/\nhttps://icfonline.sharepoint.com/sites/MOVATeam/Shared%20Documents/General/Resources/Client%20Surveys/4.%20Child%20Abuse%20Service/4h%20_JRI_SMART.pdf?CT=1589563103968&OR=ItemsView\nhttps://www.pewresearch.org/hispanic/2012/06/27/the-10-largest-hispanic-origin-groups-characteristics-rankings-top-counties/\nhttps://www.api-gbv.org/resources/census-data-api-identities/\nhttps://apps.npr.org/documents/document.html?id=4365082-2020-Memo-2018-02-Questionnaire#document/\nhttps://www.census.gov/quickfacts/fact/note/US/RHI425218\nhttps://www.pewresearch.org/interactives/what-census-calls-us/"]
["Blackfeet Tribe","Bangladeshi","Bahamian","Cuban","Chamorro","Chaldean","American Indian or Alaska Native/Hispanic or Latino","American Sign Language","Asthma"]
["Mayan","Bhutanese","Barbadian","Dominican","Chuukese","Egyptian","American Indian or Alaska Native/Native Hawaiian or Pacific Islander","Amharic","Cancer"]
["Native Village of Barrow Inupiat Traditional Government","Burmese","Ethiopian","Ecuadorian","Fijian","English ","American Indian or Alaska Native/White Non-Latino or Caucasian","Arabic","Chronic respiratory conditions"]
["Navajo Nation","Cambodian","Ghanaian","Guatemalan","Guamanian","French","Asian/Black or African American","Armenian","Alzheimer's disease, dementia or other conitive impairment disorder"]
["Nome Eskimo Community","Chinese","Haitian","Honduran","Hawaiian","German ","Asian/Hispanic or Latino","Bosnian","Developmental disabilites "]
["Yup'ik","Filipino","Jamaican","Mexican","Kosraean","Iranian","Asian/ Native Hawaiian or Pacific Islander","Cantonese","Diabetes"]
["Other American Indian/Alaska Native Identity","Hmong","Kenyan","Peruvian","Marshallesse","Irish","Asian/White Non-Latino or Caucasian","Cape Verdean","Heart disease, hypertension, stroke"]
["Not Tracked","Indonesian","Kenyan","Puerto Rican","Native Hawaiian","Italian ","Black or African American/Hispanic or Latino","Chinese","H.I.V."]
[null,"Japanese","Liberian","Salvadoran","Niuean","Lebanese","Black or African American/Native Hawaiian or Pacific Islander","Farsi/Iranian/Persian","Mental illnesses"]
[null,"Korean","Nigerian","Other Hispanic/Latino Identity","Palauan","Polish","Black or African American/White Non-Latino or Caucasian","Finnish ","Other organ failure or diseases"]
[null,"Laotian","Somali","Not Tracked","Pohnpeian","Slavic","Hispanic or Latino/Native Hawaiian or Pacific Islander","French","Substance abuse or addiction disorders"]
[null,"Malaysian","South African ",null,"Saipanese","Other White/Caucasian Identity","Hispanic or Latino/White Non-Latino or Caucasian","German","Injuries including broken bones",null,"https://www.cdc.gov/brfss/questionnaires/pdf-ques/2019-BRFSS-Questionnaire-508.pdf"]
[null,"Mongolian","Other Black/African American Identity",null,"Samoan","No Tracked","Native Hawaiian or Pacific Islander/White Non-Latino or Caucasian","Greek","Old age/infirmity/frailty"]
[null,"Nepalese","Not Tracked",null,"Tahitian","Select Period","Other Races/Ethnicities (specify)","Haitian Creole","Other disability"]
[null,"Okinawan",null,"Select from Options","Tokelauan",1,null,"Hebrew"]
[null,"Pakistani",null,"Period 1 (October – December 2020)","Other Native Hawaiian/Pacific Islander Identity",null,null,"Polish"]
[null,"Sri Lankan",null,"Period 2 (January – March 2021)","Not Tracked",null,null,"Portuguese"]
[null,"Taiwanese",null,"Period 3 (April – June 2021)",null,null,null,"Russian"]
[null,"Thai",null,"Period 4 (July – September 2021)",null,null,null,"Serbian-Croatian"]
[null,"Vietnamese",null,"Period 5 (October – December 2021)",null,null,null,"Somali"]
[null,"Other Asian Identity",null,"Period 6 (January – March 2022)",null,null,null,"Spanish"]
[null,"Not Tracked",null,"Period 7 (April – June 2022)",null,null,null,"Tagalog/Filipino"]
[null,null,null,"Period 8 (July – September 2022)",null,null,null,"Tamil"]
[null,null,null,null,null,null,null,"Thai"]
[null,null,null,null,null,null,null,"Tigrigna"]
[null,null,null,null,null,null,null,"Turkish"]
[null,null,null,null,"Yes or No?","Enter Status",null,"Urdu"]
[null,null,null,null,"Yes","Not Started",null,"Vietnamese"]
[null,null,null,null,"No","In Progress",null,"Yiddish"]
[null,null,null,null,"Select one.","Completed",null,"Other Language"]
[null,null,null,null,"Yes"]
[null,null,null,null,"No (go to question #17)"]
[]
[]
[]
[]
[]
[]
[]
[]
[null,null,null,null,"Likert Scale","Dichotomous",null,"Other"]
[null,null,null,null,"5=Strongly Agree, 4=Agree, 3=Undecided, 2=Disagree, 1=Strongly Disagree","1=Fair, 2=Unfair",null,"Select type."]
[null,null,null,null,"5=Excellent, 4=Above Average, 3=Average, 2=Below Average, 1=Poor","1=Agree, 2=Disagree",null,"Categorical - nominal scale with options that are non-numeric, such as gender, race, place of birth"]
[null,null,null,null,"4=High, 3=Moderate, 2=Low, 1=None","1=True, 2=False",null,"Ordered Scale - ordinal or Likert scale with options have have an order or rank and without standardized units, such as 5-point agreement scale (1 = strongly disagree, 5 = strongly agree)"]
[null,null,null,null,"6=Very Frequently, 5=Frequently, 4=Occasionally, 3=Rarely, 2=Very Rarely, 1=Never","1=Yes, 2= No",null,"Numeric Scale - interval or ratio scale includes an order or rank as well as standaridized units between each option, such as income, age, assessment scores"]
[null,null,null,null,"5=Very Good, 4=Good, 3=Acceptable, 2=Poor, 1=Very Poor",null,null,"Other"]
[null,null,null,null,"5=Almost Always, 4=Often, 3=Sometimes, 2=Seldom, 1=Never"]
[null,null,null,null,null,null,null,"Dichotomous (e.g., True/False, Yes/No, Agree/Disagree)"]
[null,null,null,null,null,null,null,"Agreement"]
[null,null,null,null,null,null,null,"Frequency"]
[null,null,null,null,null,null,null,"Satisfaction"]
[]
[]
[]
[]
[null,null,null,null,"Output Types"]
[null,null,null,null,"Select from the options"]
[null,null,null,null,"Volume of services"]
[null,null,null,null,"Sub-population"]
[null,null,null,null,"Service types"]
[null,null,null,null,"Staff-based"]
[null,null,null,null,"Organizational-level"]
[null,null,null,null,"Community Engagement/Outreach"]
[null,null,null,null,"Collaboration and referrals"]
[null,null,null,null,"Other"]

{"sheet":"PMT Summary","index":8,"n_rows":234,"n_cols":31,"rows_kept":234,"cut":false,"hidden":false,"merged":[[46,18,46,19],[47,18,47,19],[48,18,48,19],[49,18,49,19],[50,18,50,19],[46,20,46,21],[47,20,47,21],[48,20,48,21],[49,20,49,21],[50,20,50,21],[46,22,46,23],[47,22,47,23],[48,22,48,23],[49,22,49,23],[50,22,50,23],[46,10,46,11],[47,10,47,11],[48,10,48,11],[49,10,49,11],[50,10,50,11],[46,12,46,13],[47,12,47,13],[48,12,48,13],[49,12,49,13],[50,12,50,13],[46,14,46,15],[47,14,47,15],[48,14,48,15],[49,14,49,15],[50,14,50,15],[46,16,46,17],[47,16,47,17],[48,16,48,17],[49,16,49,17],[50,16,50,17],[41,1,41,5],[42,1,42,5],[43,1,43,5],[44,1,44,5],[45,1,45,5],[46,1,46,5],[47,1,47,5],[48,1,48,5],[49,1,49,5],[50,1,50,5],[46,6,46,7],[47,6,47,7],[48,6,48,7],[49,6,49,7],[50,6,50,7],[46,8,46,9],[47,8,47,9],[48,8,48,9],[49,8,49,9],[50,8,50,9],[41,16,41,17],[42,16,42,17],[43,16,43,17],[44,16,44,17],[45,16,45,17],[44,14,44,15],[45,14,45,15],[41,18,41,19],[42,18,42,19],[43,18,43,19],[44,18,44,19],[45,18,45,19],[41,20,41,21],[42,20,42,21],[43,20,43,21],[44,20,44,21],[45,20,45,21],[41,22,41,23],[42,22,42,23],[43,22,43,23],[44,22,44,23],[45,22,45,23],[42,8,42,9],[43,8,43,9],[44,8,44,9],[45,8,45,9],[41,10,41,11],[42,10,42,11],[43,10,43,11],[44,10,44,11],[45,10,45,11],[41,12,41,13],[42,12,42,13],[43,12,43,13],[44,12,44,13],[45,12,45,13],[41,14,41,15],[42,14,42,15],[43,14,43,15],[99,1,99,7],[99,8,99,9],[99,10,99,11],[99,12,99,13],[99,14,99,15],[99,16,99,17],[99,18,99,19],[99,20,99,21],[99,22,99,23],[99,24,99,25],[100,1,100,7],[100,8,100,9],[100,10,100,11],[100,12,100,13],[100,14,100,15],[100,16,100,17],[100,18,100,19],[100,20,100,21],[100,22,100,23],[100,24,100,25],[145,1,145,7],[145,8,145,9],[146,1,146,7],[146,8,146,9],[147,1,147,7],[147,8,147,9],[148,8,148,9],[149,8,149,9],[150,8,150,9],[157,8,157,9],[137,22,137,23],[137,20,137,21],[137,18,137,19],[137,16,137,17],[137,14,137,15],[137,12,137,13],[137,10,137,11],[137,8,137,9],[152,8,152,9],[153,8,153,9],[154,8,154,9],[155,8,155,9],[156,8,156,9],[148,10,148,11],[149,10,149,11],[150,10,150,11],[151,10,151,11],[152,10,152,11],[153,10,153,11],[154,10,154,11],[155,10,155,11],[150,14,150,15],[139,8,139,9],[140,8,140,9],[142,8,142,9],[141,8,141,9],[143,8,143,9],[144,8,144,9],[0,19,0,25],[129,1,129,7],[130,1,130,7],[131,1,131,7],[132,1,132,7],[5,1,6,5],[6,6,6,7],[6,8,6,9],[6,10,6,11],[6,12,6,13],[6,14,6,15],[6,16,6,17],[6,18,6,19],[6,20,6,21],[6,22,6,23],[16,1,16,2],[4,22,5,23],[18,1,18,25],[30,24,30,25],[31,24,31,25],[32,24,32,25],[33,24,33,25],[20,22,20,25],[35,22,35,25],[27,22,27,23],[28,22,28,23],[29,22,29,23],[30,22,30,23],[31,22,31,23],[32,22,32,23],[33,22,33,23],[119,24,119,25],[103,24,104,25],[210,24,211,25],[82,24,82,25],[204,24,205,25],[112,24,112,25],[109,16,109,23],[110,16,110,17],[110,18,110,19],[110,20,110,21],[110,22,110,23],[117,20,117,21],[117,22,117,23],[149,20,149,21],[150,20,150,21],[151,20,151,21],[152,20,152,21],[153,20,153,21],[154,20,154,21],[52,16,52,17],[52,18,52,19],[52,20,52,21],[58,16,58,17],[58,18,58,19],[58,20,58,21],[108,1,108,23],[109,1,110,7],[22,6,22,7],[22,8,22,9],[22,10,22,11],[22,12,22,13],[20,1,20,21],[27,8,27,9],[27,10,27,11],[26,16,26,17],[26,18,26,19],[26,20,26,21],[21,14,21,21],[33,1,33,5],[23,6,23,7],[24,6,24,7],[210,26,211,27],[121,24,122,25],[121,26,122,27],[123,24,124,25],[123,26,124,27],[129,24,129,25],[129,26,129,27],[126,24,127,25],[126,26,127,27],[128,24,128,25],[128,26,128,27],[130,24,130,25],[131,24,131,25],[132,24,132,25],[130,26,130,27],[131,26,131,27],[132,26,132,27],[134,24,134,27],[204,26,205,27],[206,24,207,25],[206,26,207,27],[208,24,209,25],[208,26,209,27],[203,24,203,27],[145,24,145,25],[146,24,146,25],[147,24,147,25],[148,24,148,25],[149,24,149,25],[150,24,150,25],[151,24,151,25],[119,26,119,27],[193,24,194,25],[193,26,194,27],[195,24,196,25],[195,26,196,27],[120,24,120,27],[125,24,125,27],[143,24,143,25],[144,24,144,25],[181,24,181,25],[182,24,182,25],[183,24,183,25],[184,24,184,25],[185,24,185,25],[152,24,152,25],[153,24,153,25],[154,24,154,25],[155,24,155,25],[156,24,156,25],[112,26,112,27],[113,24,113,25],[114,24,114,25],[115,24,115,25],[116,24,116,25],[117,24,117,25],[118,24,118,25],[113,26,113,27],[114,26,114,27],[115,26,115,27],[116,26,116,27],[117,26,117,27],[118,26,118,27],[139,24,139,25],[140,24,140,25],[141,24,141,25],[142,24,142,25],[103,26,104,27],[105,24,106,25],[105,26,106,27],[108,24,108,27],[109,24,110,25],[109,26,110,27],[111,24,111,25],[111,26,111,27],[98,24,98,25],[98,26,98,27],[101,24,101,25],[101,26,101,27],[102,24,102,25],[102,26,102,27],[67,1,67,27],[8,1,10,5],[12,1,14,5],[97,24,97,25],[97,26,97,27],[85,26,85,27],[86,24,86,25],[86,26,86,27],[87,24,87,25],[87,26,87,27],[78,24,78,25],[78,26,78,27],[79,24,79,25],[79,26,79,27],[80,24,80,25],[80,26,80,27],[81,24,81,25],[81,26,81,27],[4,24,5,25],[9,22,10,23],[9,24,10,25],[13,22,14,23],[13,24,14,25],[7,22,8,23],[7,24,8,25],[11,22,12,23],[11,24,12,25],[93,24,93,25],[93,26,93,27],[94,24,94,25],[94,26,94,27],[95,24,95,25],[95,26,95,27],[96,24,96,25],[96,26,96,27],[88,24,88,25],[88,26,88,27],[89,24,89,25],[89,26,89,27],[90,24,90,25],[90,26,90,27],[91,24,91,25],[91,26,91,27],[92,24,92,25],[92,26,92,27],[83,24,83,25],[83,26,83,27],[84,24,84,25],[84,26,84,27],[85,24,85,25],[82,26,82,27],[73,24,73,25],[73,26,73,27],[74,24,74,25],[74,26,74,27],[75,24,75,25],[75,26,75,27],[76,24,76,25],[76,26,76,27],[77,24,77,25],[77,26,77,27],[63,24,63,25],[64,22,64,23],[64,24,64,25],[65,22,65,23],[65,24,65,25],[69,24,69,27],[70,24,71,25],[70,26,71,27],[72,24,72,25],[72,26,72,27],[72,22,72,23],[3,22,3,25],[6,24,6,25],[58,22,58,23],[58,24,58,25],[59,22,59,23],[59,24,59,25],[60,22,60,23],[60,24,60,25],[61,22,61,23],[61,24,61,25],[62,22,62,23],[62,24,62,25],[36,22,37,23],[36,24,37,25],[55,22,55,25],[56,22,57,23],[56,24,57,25],[38,22,38,23],[38,24,38,25],[39,22,39,23],[39,24,39,25],[40,22,40,23],[40,24,40,25],[51,22,51,23],[51,24,51,25],[52,22,52,23],[52,24,52,25],[53,22,53,23],[53,24,53,25],[27,24,27,25],[28,24,28,25],[29,24,29,25],[1,4,1,17],[21,22,22,23],[23,22,23,23],[24,22,24,23],[25,22,25,23],[26,22,26,23],[21,24,22,25],[23,24,23,25],[24,24,24,25],[25,24,25,25],[26,24,26,25],[1,19,1,25],[215,1,215,12],[215,13,215,23],[232,1,232,12],[232,13,232,23],[230,1,231,23],[96,8,96,9],[96,10,96,11],[98,8,98,9],[98,10,98,11],[88,12,88,13],[87,8,87,9],[87,10,87,11],[8,6,8,7],[8,8,8,9],[12,6,12,7],[12,8,12,9],[21,6,21,13],[36,1,37,5],[21,1,22,5],[16,3,16,6],[5,14,5,15],[5,16,5,17],[5,18,5,19],[5,20,5,21],[5,6,5,7],[5,8,5,9],[5,10,5,11],[5,12,5,13],[8,10,8,11],[8,12,8,13],[8,14,8,15],[8,16,8,17],[8,18,8,19],[8,20,8,21],[9,6,10,7],[9,8,10,9],[9,10,10,11],[9,12,10,13],[9,14,10,15],[9,16,10,17],[9,18,10,19],[9,20,10,21],[12,10,12,11],[12,12,12,13],[12,14,12,15],[12,16,12,17],[12,18,12,19],[12,20,12,21],[13,6,14,7],[13,8,14,9],[13,10,14,11],[13,12,14,13],[13,14,14,15],[13,16,14,17],[13,18,14,19],[13,20,14,21],[38,10,38,11],[38,12,38,13],[39,6,39,7],[39,8,39,9],[39,10,39,11],[39,12,39,13],[30,8,30,9],[30,10,30,11],[30,12,30,13],[31,8,31,9],[31,10,31,11],[31,12,31,13],[24,8,24,9],[24,10,24,11],[24,12,24,13],[26,8,26,9],[26,10,26,11],[26,12,26,13],[26,6,26,7],[27,6,27,7],[28,6,28,7],[29,6,29,7],[30,6,30,7],[31,6,31,7],[23,8,23,9],[23,10,23,11],[23,12,23,13],[23,14,23,15],[23,16,23,17],[23,18,23,19],[23,20,23,21],[25,6,25,7],[25,8,25,9],[30,14,30,15],[30,16,30,17],[30,18,30,19],[27,14,27,15],[29,8,29,9],[29,10,29,11],[29,12,29,13],[39,1,39,5],[32,6,32,7],[32,8,32,9],[32,10,32,11],[32,12,32,13],[36,6,36,13],[38,6,38,7],[33,14,33,15],[33,16,33,17],[36,14,36,21],[37,14,37,15],[37,16,37,17],[37,18,37,19],[37,20,37,21],[38,14,38,15],[38,16,38,17],[38,18,38,19],[38,20,38,21],[39,14,39,15],[39,16,39,17],[39,18,39,19],[39,20,39,21],[32,14,32,15],[33,6,33,7],[35,1,35,21],[37,6,37,7],[37,8,37,9],[37,10,37,11],[37,12,37,13],[38,1,38,5],[33,18,33,19],[33,20,33,21],[38,8,38,9],[32,16,32,17],[32,18,32,19],[32,20,32,21],[30,1,30,5],[31,1,31,5],[32,1,32,5],[29,14,29,15],[29,16,29,17],[29,18,29,19],[29,20,29,21],[29,1,29,5],[30,20,30,21],[31,14,31,15],[31,16,31,17],[31,18,31,19],[31,20,31,21],[33,8,33,9],[33,10,33,11],[33,12,33,13],[22,14,22,15],[22,16,22,17],[22,18,22,19],[22,20,22,21],[27,16,27,17],[27,18,27,19],[27,20,27,21],[28,8,28,9],[28,10,28,11],[28,12,28,13],[28,14,28,15],[28,16,28,17],[28,18,28,19],[28,20,28,21],[23,1,23,5],[24,1,24,5],[25,1,25,5],[26,1,26,5],[27,1,27,5],[28,1,28,5],[27,12,27,13],[25,10,25,11],[25,12,25,13],[24,14,24,15],[24,16,24,17],[24,18,24,19],[24,20,24,21],[25,14,25,15],[25,16,25,17],[25,18,25,19],[25,20,25,21],[26,14,26,15],[59,20,59,21],[40,6,40,7],[40,8,40,9],[40,10,40,11],[40,12,40,13],[40,14,40,15],[40,16,40,17],[40,18,40,19],[40,20,40,21],[53,1,53,5],[40,1,40,5],[51,1,51,5],[52,1,52,5],[51,6,51,7],[51,8,51,9],[51,10,51,11],[51,12,51,13],[51,14,51,15],[51,16,51,17],[51,18,51,19],[51,20,51,21],[52,6,52,7],[52,8,52,9],[52,10,52,11],[52,12,52,13],[52,14,52,15],[41,6,41,7],[42,6,42,7],[43,6,43,7],[44,6,44,7],[45,6,45,7],[41,8,41,9],[62,1,62,5],[56,6,56,13],[58,6,58,7],[58,8,58,9],[58,10,58,11],[58,12,58,13],[55,1,55,21],[53,6,53,7],[53,8,53,9],[53,10,53,11],[53,12,53,13],[53,14,53,15],[53,16,53,17],[53,18,53,19],[53,20,53,21],[57,18,57,19],[57,20,57,21],[62,6,62,7],[62,8,62,9],[62,10,62,11],[62,16,62,17],[62,18,62,19],[62,20,62,21],[60,18,60,19],[59,6,59,7],[56,1,57,5],[59,8,59,9],[59,10,59,11],[59,12,59,13],[59,14,59,15],[59,16,59,17],[59,18,59,19],[65,10,65,11],[65,12,65,13],[65,14,65,15],[65,16,65,17],[65,18,65,19],[65,20,65,21],[64,6,64,7],[64,8,64,9],[64,10,64,11],[63,14,63,15],[63,16,63,17],[63,18,63,19],[63,20,63,21],[60,16,60,17],[63,8,63,9],[63,10,63,11],[63,12,63,13],[61,6,61,7],[61,8,61,9],[61,10,61,11],[61,12,61,13],[60,6,60,7],[60,8,60,9],[60,10,60,11],[71,8,71,9],[71,10,71,11],[71,12,71,13],[71,14,71,15],[70,8,70,15],[58,1,58,5],[59,1,59,5],[60,1,60,5],[61,1,61,5],[60,12,60,13],[60,14,60,15],[64,12,64,13],[64,14,64,15],[62,12,62,13],[62,14,62,15],[58,14,58,15],[56,14,56,21],[57,6,57,7],[57,8,57,9],[57,10,57,11],[57,12,57,13],[57,14,57,15],[57,16,57,17],[64,16,64,17],[64,18,64,19],[64,20,64,21],[60,20,60,21],[61,14,61,15],[61,16,61,17],[61,18,61,19],[61,20,61,21],[65,8,65,9],[84,1,84,7],[87,1,87,7],[88,1,88,7],[89,1,89,7],[90,1,90,7],[91,1,91,7],[63,1,63,5],[64,1,64,5],[65,1,65,5],[63,6,63,7],[65,6,65,7],[63,22,63,23],[73,8,73,9],[73,10,73,11],[73,12,73,13],[73,14,73,15],[73,16,73,17],[73,18,73,19],[73,20,73,21],[73,22,73,23],[70,16,70,23],[71,16,71,17],[71,18,71,19],[71,20,71,21],[71,22,71,23],[72,8,72,9],[72,10,72,11],[72,12,72,13],[72,14,72,15],[72,16,72,17],[72,18,72,19],[72,20,72,21],[74,8,74,9],[74,10,74,11],[74,12,74,13],[74,14,74,15],[74,16,74,17],[74,18,74,19],[74,20,74,21],[74,22,74,23],[75,8,75,9],[75,10,75,11],[75,12,75,13],[75,14,75,15],[75,16,75,17],[75,18,75,19],[75,20,75,21],[75,22,75,23],[76,8,76,9],[76,10,76,11],[76,12,76,13],[76,14,76,15],[76,16,76,17],[76,18,76,19],[76,20,76,21],[76,22,76,23],[77,8,77,9],[77,10,77,11],[77,12,77,13],[77,14,77,15],[77,16,77,17],[77,18,77,19],[77,20,77,21],[77,22,77,23],[80,8,80,9],[80,10,80,11],[80,12,80,13],[80,14,80,15],[80,16,80,17],[80,18,80,19],[80,20,80,21],[80,22,80,23],[78,8,78,9],[78,10,78,11],[78,12,78,13],[78,14,78,15],[78,16,78,17],[78,18,78,19],[78,20,78,21],[78,22,78,23],[79,8,79,9],[79,10,79,11],[79,12,79,13],[79,14,79,15],[79,16,79,17],[79,18,79,19],[79,20,79,21],[79,22,79,23],[81,8,81,9],[81,10,81,11],[81,12,81,13],[81,14,81,15],[81,16,81,17],[81,18,81,19],[81,20,81,21],[81,22,81,23],[82,8,82,9],[82,10,82,11],[82,12,82,13],[82,14,82,15],[82,16,82,17],[82,18,82,19],[82,20,82,21],[82,22,82,23],[83,8,83,9],[83,10,83,11],[83,12,83,13],[83,14,83,15],[83,16,83,17],[83,18,83,19],[83,20,83,21],[83,22,83,23],[84,8,84,9],[84,10,84,11],[84,12,84,13],[84,14,84,15],[84,16,84,17],[84,18,84,19],[84,20,84,21],[84,22,84,23],[87,12,87,13],[87,14,87,15],[87,16,87,17],[87,18,87,19],[87,20,87,21],[87,22,87,23],[89,8,89,9],[89,10,89,11],[89,12,89,13],[89,14,89,15],[89,16,89,17],[89,18,89,19],[89,20,89,21],[89,22,89,23],[88,8,88,9],[88,10,88,11],[88,14,88,15],[88,16,88,17],[88,18,88,19],[88,20,88,21],[88,22,88,23],[90,8,90,9],[90,10,90,11],[90,12,90,13],[90,14,90,15],[90,16,90,17],[90,18,90,19],[90,20,90,21],[90,22,90,23],[91,8,91,9],[91,10,91,11],[91,12,91,13],[91,14,91,15],[91,16,91,17],[91,18,91,19],[91,20,91,21],[91,22,91,23],[92,8,92,9],[92,10,92,11],[92,12,92,13],[92,14,92,15],[92,16,92,17],[92,18,92,19],[92,20,92,21],[92,22,92,23],[93,8,93,9],[93,10,93,11],[93,12,93,13],[93,14,93,15],[93,16,93,17],[93,18,93,19],[93,20,93,21],[93,22,93,23],[94,8,94,9],[94,10,94,11],[94,12,94,13],[94,14,94,15],[94,16,94,17],[94,18,94,19],[94,20,94,21],[94,22,94,23],[95,8,95,9],[95,10,95,11],[95,12,95,13],[95,14,95,15],[95,16,95,17],[95,18,95,19],[95,20,95,21],[95,22,95,23],[96,12,96,13],[96,14,96,15],[96,16,96,17],[96,18,96,19],[96,20,96,21],[96,22,96,23],[97,8,97,9],[97,10,97,11],[97,12,97,13],[97,14,97,15],[97,16,97,17],[97,18,97,19],[97,20,97,21],[97,22,97,23],[98,12,98,13],[98,14,98,15],[98,16,98,17],[98,18,98,19],[98,20,98,21],[98,22,98,23],[101,8,101,9],[101,10,101,11],[101,12,101,13],[101,14,101,15],[101,16,101,17],[101,18,101,19],[101,20,101,21],[101,22,101,23],[102,8,102,9],[102,10,102,11],[102,12,102,13],[102,14,102,15],[102,16,102,17],[102,18,102,19],[102,20,102,21],[102,22,102,23],[69,1,69,23],[70,1,71,7],[85,3,86,7],[85,1,86,2],[72,1,72,7],[73,1,73,7],[74,1,74,7],[75,1,75,7],[76,1,76,7],[77,1,77,7],[78,1,78,7],[79,1,79,7],[80,1,80,7],[81,1,81,7],[82,1,82,7],[83,1,83,7],[92,1,92,7],[93,1,93,7],[94,1,94,7],[95,1,95,7],[96,1,96,7],[97,1,97,7],[98,1,98,7],[101,1,101,7],[102,1,102,7],[117,1,117,7],[104,20,104,21],[104,22,104,23],[105,8,106,9],[105,10,106,11],[105,12,106,13],[105,14,106,15],[105,16,106,17],[105,18,106,19],[105,20,106,21],[105,22,106,23],[104,8,104,9],[104,10,104,11],[104,12,104,13],[104,14,104,15],[104,16,104,17],[104,18,104,19],[104,1,106,7],[110,8,110,9],[110,10,110,11],[110,12,110,13],[110,14,110,15],[109,8,109,15],[111,8,111,9],[111,10,111,11],[111,12,111,13],[111,14,111,15],[111,16,111,17],[111,18,111,19]],"merged_total":1674,"flags":["merged_cut"]}
[null,null,null,null,null,null,null,null,null,null,null,null,null,null,null,null,null,null,null,"Outcome Measurement Tool (OMT)\nMA - Victim Witness Assistance Board\n\nNeed Support? \nContact TTACEval@icf.com or call 703-251-0368.\n"]
[null,null,null,null,"MOVA/OVC Performance Measurement Tool (PMT)\nSummary Report",null,null,null,null,null,null,null,null,null,null,null,null,null,null,"DO NOT UPDATE - AUTO GENERATED REPORT",null,null,null,null,null,null,null,null,null,null,"NOTES:"]
[]
[null,null,null,null,null,null,null,null,null,null,null,null,null,null,null,null,null,null,null,null,null,null,"Overview"]
[null,null,null,null,null,null,null,null,null,null,null,null,null,null,null,null,null,null,null,null,null,null,"Cumulative Total",null,"Statewide \nCumulative Total"]
[null,"1. TOTAL number of individuals who received services during the reporting period:",null,null,null,null,"Reporting Period 1",null,"Reporting Period 2",null,"Reporting Period 3",null,"Reporting Period 4",null,"Reporting Period 5",null,"Reporting Period 6",null,"Reporting Period 7",null,"Reporting Period 8"]
[null,null,null,null,null,null,{"$f":"SUM('1. Demographics'!H12:I13)","v":0},null,{"$f":"SUM('1. Demographics'!J12:K13)","v":0},null,{"$f":"SUM('1. Demographics'!M12:N13)","v":0},null,{"$f":"SUM('1. Demographics'!P12:Q13)","v":0},null,{"$f":"SUM('1. Demographics'!S12:T13)","v":0},null,{"$f":"SUM('1. Demographics'!V12:W13)","v":0},null,{"$f":"SUM('1. Demographics'!Y12:Z13)","v":0},null,{"$f":"SUM('1. Demographics'!AB12:AC13)","v":0},null,{"$f":"SUM(G7:V7)","v":0}]
[null,null,null,null,null,null,null,null,null,null,null,null,null,null,null,null,null,null,null,null,null,null,"Cumulative Total",null,"Statewide \nCumulative Total"]
[null,"2. TOTAL number of anonymous contacts received during the reporting period: ",null,null,null,null,"Reporting Period 1",null,"Reporting Period 2",null,"Reporting Period 3",null,"Reporting Period 4",null,"Reporting Period 5",null,"Reporting Period 6",null,"Reporting Period 7",null,"Reporting Period 8"]
[null,null,null,null,null,null,{"$f":"SUM('1. Demographics'!H18:I19)","v":0},null,{"$f":"SUM('1. Demographics'!J18:K19)","v":0},null,{"$f":"SUM('1. Demographics'!M18:N19)","v":0},null,{"$f":"SUM('1. Demographics'!P18:Q19)","v":0},null,{"$f":"SUM('1. Demographics'!S18:T19)","v":0},null,{"$f":"SUM('1. Demographics'!V18:W19)","v":0},null,{"$f":"SUM('1. Demographics'!Y18:Z19)","v":0},null,{"$f":"SUM('1. Demographics'!AB18:AC19)","v":0},null,{"$f":"SUM(G10:V11)","v":0}]
[]
[null,null,null,null,null,null,null,null,null,null,null,null,null,null,null,null,null,null,null,null,null,null,"Cumulative Total",null,"Statewide \nCumulative Total"]
[null,"3. Of the number of individuals entered in question 1, how many were NEW individuals who received services from your agency for the first time during the reporting period: ",null,null,null,null,"Reporting Period 1",null,"Reporting Period 2",null,"Reporting Period 3",null,"Reporting Period 4",null,"Reporting Period 5",null,"Reporting Period 6",null,"Reporting Period 7",null,"Reporting Period 8"]
[null,null,null,null,null,null,{"$f":"SUM('1. Demographics'!H23:I24)","v":0},null,{"$f":"SUM('1. Demographics'!J23:K24)","v":0},null,{"$f":"SUM('1. Demographics'!M23:N24)","v":0},null,{"$f":"SUM('1. Demographics'!P23:Q24)","v":0},null,{"$f":"SUM('1. Demographics'!S23:T24)","v":0},null,{"$f":"SUM('1. Demographics'!V23:W24)","v":0},null,{"$f":"SUM('1. Demographics'!Y23:Z24)","v":0},null,{"$f":"SUM('1. Demographics'!AB23:AC24)","v":0},null,{"$f":"SUM(G14:V15)","v":0}]
[]
[]
[null,{"$f":"'1. Demographics'!K28","v":"Select one."},null,"Track NEW individuals"]
[]
[null,"4. Demographics (for NEW individuals identified in Question 3)"]
[]
[null,"A. Race/Ethnicity (Self-Reported)",null,null,null,null,null,null,null,null,null,null,null,null,null,null,null,null,null,null,null,null,"Overview"]
[null,"Population",null,null,null,null,"Number of New Individuals - Year 1",null,null,null,null,null,null,null,"Number of New Individuals - Year 2",null,null,null,null,null,null,null,"Cumulative Total",null,"Statewide \nCumulative Total"]
[null,null,null,null,null,null,"Reporting Period 1",null,"Reporting Period 2",null,"Reporting Period 3",null,"Reporting Period 4",null,"Reporting Period 5",null,"Reporting Period 6",null,"Reporting Period 7",null,"Reporting Period 8"]
[null,"American Indian or Alaska Native",null,null,null,null,{"$f":"SUM('1. Demographics'!I39)","v":0},null,{"$f":"SUM('1. Demographics'!L39)","v":0},null,{"$f":"SUM('1. Demographics'!O39)","v":0},null,{"$f":"SUM('1. Demographics'!R39)","v":0},null,{"$f":"SUM('1. Demographics'!U39)","v":0},null,{"$f":"SUM('1. Demographics'!X39)","v":0},null,{"$f":"SUM('1. Demographics'!AA39)","v":0},null,{"$f":"SUM('1. Demographics'!AD39)","v":0},null,{"$f":"SUM(G24:V24)","v":0}]
[null,"Asian",null,null,null,null,{"$f":"SUM('1. Demographics'!I50)","v":0},null,{"$f":"SUM('1. Demographics'!L50)","v":0},null,{"$f":"SUM('1. Demographics'!O50)","v":0},null,{"$f":"SUM('1. Demographics'!R50)","v":0},null,{"$f":"SUM('1. Demographics'!U50)","v":0},null,{"$f":"SUM('1. Demographics'!X50)","v":0},null,{"$f":"SUM('1. Demographics'!AA50)","v":0},null,{"$f":"SUM('1. Demographics'!AD50)","v":0},null,{"$f":"SUM(G25:V25)","v":0}]
[null,"Black or African American",null,null,null,null,{"$f":"SUM('1. Demographics'!I61)","v":0},null,{"$f":"SUM('1. Demographics'!L61)","v":0},null,{"$f":"SUM('1. Demographics'!O61)","v":0},null,{"$f":"SUM('1. Demographics'!R61)","v":0},null,{"$f":"SUM('1. Demographics'!U61)","v":0},null,{"$f":"SUM('1. Demographics'!X61)","v":0},null,{"$f":"SUM('1. Demographics'!AA61)","v":0},null,{"$f":"SUM('1. Demographics'!AD61)","v":0},null,0]
[null,"Hispanic or Latino",null,null,null,null,{"$f":"SUM('1. Demographics'!I72)","v":0},null,{"$f":"SUM('1. Demographics'!L72)","v":0},null,{"$f":"SUM('1. Demographics'!O72)","v":0},null,{"$f":"SUM('1. Demographics'!R72)","v":0},null,{"$f":"SUM('1. Demographics'!U72)","v":0},null,{"$f":"SUM('1. Demographics'!X72)","v":0},null,{"$f":"SUM('1. Demographics'!AA72)","v":0},null,{"$f":"SUM('1. Demographics'!AD72)","v":0},null,0]
[null,"Native Hawaiian or Other Pacific Islander",null,null,null,null,{"$f":"SUM('1. Demographics'!I83)","v":0},null,{"$f":"SUM('1. Demographics'!L83)","v":0},null,{"$f":"SUM('1. Demographics'!O83)","v":0},null,{"$f":"SUM('1. Demographics'!R83)","v":0},null,{"$f":"SUM('1. Demographics'!U83)","v":0},null,{"$f":"SUM('1. Demographics'!X83)","v":0},null,{"$f":"SUM('1. Demographics'!AA83)","v":0},null,{"$f":"SUM('1. Demographics'!AD83)","v":0},null,0]
[null,"White Non-Latino or Caucasian",null,null,null,null,{"$f":"SUM('1. Demographics'!I94)","v":0},null,{"$f":"SUM('1. Demographics'!L94)","v":0},null,{"$f":"SUM('1. Demographics'!O94)","v":0},null,{"$f":"SUM('1. Demographics'!R94)","v":0},null,{"$f":"SUM('1. Demographics'!U94)","v":0},null,{"$f":"SUM('1. Demographics'!X94)","v":0},null,{"$f":"SUM('1. Demographics'!AA94)","v":0},null,{"$f":"SUM('1. Demographics'!AD94)","v":0},null,0]
[null,"Some Other Race",null,null,null,null,{"$f":"SUM('1. Demographics'!I105)","v":0},null,{"$f":"SUM('1. Demographics'!L105)","v":0},null,{"$f":"SUM('1. Demographics'!O105)","v":0},null,{"$f":"SUM('1. Demographics'!R105)","v":0},null,{"$f":"SUM('1. Demographics'!U105)","v":0},null,{"$f":"SUM('1. Demographics'!X105)","v":0},null,{"$f":"SUM('1. Demographics'!AA105)","v":0},null,{"$f":"SUM('1. Demographics'!AD105)","v":0},null,0]
[null,"Multiple Races",null,null,null,null,{"$f":"SUM('1. Demographics'!I113)","v":0},null,{"$f":"SUM('1. Demographics'!L113)","v":0},null,{"$f":"SUM('1. Demographics'!O113)","v":0},null,{"$f":"SUM('1. Demographics'!R113)","v":0},null,{"$f":"SUM('1. Demographics'!U113)","v":0},null,{"$f":"SUM('1. Demographics'!X113)","v":0},null,{"$f":"SUM('1. Demographics'!AA113)","v":0},null,{"$f":"SUM('1. Demographics'!AD113)","v":0},null,0]
[null,"Not Reported",null,null,null,null,{"$f":"SUM('1. Demographics'!H123)","v":0},null,{"$f":"SUM('1. Demographics'!J123)","v":0},null,{"$f":"SUM('1. Demographics'!M123)","v":0},null,{"$f":"SUM('1. Demographics'!P123)","v":0},null,{"$f":"SUM('1. Demographics'!S123)","v":0},null,{"$f":"SUM('1. Demographics'!V123)","v":0},null,{"$f":"SUM('1. Demographics'!Y123)","v":0},null,{"$f":"SUM('1. Demographics'!AB123)","v":0},null,0]
[null,"Not Tracked",null,null,null,null,{"$f":"SUM('1. Demographics'!H124)","v":0},null,{"$f":"SUM('1. Demographics'!J124)","v":0},null,{"$f":"SUM('1. Demographics'!M124)","v":0},null,{"$f":"SUM('1. Demographics'!P124)","v":0},null,{"$f":"SUM('1. Demographics'!S124)","v":0},null,{"$f":"SUM('1. Demographics'!V124)","v":0},null,{"$f":"SUM('1. Demographics'!Y124)","v":0},null,{"$f":"SUM('1. Demographics'!AB124)","v":0},null,0]
[null,"Race/Ethnicity Total (auto-calculated after save):",null,null,null,null,{"$f":"SUM(G24:H33)","v":0},null,{"$f":"SUM(I24:J33)","v":0},null,{"$f":"SUM(K24:L33)","v":0},null,{"$f":"SUM(M24:N33)","v":0},null,{"$f":"SUM(O24:P33)","v":0},null,{"$f":"SUM(Q24:R33)","v":0},null,{"$f":"SUM(S24:T33)","v":0},null,{"$f":"SUM(U24:V33)","v":0},null,{"$f":"SUM(W24:X33)","v":0}]
[]
[null,"B. Gender Identity (Self-Reported)",null,null,null,null,null,null,null,null,null,null,null,null,null,null,null,null,null,null,null,null,"Overview"]
[null,"Population",null,null,null,null,"Number of New Individuals - Year 1",null,null,null,null,null,null,null,"Number of New Individuals - Year 2",null,null,null,null,null,null,null,"Cumulative Total",null,"Statewide \nCumulative Total"]
[null,null,null,null,null,null,"Reporting Period 1",null,"Reporting Period 2",null,"Reporting Period 3",null,"Reporting Period 4",null,"Reporting Period 5",null,"Reporting Period 6",null,"Reporting Period 7",null,"Reporting Period 8"]
[null,"Male",null,null,null,null,{"$f":"SUM('1. Demographics'!H129:I129)","v":0},null,{"$f":"SUM('1. Demographics'!J129)","v":0},null,{"$f":"SUM('1. Demographics'!M129)","v":0},null,{"$f":"SUM('1. Demographics'!P129)","v":0},null,{"$f":"SUM('1. Demographics'!S129)","v":0},null,{"$f":"SUM('1. Demographics'!V129)","v":0},null,{"$f":"SUM('1. Demographics'!Y129)","v":0},null,{"$f":"SUM('1. Demographics'!AB129)","v":0},null,{"$f":"SUM(G39:V39)","v":0}]
[null,"Female",null,null,null,null,{"$f":"SUM('1. Demographics'!H130:I130)","v":0},null,{"$f":"SUM('1. Demographics'!J130)","v":0},null,{"$f":"SUM('1. Demographics'!M130)","v":0},null,{"$f":"SUM('1. Demographics'!P130)","v":0},null,{"$f":"SUM('1. Demographics'!S130)","v":0},null,{"$f":"SUM('1. Demographics'!V130)","v":0},null,{"$f":"SUM('1. Demographics'!Y130)","v":0},null,{"$f":"SUM('1. Demographics'!AB130)","v":0},null,{"$f":"SUM(G40:V40)","v":0}]
[null,"Other",null,null,null,null,{"$f":"SUM('1. Demographics'!H131:I133,'1. Demographics'!H135:I141)","v":0},null,{"$f":"SUM('1. Demographics'!J131:J133,'1. Demographics'!J135:J141)","v":0},null,{"$f":"SUM('1. Demographics'!M131:M133,'1. Demographics'!M135:M141)","v":0},null,{"$f":"SUM('1. Demographics'!P131:P133,'1. Demographics'!P135:P141)","v":0},null,{"$f":"SUM('1. Demographics'!S131:S133,'1. Demographics'!S135:S141)","v":0},null,{"$f":"SUM('1. Demographics'!V131:V133,'1. Demographics'!V135:V141)","v":0},null,{"$f":"SUM('1. Demographics'!Y131:Y133,'1. Demographics'!Y135:Y141)","v":0},null,{"$f":"SUM('1. Demographics'!AB131:AB133,'1. Demographics'!AB135:AB141)","v":0},null,0]
[null,"Transgender Male",null,null,null,null,{"$f":"'1. Demographics'!H131","v":0},null,{"$f":"SUM('1. Demographics'!J131)","v":0},null,{"$f":"SUM('1. Demographics'!M131:O131)","v":0},null,{"$f":"SUM('1. Demographics'!P131:R131)","v":0},null,{"$f":"SUM('1. Demographics'!S131:U131)","v":0},null,{"$f":"SUM('1. Demographics'!V131:X131)","v":0},null,{"$f":"SUM('1. Demographics'!Y131:AA131)","v":0},null,{"$f":"SUM('1. Demographics'!AB131:AD131)","v":0},null,{"$f":"SUM(G42:V42)","v":0}]
[null,"Transgender Female",null,null,null,null,{"$f":"'1. Demographics'!H132","v":0},null,{"$f":"SUM('1. Demographics'!J132:L132)","v":0},null,{"$f":"SUM('1. Demographics'!M132:O132)","v":0},null,{"$f":"SUM('1. Demographics'!P132:R132)","v":0},null,{"$f":"SUM('1. Demographics'!S132:U132)","v":0},null,{"$f":"SUM('1. Demographics'!V132:X132)","v":0},null,{"$f":"SUM('1. Demographics'!Y132:AA132)","v":0},null,{"$f":"SUM('1. Demographics'!AB132:AD132)","v":0},null,0]
[null,"Genderqueer/Non-Conforming/Non-Binary",null,null,null,null,{"$f":"'1. Demographics'!H133","v":0},null,{"$f":"SUM('1. Demographics'!J133:L133)","v":0},null,{"$f":"SUM('1. Demographics'!M133:O133)","v":0},null,{"$f":"SUM('1. Demographics'!P133:R133)","v":0},null,{"$f":"SUM('1. Demographics'!S133:U133)","v":0},null,{"$f":"SUM('1. Demographics'!V133:X133)","v":0},null,{"$f":"SUM('1. Demographics'!Y133:AA133)","v":0},null,{"$f":"SUM('1. Demographics'!AB133:AD133)","v":0},null,0]
[null,{"$f":"'1. Demographics'!$B$135","v":0},null,null,null,null,{"$f":"SUM('1. Demographics'!H135:I135)","v":0},null,{"$f":"SUM('1. Demographics'!J135:L135)","v":0},null,{"$f":"SUM('1. Demographics'!M135:O135)","v":0},null,{"$f":"SUM('1. Demographics'!P135:R135)","v":0},null,{"$f":"SUM('1. Demographics'!S135:U135)","v":0},null,{"$f":"SUM('1. Demographics'!V135:X135)","v":0},null,{"$f":"SUM('1. Demographics'!Y135:AA135)","v":0},null,{"$f":"SUM('1. Demographics'!AB135:AD135)","v":0},null,0]
[null,{"$f":"'1. Demographics'!$B$136","v":0},null,null,null,null,{"$f":"SUM('1. Demographics'!H136:I136)","v":0},null,{"$f":"SUM('1. Demographics'!J136:L136)","v":0},null,{"$f":"SUM('1. Demographics'!M136:O136)","v":0},null,{"$f":"SUM('1. Demographics'!P136:R136)","v":0},null,{"$f":"SUM('1. Demographics'!S136:U136)","v":0},null,{"$f":"SUM('1. Demographics'!V136:X136)","v":0},null,{"$f":"SUM('1. Demographics'!Y136:AA136)","v":0},null,{"$f":"SUM('1. Demographics'!AB136:AD136)","v":0},null,0]
[null,{"$f":"'1. Demographics'!$B$137","v":0},null,null,null,null,{"$f":"SUM('1. Demographics'!H137:I137)","v":0},null,{"$f":"SUM('1. Demographics'!J137:L137)","v":0},null,{"$f":"SUM('1. Demographics'!M137:O137)","v":0},null,{"$f":"SUM('1. Demographics'!P137:R137)","v":0},null,{"$f":"SUM('1. Demographics'!S137:U137)","v":0},null,{"$f":"SUM('1. Demographics'!V137:X137)","v":0},null,{"$f":"SUM('1. Demographics'!Y137:AA137)","v":0},null,{"$f":"SUM('1. Demographics'!AB137:AD137)","v":0},null,{"$f":"SUM(G47:V47)","v":0}]
[null,{"$f":"'1. Demographics'!$B$138","v":0},null,null,null,null,{"$f":"SUM('1. Demographics'!H138:I138)","v":0},null,{"$f":"SUM('1. Demographics'!J138:L138)","v":0},null,{"$f":"SUM('1. Demographics'!M138:O138)","v":0},null,{"$f":"SUM('1. Demographics'!P138:R138)","v":0},null,{"$f":"SUM('1. Demographics'!S138:U138)","v":0},null,{"$f":"SUM('1. Demographics'!V138:X138)","v":0},null,{"$f":"SUM('1. Demographics'!Y138:AA138)","v":0},null,{"$f":"SUM('1. Demographics'!AB138:AD138)","v":0},null,{"$f":"SUM(G48:V48)","v":0}]
[null,{"$f":"'1. Demographics'!$B$139","v":0},null,null,null,null,{"$f":"SUM('1. Demographics'!H139:I139)","v":0},null,{"$f":"SUM('1. Demographics'!J139:L139)","v":0},null,{"$f":"SUM('1. Demographics'!M139:O139)","v":0},null,{"$f":"SUM('1. Demographics'!P139:R139)","v":0},null,{"$f":"SUM('1. Demographics'!S139:U139)","v":0},null,{"$f":"SUM('1. Demographics'!V139:X139)","v":0},null,{"$f":"SUM('1. Demographics'!Y139:AA139)","v":0},null,{"$f":"SUM('1. Demographics'!AB139:AD139)","v":0},null,{"$f":"SUM(G49:V49)","v":0}]
[null,{"$f":"'1. Demographics'!$B$140","v":0},null,null,null,null,{"$f":"SUM('1. Demographics'!H140:I140)","v":0},null,{"$f":"SUM('1. Demographics'!J140:L140)","v":0},null,{"$f":"SUM('1. Demographics'!M140:O140)","v":0},null,{"$f":"SUM('1. Demographics'!P140:R140)","v":0},null,{"$f":"SUM('1. Demographics'!S140:U140)","v":0},null,{"$f":"SUM('1. Demographics'!V140:X140)","v":0},null,{"$f":"SUM('1. Demographics'!Y140:AA140)","v":0},null,{"$f":"SUM('1. Demographics'!AB140:AD140)","v":0},null,{"$f":"SUM(G50:V50)","v":0}]
[null,{"$f":"'1. Demographics'!$B$141","v":0},null,null,null,null,{"$f":"SUM('1. Demographics'!H141:I141)","v":0},null,{"$f":"SUM('1. Demographics'!J141:L141)","v":0},null,{"$f":"SUM('1. Demographics'!M141:O141)","v":0},null,{"$f":"SUM('1. Demographics'!P141:R141)","v":0},null,{"$f":"SUM('1. Demographics'!S141:U141)","v":0},null,{"$f":"SUM('1. Demographics'!V141:X141)","v":0},null,{"$f":"SUM('1. Demographics'!Y141:AA141)","v":0},null,{"$f":"SUM('1. Demographics'!AB141:AD141)","v":0},null,{"$f":"SUM(G51:V51)","v":0}]
[null,"Not Reported",null,null,null,null,{"$f":"SUM('1. Demographics'!H142:I142)","v":0},null,{"$f":"SUM('1. Demographics'!J142:J142)","v":0},null,{"$f":"SUM('1. Demographics'!M142)","v":0},null,{"$f":"SUM('1. Demographics'!P142)","v":0},null,{"$f":"SUM('1. Demographics'!S142)","v":0},null,{"$f":"SUM('1. Demographics'!V142)","v":0},null,{"$f":"SUM('1. Demographics'!Y142)","v":0},null,{"$f":"SUM('1. Demographics'!AB142)","v":0},null,0]
[null,"Not Tracked",null,null,null,null,{"$f":"SUM('1. Demographics'!H143:I143)","v":0},null,{"$f":"SUM('1. Demographics'!J143)","v":0},null,{"$f":"SUM('1. Demographics'!M143)","v":0},null,{"$f":"SUM('1. Demographics'!P143)","v":0},null,{"$f":"SUM('1. Demographics'!S143)","v":0},null,{"$f":"SUM('1. Demographics'!V143)","v":0},null,{"$f":"SUM('1. Demographics'!Y143)","v":0},null,{"$f":"SUM('1. Demographics'!AB143)","v":0},null,0]
[null,"Gender Total (auto-calculated after save):",null,null,null,null,{"$f":"SUM(G39:H53)","v":0},null,{"$f":"SUM(I39:J53)","v":0},null,{"$f":"SUM(K39:L53)","v":0},null,{"$f":"SUM(M39:N53)","v":0},null,{"$f":"SUM(O39:P53)","v":0},null,{"$f":"SUM(Q39:R53)","v":0},null,{"$f":"SUM(S39:T53)","v":0},null,{"$f":"SUM(U39:V53)","v":0},null,{"$f":"SUM(W39:X53)","v":0}]
[]
[null,"C. Age (Self-Reported)",null,null,null,null,null,null,null,null,null,null,null,null,null,null,null,null,null,null,null,null,"Overview"]
[null,"Population",null,null,null,null,"Number of New Individuals - Year 1",null,null,null,null,null,null,null,"Number of New Individuals - Year 2",null,null,null,null,null,null,null,"Cumulative Total",null,"Statewide \nCumulative Total"]
[null,null,null,null,null,null,"Reporting Period 1",null,"Reporting Period 2",null,"Reporting Period 3",null,"Reporting Period 4",null,"Reporting Period 5",null,"Reporting Period 6",null,"Reporting Period 7",null,"Reporting Period 8"]
[null,"Age 0-12",null,null,null,null,{"$f":"SUM('1. Demographics'!H148:I148)","v":0},null,{"$f":"SUM('1. Demographics'!J148)","v":0},null,{"$f":"SUM('1. Demographics'!M148)","v":0},null,{"$f":"SUM('1. Demographics'!P148)","v":0},null,{"$f":"SUM('1. Demographics'!S148)","v":0},null,{"$f":"SUM('1. Demographics'!V148)","v":0},null,{"$f":"SUM('1. Demographics'!Y148)","v":0},null,{"$f":"SUM('1. Demographics'!AB148)","v":0},null,{"$f":"SUM(G59:V59)","v":0}]
[null,"Age 13-17",null,null,null,null,{"$f":"SUM('1. Demographics'!H149:I149)","v":0},null,{"$f":"SUM('1. Demographics'!J149)","v":0},null,{"$f":"SUM('1. Demographics'!M149)","v":0},null,{"$f":"SUM('1. Demographics'!P149)","v":0},null,{"$f":"SUM('1. Demographics'!S149)","v":0},null,{"$f":"SUM('1. Demographics'!V149)","v":0},null,{"$f":"SUM('1. Demographics'!Y149)","v":0},null,{"$f":"SUM('1. Demographics'!AB149)","v":0},null,0]
[null,"Age 18-24",null,null,null,null,{"$f":"SUM('1. Demographics'!H150:I150)","v":0},null,{"$f":"SUM('1. Demographics'!J150)","v":0},null,{"$f":"SUM('1. Demographics'!M150)","v":0},null,{"$f":"SUM('1. Demographics'!P150)","v":0},null,{"$f":"SUM('1. Demographics'!S150)","v":0},null,{"$f":"SUM('1. Demographics'!V150)","v":0},null,{"$f":"SUM('1. Demographics'!Y150)","v":0},null,{"$f":"SUM('1. Demographics'!AB150)","v":0},null,0]
[null,"Age 25-59",null,null,null,null,{"$f":"SUM('1. Demographics'!H151:I151)","v":0},null,{"$f":"SUM('1. Demographics'!J151)","v":0},null,{"$f":"SUM('1. Demographics'!M151)","v":0},null,{"$f":"SUM('1. Demographics'!O151)","v":0},null,{"$f":"SUM('1. Demographics'!Q151)","v":0},null,{"$f":"SUM('1. Demographics'!S151)","v":0},null,{"$f":"SUM('1. Demographics'!U151)","v":0},null,{"$f":"SUM('1. Demographics'!W151)","v":0},null,0]
[null,"Age 60 and Older",null,null,null,null,{"$f":"SUM('1. Demographics'!H154)","v":0},null,{"$f":"SUM('1. Demographics'!J154)","v":0},null,{"$f":"SUM('1. Demographics'!M155)","v":0},null,{"$f":"SUM('1. Demographics'!O155)","v":0},null,{"$f":"SUM('1. Demographics'!Q155)","v":0},null,{"$f":"SUM('1. Demographics'!S155)","v":0},null,{"$f":"SUM('1. Demographics'!U155)","v":0},null,{"$f":"SUM('1. Demographics'!W155)","v":0},null,0]
[null,"Not Reported",null,null,null,null,{"$f":"SUM('1. Demographics'!H157:I157)","v":0},null,{"$f":"SUM('1. Demographics'!J157)","v":0},null,{"$f":"SUM('1. Demographics'!M157)","v":0},null,{"$f":"SUM('1. Demographics'!O157)","v":0},null,{"$f":"SUM('1. Demographics'!Q157)","v":0},null,{"$f":"SUM('1. Demographics'!S157)","v":0},null,{"$f":"SUM('1. Demographics'!U157)","v":0},null,{"$f":"SUM('1. Demographics'!W157)","v":0},null,0]
[null,"Not Tracked",null,null,null,null,{"$f":"SUM('1. Demographics'!H158)","v":0},null,{"$f":"SUM('1. Demographics'!J158)","v":0},null,{"$f":"SUM('1. Demographics'!M158)","v":0},null,{"$f":"SUM('1. Demographics'!P158)","v":0},null,{"$f":"SUM('1. Demographics'!S158)","v":0},null,{"$f":"SUM('1. Demographics'!V158)","v":0},null,{"$f":"SUM('1. Demographics'!Y158)","v":0},null,{"$f":"SUM('1. Demographics'!AB158)","v":0},null,0]
[null,"Age Total (auto-calculated after save):",null,null,null,null,{"$f":"SUM(G59:H65)","v":0},null,{"$f":"SUM(I59:J65)","v":0},null,{"$f":"SUM(K59:L65)","v":0},null,{"$f":"SUM(M59:N65)","v":0},null,{"$f":"SUM(O59:P65)","v":0},null,{"$f":"SUM(Q59:R65)","v":0},null,{"$f":"SUM(S59:T65)","v":0},null,{"$f":"SUM(U59:V65)","v":0},null,{"$f":"SUM(W59:X65)","v":0}]
[]
[null,"5. Types of Victimizations (for ALL individuals identified in Question 1 and 2)"]
[]
[null,"A. Number of Individuals who Received Services Based on a Presenting Victimization During the Reporting Period",null,null,null,null,null,null,null,null,null,null,null,null,null,null,null,null,null,null,null,null,null,null,"Overview"]
[null,"Victimization Type",null,null,null,null,null,null,"Number of Individuals - Year 1",null,null,null,null,null,null,null,"Number of Individuals - Year 2",null,null,null,null,null,null,null,"Cumulative Total",null,"Statewide \nCumulative Total"]
[null,null,null,null,null,null,null,null,"Reporting Period 1",null,"Reporting Period 2",null,"Reporting Period 3",null,"Reporting Period 4",null,"Reporting Period 5",null,"Reporting Period 6",null,"Reporting Period 7",null,"Reporting Period 8"]
[null,"Adult Physical Assault (Includes Aggravated and Simple Assault)",null,null,null,null,null,null,{"$f":"SUM('1. Demographics'!H172:I172)","v":0},null,{"$f":"SUM('1. Demographics'!J172)","v":0},null,{"$f":"SUM('1. Demographics'!M172)","v":0},null,{"$f":"SUM('1. Demographics'!P172)","v":0},null,{"$f":"SUM('1. Demographics'!S172)","v":0},null,{"$f":"SUM('1. Demographics'!V172)","v":0},null,{"$f":"SUM('1. Demographics'!Y172)","v":0},null,{"$f":"SUM('1. Demographics'!AB172)","v":0},null,{"$f":"SUM(I73:X73)","v":0}]
[null,"Adult Sexual Assault",null,null,null,null,null,null,{"$f":"SUM('1. Demographics'!H173:I173)","v":0},null,{"$f":"SUM('1. Demographics'!J173)","v":0},null,{"$f":"SUM('1. Demographics'!M173)","v":0},null,{"$f":"SUM('1. Demographics'!P173)","v":0},null,{"$f":"SUM('1. Demographics'!S173)","v":0},null,{"$f":"SUM('1. Demographics'!V173)","v":0},null,{"$f":"SUM('1. Demographics'!Y173)","v":0},null,{"$f":"SUM('1. Demographics'!AB173)","v":0},null,{"$f":"SUM(I74:X74)","v":0}]
[null,"Adults Sexually Abused/Assaulted as Children",null,null,null,null,null,null,{"$f":"SUM('1. Demographics'!H174:I174)","v":0},null,{"$f":"SUM('1. Demographics'!J174)","v":0},null,{"$f":"SUM('1. Demographics'!M174)","v":0},null,{"$f":"SUM('1. Demographics'!P174)","v":0},null,{"$f":"SUM('1. Demographics'!S174)","v":0},null,{"$f":"SUM('1. Demographics'!V174)","v":0},null,{"$f":"SUM('1. Demographics'!Y174)","v":0},null,{"$f":"SUM('1. Demographics'!AB174)","v":0},null,0]
[null,"Arson",null,null,null,null,null,null,{"$f":"SUM('1. Demographics'!H175:I175)","v":0},null,{"$f":"SUM('1. Demographics'!J175)","v":0},null,{"$f":"SUM('1. Demographics'!M175)","v":0},null,{"$f":"SUM('1. Demographics'!P175)","v":0},null,{"$f":"SUM('1. Demographics'!S175)","v":0},null,{"$f":"SUM('1. Demographics'!V175)","v":0},null,{"$f":"SUM('1. Demographics'!Y175)","v":0},null,{"$f":"SUM('1. Demographics'!AB175)","v":0},null,0]
[null,"Bullying (Verbal, Cyber, or Physical) ",null,null,null,null,null,null,{"$f":"SUM('1. Demographics'!H176:I176)","v":0},null,{"$f":"SUM('1. Demographics'!J176)","v":0},null,{"$f":"SUM('1. Demographics'!M176)","v":0},null,{"$f":"SUM('1. Demographics'!P176)","v":0},null,{"$f":"SUM('1. Demographics'!S176)","v":0},null,{"$f":"SUM('1. Demographics'!V176)","v":0},null,{"$f":"SUM('1. Demographics'!Y176)","v":0},null,{"$f":"SUM('1. Demographics'!AB176)","v":0},null,0]
[null,"Burglary",null,null,null,null,null,null,{"$f":"SUM('1. Demographics'!H177:I177)","v":0},null,{"$f":"SUM('1. Demographics'!J177)","v":0},null,{"$f":"SUM('1. Demographics'!M177)","v":0},null,{"$f":"SUM('1. Demographics'!P177)","v":0},null,{"$f":"SUM('1. Demographics'!S177)","v":0},null,{"$f":"SUM('1. Demographics'!V177)","v":0},null,{"$f":"SUM('1. Demographics'!Y177)","v":0},null,{"$f":"SUM('1. Demographics'!AB177)","v":0},null,0]
[null,"Child Physical Abuse or Neglect",null,null,null,null,null,null,{"$f":"SUM('1. Demographics'!H178:I178)","v":0},null,{"$f":"SUM('1. Demographics'!J178)","v":0},null,{"$f":"SUM('1. Demographics'!M178)","v":0},null,{"$f":"SUM('1. Demographics'!P178)","v":0},null,{"$f":"SUM('1. Demographics'!S178)","v":0},null,{"$f":"SUM('1. Demographics'!V178)","v":0},null,{"$f":"SUM('1. Demographics'!Y178)","v":0},null,{"$f":"SUM('1. Demographics'!AB178)","v":0},null,0]
[null,"Child Pornography",null,null,null,null,null,null,{"$f":"SUM('1. Demographics'!H179:I179)","v":0},null,{"$f":"SUM('1. Demographics'!J179)","v":0},null,{"$f":"SUM('1. Demographics'!M179)","v":0},null,{"$f":"SUM('1. Demographics'!P179)","v":0},null,{"$f":"SUM('1. Demographics'!S179)","v":0},null,{"$f":"SUM('1. Demographics'!V179)","v":0},null,{"$f":"SUM('1. Demographics'!Y179)","v":0},null,{"$f":"SUM('1. Demographics'!AB179)","v":0},null,0]
[null,"Child Sexual Abuse/Assault",null,null,null,null,null,null,{"$f":"SUM('1. Demographics'!H180:I180)","v":0},null,{"$f":"SUM('1. Demographics'!J180)","v":0},null,{"$f":"SUM('1. Demographics'!M180)","v":0},null,{"$f":"SUM('1. Demographics'!P180)","v":0},null,{"$f":"SUM('1. Demographics'!S180)","v":0},null,{"$f":"SUM('1. Demographics'!V180)","v":0},null,{"$f":"SUM('1. Demographics'!Y180)","v":0},null,{"$f":"SUM('1. Demographics'!AB180)","v":0},null,0]
[null,"Domestic and/or Family Violence",null,null,null,null,null,null,{"$f":"SUM('1. Demographics'!H181:I181)","v":0},null,{"$f":"SUM('1. Demographics'!J181)","v":0},null,{"$f":"SUM('1. Demographics'!M181)","v":0},null,{"$f":"SUM('1. Demographics'!P181)","v":0},null,{"$f":"SUM('1. Demographics'!S181)","v":0},null,{"$f":"SUM('1. Demographics'!V181)","v":0},null,{"$f":"SUM('1. Demographics'!Y181)","v":0},null,{"$f":"SUM('1. Demographics'!AB181)","v":0},null,0]
[null,"DUI/DWI Incidents",null,null,null,null,null,null,{"$f":"SUM('1. Demographics'!H182:I182)","v":0},null,{"$f":"SUM('1. Demographics'!J182)","v":0},null,{"$f":"SUM('1. Demographics'!M182)","v":0},null,{"$f":"SUM('1. Demographics'!P182)","v":0},null,{"$f":"SUM('1. Demographics'!S182)","v":0},null,{"$f":"SUM('1. Demographics'!V182)","v":0},null,{"$f":"SUM('1. Demographics'!Y182)","v":0},null,{"$f":"SUM('1. Demographics'!AB182)","v":0},null,0]
[null,"Elder Abuse or Neglect",null,null,null,null,null,null,{"$f":"SUM('1. Demographics'!H183:I183)","v":0},null,{"$f":"SUM('1. Demographics'!J183)","v":0},null,{"$f":"SUM('1. Demographics'!M183)","v":0},null,{"$f":"SUM('1. Demographics'!P183)","v":0},null,{"$f":"SUM('1. Demographics'!S183)","v":0},null,{"$f":"SUM('1. Demographics'!V183)","v":0},null,{"$f":"SUM('1. Demographics'!Y183)","v":0},null,{"$f":"SUM('1. Demographics'!AB183)","v":0},null,0]
[null,"Hate Crime: Racial/Religious/Gender/Sexual Orientation/Other",null,null,null,null,null,null,{"$f":"SUM('1. Demographics'!I184)","v":0},null,{"$f":"SUM('1. Demographics'!L184)","v":0},null,{"$f":"SUM('1. Demographics'!O184)","v":0},null,{"$f":"SUM('1. Demographics'!R184)","v":0},null,{"$f":"SUM('1. Demographics'!U184)","v":0},null,{"$f":"SUM('1. Demographics'!X184)","v":0},null,{"$f":"SUM('1. Demographics'!AA184)","v":0},null,{"$f":"SUM('1. Demographics'!AD184)","v":0},null,0]
[null,"(Explanation Required)",null,{"$f":"_xlfn.CONCAT('1. Demographics'!E185:G185, \";\", '1. Demographics'!E186:G186, \";\", '1. Demographics'!E187:G187, \";\", '1. Demographics'!E188:G188, \";\", '1. Demographics'!E189:G189)","v":";;;;"}]
[]
[null,"Human Trafficking: Labor",null,null,null,null,null,null,{"$f":"SUM('1. Demographics'!H190:I190)","v":0},null,{"$f":"SUM('1. Demographics'!J190)","v":0},null,{"$f":"SUM('1. Demographics'!M190)","v":0},null,{"$f":"SUM('1. Demographics'!P190)","v":0},null,{"$f":"SUM('1. Demographics'!S190)","v":0},null,{"$f":"SUM('1. Demographics'!V190)","v":0},null,{"$f":"SUM('1. Demographics'!Y190)","v":0},null,{"$f":"SUM('1. Demographics'!AB190)","v":0},null,0]
[null,"Human Trafficking: Sex",null,null,null,null,null,null,{"$f":"SUM('1. Demographics'!H191:I191)","v":0},null,{"$f":"SUM('1. Demographics'!J191)","v":0},null,{"$f":"SUM('1. Demographics'!M191)","v":0},null,{"$f":"SUM('1. Demographics'!P191)","v":0},null,{"$f":"SUM('1. Demographics'!S191)","v":0},null,{"$f":"SUM('1. Demographics'!V191)","v":0},null,{"$f":"SUM('1. Demographics'!Y191)","v":0},null,{"$f":"SUM('1. Demographics'!AB191)","v":0},null,0]
[null,"Identity Theft/Fraud/Financial Crime",null,null,null,null,null,null,{"$f":"SUM('1. Demographics'!H192:I192)","v":0},null,{"$f":"SUM('1. Demographics'!J192)","v":0},null,{"$f":"SUM('1. Demographics'!M192)","v":0},null,{"$f":"SUM('1. Demographics'!P192)","v":0},null,{"$f":"SUM('1. Demographics'!S192)","v":0},null,{"$f":"SUM('1. Demographics'!V192)","v":0},null,{"$f":"SUM('1. Demographics'!Y192)","v":0},null,{"$f":"SUM('1. Demographics'!AB192)","v":0},null,0]
[null,"Kidnapping (non-custodial)",null,null,null,null,null,null,{"$f":"SUM('1. Demographics'!H193:I193)","v":0},null,{"$f":"SUM('1. Demographics'!J193)","v":0},null,{"$f":"SUM('1. Demographics'!M193)","v":0},null,{"$f":"SUM('1. Demographics'!P193)","v":0},null,{"$f":"SUM('1. Demographics'!S193)","v":0},null,{"$f":"SUM('1. Demographics'!V193)","v":0},null,{"$f":"SUM('1. Demographics'!Y193)","v":0},null,{"$f":"SUM('1. Demographics'!AB193)","v":0},null,0]
[null,"Kidnapping (custodial)",null,null,null,null,null,null,{"$f":"SUM('1. Demographics'!H194:I194)","v":0},null,{"$f":"SUM('1. Demographics'!J194)","v":0},null,{"$f":"SUM('1. Demographics'!M194)","v":0},null,{"$f":"SUM('1. Demographics'!P194)","v":0},null,{"$f":"SUM('1. Demographics'!S194)","v":0},null,{"$f":"SUM('1. Demographics'!V194)","v":0},null,{"$f":"SUM('1. Demographics'!Y194)","v":0},null,{"$f":"SUM('1. Demographics'!AB194)","v":0},null,0]
[null,"Mass Violence (Domestic/International)",null,null,null,null,null,null,{"$f":"SUM('1. Demographics'!H195:I195)","v":0},null,{"$f":"SUM('1. Demographics'!J195)","v":0},null,{"$f":"SUM('1. Demographics'!M195)","v":0},null,{"$f":"SUM('1. Demographics'!P195)","v":0},null,{"$f":"SUM('1. Demographics'!S195)","v":0},null,{"$f":"SUM('1. Demographics'!V195)","v":0},null,{"$f":"SUM('1. Demographics'!Y195)","v":0},null,{"$f":"SUM('1. Demographics'!AB195)","v":0},null,0]
[null,"Other Vehicular Victimization (e.g., Hit and Run) ",null,null,null,null,null,null,{"$f":"SUM('1. Demographics'!H196:I196)","v":0},null,{"$f":"SUM('1. Demographics'!J196)","v":0},null,{"$f":"SUM('1. Demographics'!M196)","v":0},null,{"$f":"SUM('1. Demographics'!P196)","v":0},null,{"$f":"SUM('1. Demographics'!S196)","v":0},null,{"$f":"SUM('1. Demographics'!V196)","v":0},null,{"$f":"SUM('1. Demographics'!Y196)","v":0},null,{"$f":"SUM('1. Demographics'!AB196)","v":0},null,0]
[null,"Robbery",null,null,null,null,null,null,{"$f":"SUM('1. Demographics'!H197:I197)","v":0},null,{"$f":"SUM('1. Demographics'!J197)","v":0},null,{"$f":"SUM('1. Demographics'!M197)","v":0},null,{"$f":"SUM('1. Demographics'!P197)","v":0},null,{"$f":"SUM('1. Demographics'!S197)","v":0},null,{"$f":"SUM('1. Demographics'!V197)","v":0},null,{"$f":"SUM('1. Demographics'!Y197)","v":0},null,{"$f":"SUM('1. Demographics'!AB197)","v":0},null,0]
[null,"Stalking/Harassment",null,null,null,null,null,null,{"$f":"SUM('1. Demographics'!H198:I198)","v":0},null,{"$f":"SUM('1. Demographics'!J198)","v":0},null,{"$f":"SUM('1. Demographics'!M198)","v":0},null,{"$f":"SUM('1. Demographics'!P198)","v":0},null,{"$f":"SUM('1. Demographics'!S198)","v":0},null,{"$f":"SUM('1. Demographics'!V198)","v":0},null,{"$f":"SUM('1. Demographics'!Y198)","v":0},null,{"$f":"SUM('1. Demographics'!AB198)","v":0},null,0]
[null,"Survivors of Homicide Victims ",null,null,null,null,null,null,{"$f":"SUM('1. Demographics'!H199:I199)","v":0},null,{"$f":"SUM('1. Demographics'!J199)","v":0},null,{"$f":"SUM('1. Demographics'!M199)","v":0},null,{"$f":"SUM('1. Demographics'!P199)","v":0},null,{"$f":"SUM('1. Demographics'!S199)","v":0},null,{"$f":"SUM('1. Demographics'!V199)","v":0},null,{"$f":"SUM('1. Demographics'!Y199)","v":0},null,{"$f":"SUM('1. Demographics'!AB199)","v":0},null,0]
[null,"Teen Dating Victimization",null,null,null,null,null,null,{"$f":"SUM('1. Demographics'!H200:I200)","v":0},null,{"$f":"SUM('1. Demographics'!J200)","v":0},null,{"$f":"SUM('1. Demographics'!M200)","v":0},null,{"$f":"SUM('1. Demographics'!P200)","v":0},null,{"$f":"SUM('1. Demographics'!S200)","v":0},null,{"$f":"SUM('1. Demographics'!V200)","v":0},null,{"$f":"SUM('1. Demographics'!Y200)","v":0},null,{"$f":"SUM('1. Demographics'!AB200)","v":0},null,0]
[null,"Terrorism (Domestic/International)",null,null,null,null,null,null,{"$f":"SUM('1. Demographics'!H201:I201)","v":0},null,{"$f":"SUM('1. Demographics'!J201)","v":0},null,{"$f":"SUM('1. Demographics'!M201)","v":0},null,{"$f":"SUM('1. Demographics'!P201)","v":0},null,{"$f":"SUM('1. Demographics'!S201)","v":0},null,{"$f":"SUM('1. Demographics'!V201)","v":0},null,{"$f":"SUM('1. Demographics'!Y201)","v":0},null,{"$f":"SUM('1. Demographics'!AB201)","v":0},null,0]
[null,"Other",null,null,null,null,null,null,{"$f":"SUM('1. Demographics'!I202)","v":0},null,{"$f":"SUM('1. Demographics'!L202)","v":0},null,{"$f":"SUM('1. Demographics'!O202)","v":0},null,{"$f":"SUM('1. Demographics'!R202)","v":0},null,{"$f":"SUM('1. Demographics'!U202)","v":0},null,{"$f":"SUM('1. Demographics'!X202)","v":0},null,{"$f":"SUM('1. Demographics'!AA202)","v":0},null,{"$f":"SUM('1. Demographics'!AD202)","v":0},null,{"$f":"SUM(I100:X100)","v":0}]
[null,"Not Reported",null,null,null,null,null,null,{"$f":"SUM('1. Demographics'!H206)","v":0},null,{"$f":"'1. Demographics'!J206","v":0},null,{"$f":"'1. Demographics'!M206","v":0},null,{"$f":"'1. Demographics'!P206","v":0},null,{"$f":"'1. Demographics'!S206","v":0},null,{"$f":"'1. Demographics'!V206","v":0},null,{"$f":"'1. Demographics'!Y206","v":0},null,{"$f":"'1. Demographics'!AB206","v":0},null,{"$f":"SUM(I101:X101)","v":0}]
[null,"Not Tracked",null,null,null,null,null,null,{"$f":"SUM('1. Demographics'!H207)","v":0},null,{"$f":"'1. Demographics'!J207","v":0},null,{"$f":"'1. Demographics'!M207","v":0},null,{"$f":"'1. Demographics'!P207","v":0},null,{"$f":"'1. Demographics'!S207","v":0},null,{"$f":"'1. Demographics'!V207","v":0},null,{"$f":"'1. Demographics'!Y207","v":0},null,{"$f":"'1. Demographics'!AB207","v":0},null,0]
[null,"Total (auto-calculated):",null,null,null,null,null,null,{"$f":"SUM(I73:J102)","v":0},null,{"$f":"SUM(K73:L102)","v":0},null,{"$f":"SUM(M73:N102)","v":0},null,{"$f":"SUM(O73:P102)","v":0},null,{"$f":"SUM(Q73:R102)","v":0},null,{"$f":"SUM(S73:T102)","v":0},null,{"$f":"SUM(U73:V102)","v":0},null,{"$f":"SUM(W73:X102)","v":0},null,{"$f":"SUM(Y91:Z102)","v":0}]
[null,null,null,null,null,null,null,null,null,null,null,null,null,null,null,null,null,null,null,null,null,null,null,null,"Cumulative Total",null,"Statewide \nCumulative Total"]
[null,"B. Of the individuals who received services, how many presented with more than one type of victimization during the reporting period?",null,null,null,null,null,null,"Reporting Period 1",null,"Reporting Period 2",null,"Reporting Period 3",null,"Reporting Period 4",null,"Reporting Period 5",null,"Reporting Period 6",null,"Reporting Period 7",null,"Reporting Period 8"]
[null,null,null,null,null,null,null,null,{"$f":"SUM('1. Demographics'!H210:I211)","v":0},null,{"$f":"SUM('1. Demographics'!J210)","v":0},null,{"$f":"SUM('1. Demographics'!M210)","v":0},null,{"$f":"SUM('1. Demographics'!P210)","v":0},null,{"$f":"SUM('1. Demographics'!S210)","v":0},null,{"$f":"SUM('1. Demographics'!V210)","v":0},null,{"$f":"SUM('1. Demographics'!Y210)","v":0},null,{"$f":"SUM('1. Demographics'!AB210)","v":0},null,{"$f":"SUM(I106:X107)","v":0}]
[]
[]
[null,"C. Special Classification of Individuals (Self-Reported)",null,null,null,null,null,null,null,null,null,null,null,null,null,null,null,null,null,null,null,null,null,null,"Overview"]
[null,"Special Classification Type",null,null,null,null,null,null,"Number of Individuals - Year 1",null,null,null,null,null,null,null,"Number of Individuals - Year 2",null,null,null,null,null,null,null,"Cumulative Total",null,"Statewide \nCumulative Total"]
[null,null,null,null,null,null,null,null,"Reporting Period 1",null,"Reporting Period 2",null,"Reporting Period 3",null,"Reporting Period 4",null,"Reporting Period 5",null,"Reporting Period 6",null,"Reporting Period 7",null,"Reporting Period 8"]
[null,"Deaf/Hard of Hearing",null,null,null,null,null,null,{"$f":"SUM('1. Demographics'!H216:I216)","v":0},null,{"$f":"SUM('1. Demographics'!J216)","v":0},null,{"$f":"SUM('1. Demographics'!M216)","v":0},null,{"$f":"SUM('1. Demographics'!P216)","v":0},null,{"$f":"SUM('1. Demographics'!S216)","v":0},null,{"$f":"SUM('1. Demographics'!V216)","v":0},null,{"$f":"SUM('1. Demographics'!Y216)","v":0},null,{"$f":"SUM('1. Demographics'!AB216)","v":0},null,{"$f":"SUM(I112:X112)","v":0}]
[null,"Homeless",null,null,null,null,null,null,{"$f":"SUM('1. Demographics'!H217:I217)","v":0},null,{"$f":"SUM('1. Demographics'!J217)","v":0},null,{"$f":"SUM('1. Demographics'!M217)","v":0},null,{"$f":"SUM('1. Demographics'!P217)","v":0},null,{"$f":"SUM('1. Demographics'!S217)","v":0},null,{"$f":"SUM('1. Demographics'!V217)","v":0},null,{"$f":"SUM('1. Demographics'!Y217)","v":0},null,{"$f":"SUM('1. Demographics'!AB217)","v":0},null,0]
[null,"Immigrants/Refugees/Asylum Seekers",null,null,null,null,null,null,{"$f":"SUM('1. Demographics'!H218:I218)","v":0},null,{"$f":"SUM('1. Demographics'!J218)","v":0},null,{"$f":"SUM('1. Demographics'!M218)","v":0},null,{"$f":"SUM('1. Demographics'!P218)","v":0},null,{"$f":"SUM('1. Demographics'!S218)","v":0},null,{"$f":"SUM('1. Demographics'!V218)","v":0},null,{"$f":"SUM('1. Demographics'!Y218)","v":0},null,{"$f":"SUM('1. Demographics'!AB218)","v":0},null,{"$f":"SUM(I114:X114)","v":0}]
[null,"LGBTQ",null,null,null,null,null,null,{"$f":"SUM('1. Demographics'!H219:I219)","v":0},null,{"$f":"SUM('1. Demographics'!J219)","v":0},null,{"$f":"SUM('1. Demographics'!M219)","v":0},null,{"$f":"SUM('1. Demographics'!P219)","v":0},null,{"$f":"SUM('1. Demographics'!S219)","v":0},null,{"$f":"SUM('1. Demographics'!V219)","v":0},null,{"$f":"SUM('1. Demographics'!Y219)","v":0},null,{"$f":"SUM('1. Demographics'!AB219)","v":0},null,0]
[null,"Veterans",null,null,null,null,null,null,{"$f":"SUM('1. Demographics'!H220:I220)","v":0},null,{"$f":"SUM('1. Demographics'!J220)","v":0},null,{"$f":"SUM('1. Demographics'!M220)","v":0},null,{"$f":"SUM('1. Demographics'!P220)","v":0},null,{"$f":"SUM('1. Demographics'!S220)","v":0},null,{"$f":"SUM('1. Demographics'!V220)","v":0},null,{"$f":"SUM('1. Demographics'!Y220)","v":0},null,{"$f":"SUM('1. Demographics'!AB220)","v":0},null,0]
[null,"Victims with Disabilities: Cognitive/Physical/Mental",null,null,null,null,null,null,{"$f":"SUM('1. Demographics'!H221:I221)","v":0},null,{"$f":"SUM('1. Demographics'!L221)","v":0},null,{"$f":"SUM('1. Demographics'!O221)","v":0},null,{"$f":"SUM('1. Demographics'!R221)","v":0},null,{"$f":"SUM('1. Demographics'!U221)","v":0},null,{"$f":"SUM('1. Demographics'!X221)","v":0},null,{"$f":"SUM('1. Demographics'!AA221)","v":0},null,{"$f":"SUM('1. Demographics'!AD221)","v":0},null,0]
[null,"Victims with Limited English Proficiency",null,null,null,null,null,null,{"$f":"SUM('1. Demographics'!I227)","v":0},null,{"$f":"SUM('1. Demographics'!L227)","v":0},null,{"$f":"SUM('1. Demographics'!O227)","v":0},null,{"$f":"SUM('1. Demographics'!R227)","v":0},null,{"$f":"SUM('1. Demographics'!U227)","v":0},null,{"$f":"SUM('1. Demographics'!X227)","v":0},null,{"$f":"SUM('1. Demographics'!AA227)","v":0},null,{"$f":"SUM('1. Demographics'!AD227)","v":0},null,0]
[null,"Other",null,null,null,null,null,null,{"$f":"SUM('1. Demographics'!I233)","v":0},null,{"$f":"SUM('1. Demographics'!L233)","v":0},null,{"$f":"SUM('1. Demographics'!O233)","v":0},null,{"$f":"SUM('1. Demographics'!R233)","v":0},null,{"$f":"SUM('1. Demographics'!U233)","v":0},null,{"$f":"SUM('1. Demographics'!X233)","v":0},null,{"$f":"SUM('1. Demographics'!AA233)","v":0},null,{"$f":"SUM('1. Demographics'!AD233)","v":0},null,0]
[null,"Total (auto-calculated):",null,null,null,null,null,null,{"$f":"SUM(I112:J119)","v":0},null,{"$f":"SUM(K112:L119)","v":0},null,{"$f":"SUM(M112:N119)","v":0},null,{"$f":"SUM(O112:P119)","v":0},null,{"$f":"SUM(Q112:R119)","v":0},null,{"$f":"SUM(S112:T119)","v":0},null,{"$f":"SUM(U112:V119)","v":0},null,{"$f":"SUM(W112:X119)","v":0},null,{"$f":"SUM(Y112:Z119)","v":0}]
[null,null,null,null,null,null,null,null,null,null,null,null,null,null,null,null,null,null,null,null,null,null,null,null,"Overview"]
[null,null,null,null,null,null,null,null,null,null,null,null,null,null,null,null,null,null,null,null,null,null,null,null,"Cumulative Total",null,"Statewide \nCumulative Total"]
[null,"6. Number of individuals assisted with a victim compensation application during the reporting period: ",null,null,null,null,null,null,"Reporting Period 1",null,"Reporting Period 2",null,"Reporting Period 3",null,"Reporting Period 4",null,"Reporting Period 5",null,"Reporting Period 6",null,"Reporting Period 7",null,"Reporting Period 8"]
[null,null,null,null,null,null,null,null,{"$f":"SUM('1. Demographics'!H239:I240)","v":0},null,{"$f":"SUM('1. Demographics'!J239)","v":0},null,{"$f":"SUM('1. Demographics'!M239)","v":0},null,{"$f":"SUM('1. Demographics'!P239)","v":0},null,{"$f":"SUM('1. Demographics'!S239)","v":0},null,{"$f":"SUM('1. Demographics'!V239)","v":0},null,{"$f":"SUM('1. Demographics'!Y239)","v":0},null,{"$f":"SUM('1. Demographics'!AB239)","v":0},null,{"$f":"SUM(I124:X125)","v":0}]
[]
[null,null,null,null,null,null,null,null,null,null,null,null,null,null,null,null,null,null,null,null,null,null,null,null,"Overview"]
[null,"7. Select the types of services provided by your organization during the reporting period: ",null,null,null,null,null,null,null,null,null,null,null,null,null,null,null,null,null,null,null,null,null,null,"Statewide \nAverage Response",null,"Statewide \nTotal"]
[null,null,null,null,null,null,null,null,"Reporting Period 1",null,"Reporting Period 2",null,"Reporting Period 3",null,"Reporting Period 4",null,"Reporting Period 5",null,"Reporting Period 6",null,"Reporting Period 7",null,"Reporting Period 8"]
[null,"A. Information & Referral",null,null,null,null,null,null,{"$f":"'1. Demographics'!H244","v":"Yes or No?"},null,{"$f":"'1. Demographics'!K244","v":"Yes or No?"},null,{"$f":"'1. Demographics'!N244","v":"Yes or No?"},null,{"$f":"'1. Demographics'!Q244","v":"Yes or No?"},null,{"$f":"'1. Demographics'!T244","v":"Yes or No?"},null,{"$f":"'1. Demographics'!W244","v":"Yes or No?"},null,{"$f":"'1. Demographics'!Z244","v":"Yes or No?"},null,{"$f":"'1. Demographics'!AC244","v":"Yes or No?"}]
[null,"B. Personal Advocacy/Accompaniment",null,null,null,null,null,null,{"$f":"'1. Demographics'!H252","v":"Yes or No?"},null,{"$f":"'1. Demographics'!K252","v":"Yes or No?"},null,{"$f":"'1. Demographics'!N252","v":"Yes or No?"},null,{"$f":"'1. Demographics'!Q252","v":"Yes or No?"},null,{"$f":"'1. Demographics'!T252","v":"Yes or No?"},null,{"$f":"'1. Demographics'!W252","v":"Yes or No?"},null,{"$f":"'1. Demographics'!Z252","v":"Yes or No?"},null,{"$f":"'1. Demographics'!AC252","v":"Yes or No?"}]
[null,"C. Emotional Support or Safety Services",null,null,null,null,null,null,{"$f":"'1. Demographics'!H266","v":"Yes or No?"},null,{"$f":"'1. Demographics'!K266","v":"Yes or No?"},null,{"$f":"'1. Demographics'!N266","v":"Yes or No?"},null,{"$f":"'1. Demographics'!Q266","v":"Yes or No?"},null,{"$f":"'1. Demographics'!T266","v":"Yes or No?"},null,{"$f":"'1. Demographics'!W266","v":"Yes or No?"},null,{"$f":"'1. Demographics'!Z266","v":"Yes or No?"},null,{"$f":"'1. Demographics'!AC266","v":"Yes or No?"}]
[null,"D. Shelter/Housing Services",null,null,null,null,null,null,{"$f":"'1. Demographics'!H277","v":"Yes or No?"},null,{"$f":"'1. Demographics'!K277","v":"Yes or No?"},null,{"$f":"'1. Demographics'!N277","v":"Yes or No?"},null,{"$f":"'1. Demographics'!Q277","v":"Yes or No?"},null,{"$f":"'1. Demographics'!T277","v":"Yes or No?"},null,{"$f":"'1. Demographics'!W277","v":"Yes or No?"},null,{"$f":"'1. Demographics'!Z277","v":"Yes or No?"},null,{"$f":"'1. Demographics'!Z277","v":"Yes or No?"}]
[null,"E. Criminal/Civil Justice System Assistance",null,null,null,null,null,null,{"$f":"'1. Demographics'!H284","v":"Yes or No?"},null,{"$f":"'1. Demographics'!K284","v":"Yes or No?"},null,{"$f":"'1. Demographics'!N284","v":"Yes or No?"},null,{"$f":"'1. Demographics'!Q284","v":"Yes or No?"},null,{"$f":"'1. Demographics'!T284","v":"Yes or No?"},null,{"$f":"'1. Demographics'!W284","v":"Yes or No?"},null,{"$f":"'1. Demographics'!Z284","v":"Yes or No?"},null,{"$f":"'1. Demographics'!AC284","v":"Yes or No?"}]
[]
[null,null,null,null,null,null,null,null,null,null,null,null,null,null,null,null,null,null,null,null,null,null,null,null,"Overview"]
[null,"8. Total number of individuals who received services by service type AND number of times each service was provided during the reporting period:",null,null,null,null,null,null,null,null,null,null,null,null,null,null,null,null,null,null,null,null,null,null,"Cumulative Total",null,"Statewide \nCumulative Total"]
[]
[null,null,null,null,null,null,null,null,"Reporting Period 1",null,"Reporting Period 2",null,"Reporting Period 3",null,"Reporting Period 4",null,"Reporting Period 5",null,"Reporting Period 6",null,"Reporting Period 7",null,"Reporting Period 8"]
[null,"A. Information & Referral"]
[null,"Number of Individuals",null,null,null,null,null,null,{"$f":"'1. Demographics'!H245","v":0},null,{"$f":"'1. Demographics'!J245","v":0},null,{"$f":"'1. Demographics'!M245","v":0},null,{"$f":"'1. Demographics'!P245","v":0},null,{"$f":"'1. Demographics'!S245","v":0},null,{"$f":"'1. Demographics'!V245","v":0},null,{"$f":"'1. Demographics'!Y245","v":0},null,{"$f":"'1. Demographics'!AB245","v":0},null,{"$f":"SUM(I140:X140)","v":0}]
[null,"Number of Times/Occurances"]
[null,"1. Information about the criminal justice process",null,null,null,null,null,null,{"$f":"'1. Demographics'!H247","v":0},null,{"$f":"'1. Demographics'!J247","v":0},null,{"$f":"'1. Demographics'!M247","v":0},null,{"$f":"'1. Demographics'!P247","v":0},null,{"$f":"'1. Demographics'!S247","v":0},null,{"$f":"'1. Demographics'!V247","v":0},null,{"$f":"'1. Demographics'!Y247","v":0},null,{"$f":"'1. Demographics'!AB247","v":0},null,{"$f":"SUM(I142:X142)","v":0}]
[null,"2. Information on victim rights/how to obtain notifications",null,null,null,null,null,null,{"$f":"'1. Demographics'!H248","v":0},null,{"$f":"'1. Demographics'!J248","v":0},null,{"$f":"'1. Demographics'!M248","v":0},null,{"$f":"'1. Demographics'!P248","v":0},null,{"$f":"'1. Demographics'!S248","v":0},null,{"$f":"'1. Demographics'!V248","v":0},null,{"$f":"'1. Demographics'!Y248","v":0},null,{"$f":"'1. Demographics'!AB248","v":0},null,0]
[null,"3. Referral to other victim service programs",null,null,null,null,null,null,{"$f":"'1. Demographics'!H249","v":0},null,{"$f":"'1. Demographics'!J249","v":0},null,{"$f":"'1. Demographics'!M249","v":0},null,{"$f":"'1. Demographics'!P249","v":0},null,{"$f":"'1. Demographics'!S249","v":0},null,{"$f":"'1. Demographics'!V249","v":0},null,{"$f":"'1. Demographics'!Y249","v":0},null,{"$f":"'1. Demographics'!AB249","v":0},null,0]
[null,"4. Referral to other services/supports/resources",null,null,null,null,null,null,{"$f":"'1. Demographics'!H250","v":0},null,{"$f":"'1. Demographics'!J250","v":0},null,{"$f":"'1. Demographics'!M250","v":0},null,{"$f":"'1. Demographics'!P250","v":0},null,{"$f":"'1. Demographics'!S250","v":0},null,{"$f":"'1. Demographics'!V250","v":0},null,{"$f":"'1. Demographics'!Y250","v":0},null,{"$f":"'1. Demographics'!AB250","v":0},null,0]
[null,"B. Personal Advocacy/Accompaniment"]
[null,"Number of Individuals",null,null,null,null,null,null,{"$f":"'1. Demographics'!H253","v":0},null,{"$f":"'1. Demographics'!J253","v":0},null,{"$f":"'1. Demographics'!M253","v":0},null,{"$f":"'1. Demographics'!P253","v":0},null,{"$f":"'1. Demographics'!S253","v":0},null,{"$f":"'1. Demographics'!V253","v":0},null,{"$f":"'1. Demographics'!Y253","v":0},null,{"$f":"'1. Demographics'!AB253","v":0},null,{"$f":"SUM(I147:X147)","v":0}]
[null,"Number of Times/Occurances"]
[null,"1. Victim advocacy/accompaniment to emergency medical care",null,null,null,null,null,null,{"$f":"'1. Demographics'!H255","v":0},null,{"$f":"'1. Demographics'!J255","v":0},null,{"$f":"'1. Demographics'!M255","v":0},null,{"$f":"'1. Demographics'!P255","v":0},null,{"$f":"'1. Demographics'!S255","v":0},null,{"$f":"'1. Demographics'!V255","v":0},null,{"$f":"'1. Demographics'!Y255","v":0},null,{"$f":"'1. Demographics'!AB255","v":0},null,{"$f":"SUM(I149:X149)","v":0}]
[null,"2. Victim advocacy/accompaniment to medical forensic exam",null,null,null,null,null,null,{"$f":"'1. Demographics'!H256","v":0},null,{"$f":"'1. Demographics'!J256","v":0},null,{"$f":"'1. Demographics'!M256","v":0},null,{"$f":"'1. Demographics'!P256","v":0},null,{"$f":"'1. Demographics'!S256","v":0},null,{"$f":"'1. Demographics'!V256","v":0},null,{"$f":"'1. Demographics'!Y256","v":0},null,{"$f":"'1. Demographics'!AB256","v":0},null,0]
[null,"3. Law enforcement interview advocacy/accompaniment",null,null,null,null,null,null,{"$f":"'1. Demographics'!H257","v":0},null,{"$f":"'1. Demographics'!J257","v":0},null,{"$f":"'1. Demographics'!M257","v":0},null,{"$f":"'1. Demographics'!P257","v":0},null,{"$f":"'1. Demographics'!S257","v":0},null,{"$f":"'1. Demographics'!V257","v":0},null,{"$f":"'1. Demographics'!Y257","v":0},null,{"$f":"'1. Demographics'!AB257","v":0},null,0]
[null,"4. Individual advocacy",null,null,null,null,null,null,{"$f":"'1. Demographics'!H258","v":0},null,{"$f":"'1. Demographics'!J258","v":0},null,{"$f":"'1. Demographics'!M258","v":0},null,{"$f":"'1. Demographics'!P258","v":0},null,{"$f":"'1. Demographics'!S258","v":0},null,{"$f":"'1. Demographics'!V258","v":0},null,{"$f":"'1. Demographics'!Y258","v":0},null,{"$f":"'1. Demographics'!AB258","v":0},null,0]
[null,"5. Performance of medical or nonmedical forensic exam or interview, or medical evidence collection",null,null,null,null,null,null,{"$f":"'1. Demographics'!H259","v":0},null,{"$f":"'1. Demographics'!J259","v":0},null,{"$f":"'1. Demographics'!M259","v":0},null,{"$f":"'1. Demographics'!P259","v":0},null,{"$f":"'1. Demographics'!S259","v":0},null,{"$f":"'1. Demographics'!V259","v":0},null,{"$f":"'1. Demographics'!Y259","v":0},null,{"$f":"'1. Demographics'!AB259","v":0},null,0]
[null,"6. Immigration assistance (e.g., special visas, continued presence application, and other immigration relief)",null,null,null,null,null,null,{"$f":"'1. Demographics'!H260","v":0},null,{"$f":"'1. Demographics'!J260","v":0},null,{"$f":"'1. Demographics'!M260","v":0},null,{"$f":"'1. Demographics'!P260","v":0},null,{"$f":"'1. Demographics'!S260","v":0},null,{"$f":"'1. Demographics'!V260","v":0},null,{"$f":"'1. Demographics'!Y260","v":0},null,{"$f":"'1. Demographics'!AB260","v":0},null,0]
[null,"7. Intervention with employer, creditor, landlord, or academic institution",null,null,null,null,null,null,{"$f":"'1. Demographics'!H261","v":0},null,{"$f":"'1. Demographics'!J261","v":0},null,{"$f":"'1. Demographics'!M261","v":0},null,{"$f":"'1. Demographics'!P261","v":0},null,{"$f":"'1. Demographics'!S261","v":0},null,{"$f":"'1. Demographics'!V261","v":0},null,{"$f":"'1. Demographics'!Y261","v":0},null,{"$f":"'1. Demographics'!AB261","v":0},null,0]
[null,"8. Child or dependent care assistance (includes coordination of services)",null,null,null,null,null,null,{"$f":"'1. Demographics'!H262","v":0},null,{"$f":"'1. Demographics'!J262","v":0},null,{"$f":"'1. Demographics'!M262","v":0},null,{"$f":"'1. Demographics'!P262","v":0},null,{"$f":"'1. Demographics'!S262","v":0},null,{"$f":"'1. Demographics'!V262","v":0},null,{"$f":"'1. Demographics'!Y262","v":0},null,{"$f":"'1. Demographics'!AB262","v":0},null,0]
[null,"9. Transportation assistance (includes coordination of services)",null,null,null,null,null,null,{"$f":"'1. Demographics'!H263","v":0},null,{"$f":"'1. Demographics'!J263","v":0},null,{"$f":"'1. Demographics'!M263","v":0},null,{"$f":"'1. Demographics'!P263","v":0},null,{"$f":"'1. Demographics'!S263","v":0},null,{"$f":"'1. Demographics'!V263","v":0},null,{"$f":"'1. Demographics'!Y263","v":0},null,{"$f":"'1. Demographics'!AB263","v":0},null,0]
[null,"10. Interpreter services",null,null,null,null,null,null,{"$f":"'1. Demographics'!H264","v":0},null,{"$f":"'1. Demographics'!J264","v":0},null,{"$f":"'1. Demographics'!M264","v":0},null,{"$f":"'1. Demographics'!P264","v":0},null,{"$f":"'1. Demographics'!S264","v":0},null,{"$f":"'1. Demographics'!V264","v":0},null,{"$f":"'1. Demographics'!Y264","v":0},null,{"$f":"'1. Demographics'!AB264","v":0},null,0]
[null,"C. Emotional Support or Safety Services"]
[null,"Number of Individuals",null,null,null,null,null,null,{"$f":"'1. Demographics'!H267","v":0},null,{"$f":"'1. Demographics'!J267","v":0},null,{"$f":"'1. Demographics'!M267","v":0},null,{"$f":"'1. Demographics'!P267","v":0},null,{"$f":"'1. Demographics'!S267","v":0},null,{"$f":"'1. Demographics'!V267","v":0},null,{"$f":"'1. Demographics'!Y267","v":0},null,{"$f":"'1. Demographics'!AB267","v":0},null,{"$f":"SUM(I160:X160)","v":0}]
[null,"Number of Times/Occurances"]
[null,"1. Crisis intervention (in-person, includes safety planning, etc.)",null,null,null,null,null,null,{"$f":"'1. Demographics'!H269","v":0},null,{"$f":"'1. Demographics'!J269","v":0},null,{"$f":"'1. Demographics'!M269","v":0},null,{"$f":"'1. Demographics'!P269","v":0},null,{"$f":"'1. Demographics'!S269","v":0},null,{"$f":"'1. Demographics'!V269","v":0},null,{"$f":"'1. Demographics'!Y269","v":0},null,{"$f":"'1. Demographics'!AB269","v":0},null,{"$f":"SUM(I162:X162)","v":0}]
[null,"2. Hotline/crisis line counseling",null,null,null,null,null,null,{"$f":"'1. Demographics'!H270","v":0},null,{"$f":"'1. Demographics'!J270","v":0},null,{"$f":"'1. Demographics'!M270","v":0},null,{"$f":"'1. Demographics'!P270","v":0},null,{"$f":"'1. Demographics'!S270","v":0},null,{"$f":"'1. Demographics'!V270","v":0},null,{"$f":"'1. Demographics'!Y270","v":0},null,{"$f":"'1. Demographics'!AB270","v":0},null,0]
[null,"3. On-scene crisis response (e.g., community crisis response)",null,null,null,null,null,null,{"$f":"'1. Demographics'!H271","v":0},null,{"$f":"'1. Demographics'!J271","v":0},null,{"$f":"'1. Demographics'!M271","v":0},null,{"$f":"'1. Demographics'!P271","v":0},null,{"$f":"'1. Demographics'!S271","v":0},null,{"$f":"'1. Demographics'!V271","v":0},null,{"$f":"'1. Demographics'!Y271","v":0},null,{"$f":"'1. Demographics'!AB271","v":0},null,0]
[null,"4. Individual counseling",null,null,null,null,null,null,{"$f":"'1. Demographics'!H272","v":0},null,{"$f":"'1. Demographics'!J272","v":0},null,{"$f":"'1. Demographics'!M272","v":0},null,{"$f":"'1. Demographics'!P272","v":0},null,{"$f":"'1. Demographics'!S272","v":0},null,{"$f":"'1. Demographics'!V272","v":0},null,{"$f":"'1. Demographics'!Y272","v":0},null,{"$f":"'1. Demographics'!AB272","v":0},null,0]
[null,"5. Support groups (facilitated or peer)",null,null,null,null,null,null,{"$f":"'1. Demographics'!H273","v":0},null,{"$f":"'1. Demographics'!J273","v":0},null,{"$f":"'1. Demographics'!M273","v":0},null,{"$f":"'1. Demographics'!P273","v":0},null,{"$f":"'1. Demographics'!S273","v":0},null,{"$f":"'1. Demographics'!V273","v":0},null,{"$f":"'1. Demographics'!Y273","v":0},null,{"$f":"'1. Demographics'!AB273","v":0},null,0]
[null,"6. Other therapy (traditional, cultural, or alternative healing; art, writing, or play therapy, etc.)",null,null,null,null,null,null,{"$f":"'1. Demographics'!H274","v":0},null,{"$f":"'1. Demographics'!J274","v":0},null,{"$f":"'1. Demographics'!M274","v":0},null,{"$f":"'1. Demographics'!P274","v":0},null,{"$f":"'1. Demographics'!S274","v":0},null,{"$f":"'1. Demographics'!V274","v":0},null,{"$f":"'1. Demographics'!Y274","v":0},null,{"$f":"'1. Demographics'!AB274","v":0},null,0]
[null,"7. Emergency financial assistance (includes emergency loans and petty cash, payment for items such as food and/or clothing, changing windows and/or locks, taxis, prophylactic and nonprophylactic medications, durable medical equipment, etc.)",null,null,null,null,null,null,{"$f":"'1. Demographics'!H275","v":0},null,{"$f":"'1. Demographics'!J275","v":0},null,{"$f":"'1. Demographics'!M275","v":0},null,{"$f":"'1. Demographics'!P275","v":0},null,{"$f":"'1. Demographics'!S275","v":0},null,{"$f":"'1. Demographics'!V275","v":0},null,{"$f":"'1. Demographics'!Y275","v":0},null,{"$f":"'1. Demographics'!AB275","v":0},null,0]
[null,"D. Shelter/Housing Services"]
[null,"Number of Individuals",null,null,null,null,null,null,{"$f":"'1. Demographics'!H278","v":0},null,{"$f":"'1. Demographics'!J278","v":0},null,{"$f":"'1. Demographics'!M278","v":0},null,{"$f":"'1. Demographics'!P278","v":0},null,{"$f":"'1. Demographics'!S278","v":0},null,{"$f":"'1. Demographics'!V278","v":0},null,{"$f":"'1. Demographics'!Y278","v":0},null,{"$f":"'1. Demographics'!AB278","v":0},null,{"$f":"SUM(I170:X170)","v":0}]
[null,"Number of Times/Occurances"]
[null,"1. Emergency shelter or safe house",null,null,null,null,null,null,{"$f":"'1. Demographics'!H280","v":0},null,{"$f":"'1. Demographics'!J280","v":0},null,{"$f":"'1. Demographics'!M280","v":0},null,{"$f":"'1. Demographics'!P280","v":0},null,{"$f":"'1. Demographics'!S280","v":0},null,{"$f":"'1. Demographics'!V280","v":0},null,{"$f":"'1. Demographics'!Y280","v":0},null,{"$f":"'1. Demographics'!AB280","v":0},null,{"$f":"SUM(I172:X172)","v":0}]
[null,"2. Transitional housing",null,null,null,null,null,null,{"$f":"'1. Demographics'!H281","v":0},null,{"$f":"'1. Demographics'!J281","v":0},null,{"$f":"'1. Demographics'!M281","v":0},null,{"$f":"'1. Demographics'!P281","v":0},null,{"$f":"'1. Demographics'!S281","v":0},null,{"$f":"'1. Demographics'!V281","v":0},null,{"$f":"'1. Demographics'!Y281","v":0},null,{"$f":"'1. Demographics'!AB281","v":0},null,0]
[null,"3. Relocation assistance (includes assistance with obtaining housing)",null,null,null,null,null,null,{"$f":"'1. Demographics'!H282","v":0},null,{"$f":"'1. Demographics'!J282","v":0},null,{"$f":"'1. Demographics'!M282","v":0},null,{"$f":"'1. Demographics'!P282","v":0},null,{"$f":"'1. Demographics'!S282","v":0},null,{"$f":"'1. Demographics'!V282","v":0},null,{"$f":"'1. Demographics'!Y282","v":0},null,{"$f":"'1. Demographics'!AB282","v":0},null,0]
[null,"E. Criminal/Civil Justice System Assistance"]
[null,"Number of Individuals",null,null,null,null,null,null,{"$f":"'1. Demographics'!H285","v":0},null,{"$f":"'1. Demographics'!J285","v":0},null,{"$f":"'1. Demographics'!M285","v":0},null,{"$f":"'1. Demographics'!P285","v":0},null,{"$f":"'1. Demographics'!S285","v":0},null,{"$f":"'1. Demographics'!V285","v":0},null,{"$f":"'1. Demographics'!Y285","v":0},null,{"$f":"'1. Demographics'!AB285","v":0},null,{"$f":"SUM(I176:X176)","v":0}]
[null,"Number of Times/Occurances"]
[null,"1. Notification of criminal justice events (e.g., case status, arrest, court proceedings, case disposition, release, etc.)",null,null,null,null,null,null,{"$f":"'1. Demographics'!H287","v":0},null,{"$f":"'1. Demographics'!J287","v":0},null,{"$f":"'1. Demographics'!M287","v":0},null,{"$f":"'1. Demographics'!P287","v":0},null,{"$f":"'1. Demographics'!S287","v":0},null,{"$f":"'1. Demographics'!V287","v":0},null,{"$f":"'1. Demographics'!Y287","v":0},null,{"$f":"'1. Demographics'!AB287","v":0},null,{"$f":"SUM(I178:X178)","v":0}]
[null,"2. Victim impact statement assistance",null,null,null,null,null,null,{"$f":"'1. Demographics'!H288","v":0},null,{"$f":"'1. Demographics'!J288","v":0},null,{"$f":"'1. Demographics'!M288","v":0},null,{"$f":"'1. Demographics'!P288","v":0},null,{"$f":"'1. Demographics'!S288","v":0},null,{"$f":"'1. Demographics'!V288","v":0},null,{"$f":"'1. Demographics'!Y288","v":0},null,{"$f":"'1. Demographics'!AB288","v":0},null,0]
[null,"3. Assistance with restitution (includes assistance in requesting and when collection efforts are not successful)",null,null,null,null,null,null,{"$f":"'1. Demographics'!H289","v":0},null,{"$f":"'1. Demographics'!J289","v":0},null,{"$f":"'1. Demographics'!M289","v":0},null,{"$f":"'1. Demographics'!P289","v":0},null,{"$f":"'1. Demographics'!S289","v":0},null,{"$f":"'1. Demographics'!V289","v":0},null,{"$f":"'1. Demographics'!Y289","v":0},null,{"$f":"'1. Demographics'!AB289","v":0},null,0]
[null,"4. Civil legal assistance in obtaining protection or restraining order",null,null,null,null,null,null,{"$f":"'1. Demographics'!H290","v":0},null,{"$f":"'1. Demographics'!J290","v":0},null,{"$f":"'1. Demographics'!M290","v":0},null,{"$f":"'1. Demographics'!P290","v":0},null,{"$f":"'1. Demographics'!S290","v":0},null,{"$f":"'1. Demographics'!V290","v":0},null,{"$f":"'1. Demographics'!Y290","v":0},null,{"$f":"'1. Demographics'!AB290","v":0},null,0]
[null,"5. Civil legal assistance with family law issues (e.g., custody, visitation, or support)",null,null,null,null,null,null,{"$f":"'1. Demographics'!H291","v":0},null,{"$f":"'1. Demographics'!J291","v":0},null,{"$f":"'1. Demographics'!M291","v":0},null,{"$f":"'1. Demographics'!P291","v":0},null,{"$f":"'1. Demographics'!S291","v":0},null,{"$f":"'1. Demographics'!V291","v":0},null,{"$f":"'1. Demographics'!Y291","v":0},null,{"$f":"'1. Demographics'!AB291","v":0},null,0]
[null,"6. Other emergency justice‐related assistance",null,null,null,null,null,null,{"$f":"'1. Demographics'!H292","v":0},null,{"$f":"'1. Demographics'!J292","v":0},null,{"$f":"'1. Demographics'!M292","v":0},null,{"$f":"'1. Demographics'!P292","v":0},null,{"$f":"'1. Demographics'!S292","v":0},null,{"$f":"'1. Demographics'!V292","v":0},null,{"$f":"'1. Demographics'!Y292","v":0},null,{"$f":"'1. Demographics'!AB292","v":0},null,0]
[null,"7. Immigration assistance (e.g., special visas, continued presence application, and other immigration relief)",null,null,null,null,null,null,{"$f":"'1. Demographics'!H293","v":0},null,{"$f":"'1. Demographics'!J293","v":0},null,{"$f":"'1. Demographics'!M293","v":0},null,{"$f":"'1. Demographics'!P293","v":0},null,{"$f":"'1. Demographics'!S293","v":0},null,{"$f":"'1. Demographics'!V293","v":0},null,{"$f":"'1. Demographics'!Y293","v":0},null,{"$f":"'1. Demographics'!AB293","v":0},null,0]
[null,"8. Prosecution interview advocacy/accompaniment (includes accompaniment with prosecuting attorney and with victim/witness)",null,null,null,null,null,null,{"$f":"'1. Demographics'!H294","v":0},null,{"$f":"'1. Demographics'!J294","v":0},null,{"$f":"'1. Demographics'!M294","v":0},null,{"$f":"'1. Demographics'!P294","v":0},null,{"$f":"'1. Demographics'!S294","v":0},null,{"$f":"'1. Demographics'!V294","v":0},null,{"$f":"'1. Demographics'!Y294","v":0},null,{"$f":"'1. Demographics'!AB294","v":0},null,0]
[null,"9. Law enforcement interview advocacy/accompaniment",null,null,null,null,null,null,{"$f":"'1. Demographics'!H295","v":0},null,{"$f":"'1. Demographics'!J295","v":0},null,{"$f":"'1. Demographics'!M295","v":0},null,{"$f":"'1. Demographics'!P295","v":0},null,{"$f":"'1. Demographics'!S295","v":0},null,{"$f":"'1. Demographics'!V295","v":0},null,{"$f":"'1. Demographics'!Y295","v":0},null,{"$f":"'1. Demographics'!AB295","v":0},null,0]
[null,"10. Criminal advocacy/accompaniment",null,null,null,null,null,null,{"$f":"'1. Demographics'!H296","v":0},null,{"$f":"'1. Demographics'!J296","v":0},null,{"$f":"'1. Demographics'!M296","v":0},null,{"$f":"'1. Demographics'!P296","v":0},null,{"$f":"'1. Demographics'!S296","v":0},null,{"$f":"'1. Demographics'!V296","v":0},null,{"$f":"'1. Demographics'!Y296","v":0},null,{"$f":"'1. Demographics'!AB296","v":0},null,0]
[null,"11. Other legal advice and/or counsel",null,null,null,null,null,null,{"$f":"'1. Demographics'!H297","v":0},null,{"$f":"'1. Demographics'!J297","v":0},null,{"$f":"'1. Demographics'!M297","v":0},null,{"$f":"'1. Demographics'!P297","v":0},null,{"$f":"'1. Demographics'!S297","v":0},null,{"$f":"'1. Demographics'!V297","v":0},null,{"$f":"'1. Demographics'!Y297","v":0},null,{"$f":"'1. Demographics'!AB297","v":0},null,0]
[null,null,"Additional Comments: "]
[]
[]
[]
[]
[null,null,null,null,null,null,null,null,null,null,null,null,null,null,null,null,null,null,null,null,null,null,null,null,"Cumulative Total",null,"Statewide \nCumulative Total"]
[null,"11. Number of requests for services that were unmet because of organizational capacity issues: ",null,null,null,null,null,null,"Reporting Period 1",null,"Reporting Period 2",null,"Reporting Period 3",null,"Reporting Period 4",null,"Reporting Period 5",null,"Reporting Period 6",null,"Reporting Period 7",null,"Reporting Period 8"]
[null,null,null,null,null,null,null,null,{"$f":"SUM('1. Demographics'!H306:I307)","v":0},null,{"$f":"SUM('1. Demographics'!J306)","v":0},null,{"$f":"SUM('1. Demographics'!M306)","v":0},null,{"$f":"SUM('1. Demographics'!P306)","v":0},null,{"$f":"SUM('1. Demographics'!S306)","v":0},null,{"$f":"SUM('1. Demographics'!V306)","v":0},null,{"$f":"SUM('1. Demographics'!Y306)","v":0},null,{"$f":"SUM('1. Demographics'!AB306)","v":0},null,{"$f":"SUM(I196:X197)","v":0}]
[]
[null,null,"Please Explain. "]
[null,{"$f":"'1. Demographics'!$B$309","v":"Insert explanation here."}]
[]
[]
[]
[]
[null,"12. Does your organization formally survey clients for feedback on services received? ",null,null,null,null,null,null,null,null,{"$f":"'1. Demographics'!$L$314","v":0},null,null,null,null,null,null,null,null,null,null,null,null,null,"Overview"]
[null,null,null,null,null,null,null,null,null,null,null,null,null,null,null,null,null,null,null,null,null,null,null,null,"Cumulative Total",null,"Statewide \nCumulative Total"]
[null,"13. Number of surveys distributed (included, but not limited to, those distributed by hand, mail or electronic methods):",null,null,null,null,null,null,"Reporting Period 1",null,"Reporting Period 2",null,"Reporting Period 3",null,"Reporting Period 4",null,"Reporting Period 5",null,"Reporting Period 6",null,"Reporting Period 7",null,"Reporting Period 8"]
[null,null,null,null,null,null,null,null,{"$f":"SUM('1. Demographics'!H317:I318)","v":0},null,{"$f":"SUM('1. Demographics'!J317)","v":0},null,{"$f":"SUM('1. Demographics'!M317)","v":0},null,{"$f":"SUM('1. Demographics'!P317)","v":0},null,{"$f":"SUM('1. Demographics'!S317)","v":0},null,{"$f":"SUM('1. Demographics'!V317)","v":0},null,{"$f":"SUM('1. Demographics'!Y317)","v":0},null,{"$f":"SUM('1. Demographics'!AB317)","v":0},null,{"$f":"SUM(I207:X208)","v":0}]
[]
[null,null,null,null,null,null,null,null,null,null,null,null,null,null,null,null,null,null,null,null,null,null,null,null,"Cumulative Total",null,"Statewide \nCumulative Total"]
[null,"14. Number of surveys completed: ",null,null,null,null,null,null,"Reporting Period 1",null,"Reporting Period 2",null,"Reporting Period 3",null,"Reporting Period 4",null,"Reporting Period 5",null,"Reporting Period 6",null,"Reporting Period 7",null,"Reporting Period 8"]
[null,null,null,null,null,null,null,null,{"$f":"SUM('1. Demographics'!H321:I322)","v":0},null,{"$f":"SUM('1. Demographics'!J321)","v":0},null,{"$f":"SUM('1. Demographics'!M321)","v":0},null,{"$f":"SUM('1. Demographics'!P321)","v":0},null,{"$f":"SUM('1. Demographics'!S321)","v":0},null,{"$f":"SUM('1. Demographics'!V321)","v":0},null,{"$f":"SUM('1. Demographics'!Y321)","v":0},null,{"$f":"SUM('1. Demographics'!AB321)","v":0},null,{"$f":"SUM(I211:X212)","v":0}]
[]
[]
[null,"15. Please discuss some of the challenges your victim assistance program faced during the course of the federal fiscal year: "]
[]
[null,"Year 1",null,null,null,null,null,null,null,null,null,null,null,"Year 2"]
[null,{"$f":"'1. Demographics'!$B$338","v":"Insert response here."},null,null,null,null,null,null,null,null,null,null,null,{"$f":"'1. Demographics'!$Q$338","v":"Insert response here. "}]
[]
[]
[]
[]
[]
[]
[]
[]
[]
[]
[]
[]
[]
[null,"16. Please describe some of the services that victims needed but could not be provided. What were the challenges that prevented those services from being provided: "]
[]
[null,"Year 1",null,null,null,null,null,null,null,null,null,null,null,"Year 2"]
[null,{"$f":"'1. Demographics'!$B$355","v":"Insert response here."},null,null,null,null,null,null,null,null,null,null,null,{"$f":"'1. Demographics'!$Q$355","v":"Insert response here."}]

{"sheet":"Appendix","index":9,"n_rows":558,"n_cols":2,"rows_kept":558,"cut":false,"hidden":false,"merged":[[1,0,1,21],[553,0,554,21],[555,0,555,21],[526,0,526,21],[406,0,406,21],[2,0,2,21],[6,1,6,21],[3,0,4,21],[7,1,7,21],[11,1,11,21],[12,1,12,21],[16,1,16,21],[17,1,17,21],[20,1,20,21],[13,1,13,21],[86,1,86,21],[34,1,34,21],[37,1,37,21],[25,1,25,21],[30,1,30,21],[31,1,31,21],[63,1,63,21],[66,1,66,21],[69,1,69,21],[78,1,78,21],[79,1,79,21],[75,1,75,20],[39,0,40,21],[52,1,52,21],[53,1,53,21],[54,1,54,21],[62,1,62,21],[158,1,158,21],[123,1,123,21],[130,1,130,21],[87,1,87,21],[106,1,106,21],[107,1,107,21],[92,1,92,20],[155,1,155,20],[185,1,185,20],[407,0,408,21],[409,0,409,21],[489,0,489,21],[256,0,257,21],[258,0,258,21],[275,0,275,21],[320,0,320,21],[351,0,351,21],[363,0,363,21]]}
[]
["APPENDIX"]
["POPULATION DEMOGRAPHICS AND DIRECT SERVICES"]
["A. Race and Ethnicity"]
[]
["American Indian or Alaska Native"]
[null,"Refers to a person having origins in any of the original peoples of North and South America (including Central America) and who maintains tribal affiliation or community attachment. \n"]
[null,"This category includes people who indicated their race(s) as American Indian or Alaska Native or reported their enrolled or principal tribe, such as Navajo, Blackfeet, Inupiat, Yup’ik, or Central American Indian groups or"]
[null," South American Indian groups."]
[]
["Asian"]
[null,"Refers to a person having origins in any of the original peoples of the Far East, Southeast Asia, or the Indian subcontinent, including, Cambodia, China, India, Japan, Korea, Malaysia, Pakistan, the Philippine Islands, "]
[null,"Thailand, and Vietnam. "]
[null,"It includes people who indicated their race(s) as Asian or reported entries such as Asian Indian, Chinese, Filipino, Korean, Japanese, Vietnamese, and Other Asian or provided other detailed Asian responses."]
[]
["Black or African-American"]
[null,"Refers to a person having origins in any of the Black racial groups of Africa. "]
[null,"It includes people who indicated their race(s) as Black, African-American, or Negro or reported entries such as Kenyan, Nigerian, or Haitian."]
[]
["Hispanic or Latino"]
[null,"Refers to an individual who self-reports in one of the specific Spanish, Hispanic, or Latino categories: Mexican, Puerto Rican, Cuban, or another Hispanic, Latino, or Spanish origin."]
[null,"This also includes people who indicate that they are another Hispanic, Latino, or Spanish origin are those whose origins are from Spain, the Spanish-speaking countries of Central or South America, or the  "]
[null,"Dominican Republic. The terms Hispanic, Latino, and Spanish are used interchangeably."]
[]
["Native Hawaiian or Other Pacific Islander"]
[null,"Refers to a person having origins in any of the original peoples of Hawaii, Guam, Samoa, or other Pacific Islands."]
[null,"It includes people who indicated their race(s) as Pacific Islander or reported entries such as Native Hawaiian, Guamanian or Chamorro, Samoan, and Other Pacific Islander or provided other detailed "]
[null,"Pacific Islander responses."]
[]
["White Non-Latino or Caucasian"]
[null,"Refers to a person having origins in any of the original peoples of Europe, the Middle East, or North Africa. "]
[null,"It includes people who indicated their race(s) as White or reported entries such as Irish, German, Italian, Lebanese, Arab, Moroccan, or Caucasian."]
[]
["Some Other Race or Ethnicity "]
[null,"Includes all other responses not included in the race categories described above. "]
[]
["Multiple Races"]
[null,"Refers to a person who may self-identify in more than one race or ethnicity category"]
[]
["B. Types of Victimization"]
[]
["Adult Physical Assault (Includes Aggravated and Simple Assault)"]
["Simple Assault:"]
[null,"Assaults and attempted assaults where no weapon was used, or no serious or aggravated injury resulted to the victim. Intimidation, coercion, and hazing are included.\n"]
[]
["Aggravated Assault:"]
[null,"Assaults and attempted assaults where no weapon was used, or no serious or aggravated injury resulted to the victim. Intimidation, coercion, and hazing are included.\n"]
[]
["Examples: "]
[null,"Affray, aggravated assault, aggravated battery, attempted homicide, attempted murder, battery, brandishing a weapon, gun violence, simple assault, strangulation, threat with a weapon\n"]
[]
["Adult Sexual Assault"]
[null,"Includes a wide range of victimizations/crimes that include attacks or attempted attacks generally involving unwanted sexual contact between victim and offender. "]
[null,"Sexual assaults may or may not involve force and include such things as grabbing, fondling, and verbal threats.  "]
[null,"Also included is rape, which is defined as penetration of any kind, of the vagina or anus with any body part or object, or oral penetration of a sex organ by another person, without the consent of the victim;"]
[null,"may also include penetration of the mouth by a sex organ by another person."]
[]
["Examples: "]
[null,"Attempted rape, attempted sexual assault, fondling, forcible sex offense, incest, indecent liberties, indecent exposure, non-forcible sex offenses, rape, rape by instrument, sexual assault/misconduct, \n"]
[null," sexual assault with an object, sodomy"]
[]
["Adult Sexually Abused/Assaulted as Children"]
[null,"Adult survivors of sexual abuse and/or assault which was suffered while they were children."]
[null,"For examples of sexual abuse/assault that may have been experienced, see child pornography and child sexual assault. "]
[]
["Arson"]
[null,"Any willful or malicious burning or attempting to burn, with or without intent to defraud, a dwelling, house, public building, motor vehicle or aircraft, personal property of another, among others."]
[]
["Bullying (Verbal, Cyber, or Physical)"]
[null,"Repeated, negative acts committed by one or more children against another child. "]
[null,"These negative acts may be physical or verbal in nature—for example, hitting or kicking, teasing or taunting—or they may involve indirect actions such as manipulating friendships or purposely excluding other"]
[null," children from activities. "]
[null,"Implicit in this definition is an imbalance in real or perceived power between the bully and victim. Similar conduct conducted by an adult against another adult would likely be considered “stalking/harassment.”"]
[]
["Examples: "]
[null,"Bullying through emails, creating fake profiles, hitting or kicking, posting embarrassing pictures/videos online through social media, spreading rumors, testing or taunting\n"]
[]
["Burglary"]
[null,"The unlawful entry of a structure to commit a felony or theft. "]
[null,"The FBI’s Uniform Crime Reporting (UCR) program includes three subclassifications: forcible entry, unlawful entry where no force is used, and attempted forcible entry. "]
[null,"The UCR definition of structure includes apartment, barn, house trailer or houseboat when used as a permanent dwelling, office, railroad car (but not automobile), stable, and vessel (i.e., ship)."]
[]
["Examples: "]
[null,"Aggravated burglary, attempted forcible entry, breaking and entering, forcible entry, nonforcible entry, unlawful entry\n"]
[]
["Child Physical Abuse or Neglect"]
[null,"Physical abuse that is nonaccidental physical injury (ranging from minor bruises to severe fractures or death) because of punching, beating, kicking, biting, shaking, throwing, stabbing, choking, hitting (with a hand, "]
[null,"stick, strap, or other object), burning, or otherwise harming a child, that is inflicted by a parent, caregiver, or other person."]
[null,"Such injury is considered abuse regardless of whether the caregiver intended to hurt the child."]
[null,"Physical discipline, such as spanking or paddling, is not considered abuse as long as it is reasonable and causes no bodily injury to the child."]
[]
["Examples: "]
[null,"Abandonment, child neglect, endangering the welfare of a child, exposure to drugs/alcohol, nonviolent child abuse, nonviolent child cruelty, violent child abuse, violent child cruelty\n"]
[]
["Child Pornography"]
[null,"Any visual depiction of sexually explicit conduct, including any photograph, film, video, picture, drawing, or computer-generated image or picture, which is produced by electronic, mechanical,\n"]
[null," or other means, where:"]
[null,"1. its production involved the use of a minor engaging in sexually explicit conduct;"]
[null,"2. such visual depiction is, or appears to be, of a minor engaging in sexually explicit conduct;"]
[null,"3. such visual depiction has been created, adapted, or modified to appear that an identifiable minor is engaging in sexually explicit conduct; or"]
[null,"4. it is advertised, distributed, promoted, or presented in such a manner as to convey the impression that it is a visual depiction of a minor engaging in sexually explicit conduct."]
[]
["Examples: "]
[null,"Child pornography, possession, distribution and receipt of child pornography, production of child pornography, sexual exploitation of a child\n"]
[]
["Child Sexual Abuse/Assault"]
[null,"This may include activities such as fondling a child’s genitals, penetration, incest, rape, sodomy, indecent exposure, and exploitation through prostitution by a parent, caregiver, or other person. "]
[null,"This definition\nincludes teen sexual assault."]
[]
["Examples: "]
[null,"Child exploitation through prostitution, child molesting, rape of a child, teen sexual assault, statutory rape\n"]
[]
["Domestic and/or Family Violence"]
[null,"A crime in which there is a past or present familial, household, or other intimate relationship between the victim and the offender, including spouses, ex-spouses, boyfriends and girlfriends, ex-boyfriends and "]
[null,"ex-girlfriends, and any family members or persons residing in the same household as the victim. "]
[null,"Involves a pattern of abusive behavior in any relationship that is used by one to gain or maintain power and control over another intimate partner. "]
[null,"Domestic violence can be physical, sexual, emotional, economic, or psychological actions or threats of actions that influence another person."]
[null," This includes any behaviors that intimidate, manipulate, humiliate, isolate, frighten, terrorize, coerce, threaten, blame, hurt, injure, or wound someone. "]
[]
["Examples: "]
[null,"Blame, frighten, humiliation, hurt/injured, intimidation, isolation, manipulation, terrorize\n"]
[]
["DUI/DWI Incidents"]
[null,"Driving under the influence (DUI) or driving while impaired (DWI) includes driving or operating a motor vehicle or common carrier while mentally or physically impaired as the result of consuming alcoholic beverages "]
[null,"or using drugs or narcotics"]
[]
["Examples: "]
[null,"DUI hit and run, DUI motor vehicle crash, DUI resulting in death\n"]
[]
["Elder Abuse or Neglect (Physical or Emotional)"]
[null,"Also known as elder mistreatment, generally refers to any knowing, intentional, or negligent act by a family member, caregiver, or other person in a trusting relationship that causes harm or creates a serious risk of "]
[null,"harm to an older person. "]
[null,"Elder abuse may include abuse that is physical, emotional/psychological (including threats), or sexual; neglect (including abandonment); and financial exploitation."]
[null,"This is a general definition; state definitions of elder abuse vary. Some definitions may also include fraud, scams, or financial crimes targeted at older people."]
[]
["Gang Violence"]
[null,"Violence and crime perpetuated by a gang. A gang is defined as:"]
[null,"1. an association of three or more individuals;"]
[null,"2. whose members collectively identify themselves by adopting a group identity which they use to create an atmosphere of fear or intimidation frequently by employing one or more of the following: a common "]
[null,"name, slogan, identifying sign, symbol, tattoo or other physical marking, style or color of clothing, hairstyle, hand sign or graffiti;"]
[null,"3. the association's purpose, in part, is to engage in criminal activity and the association uses violence or intimidation to further its criminal objectives."]
[]
["Hate Crime"]
[null,"A criminal offense against a person or property motivated in whole or in part by an offender’s bias against a race, religion, disability, ethnic origin, or sexual orientation."]
[null,"PMT POCs that report this victimization type under the VA or TVS programs will be prompted to enter the type of hate crime (e.g., race, religion) in the PMT."]
[]
["Survivors of Homicide Victims"]
[null,"Murder and voluntary manslaughter, which are the willful (intent is present) killing of one human being by another."]
[null,"VC grantees report on this as the “homicide” crime type; VA and TVS grantees report on this as the “survivors of homicide victims” victimization type."]
[]
["Human Trafficking (Labor) "]
[null,"Obtaining a person through recruitment, harboring, transportation, or provision, and subjecting such a person by force, fraud, or coercion into involuntary servitude, peonage, debt bondage, or slavery "]
[null,"(not to include commercial sex acts)."]
[]
["Examples: "]
[null,"Forced labor, labor trafficking, human trafficking - involuntary servitude\n"]
[]
["Human Trafficking (Sex)"]
[null,"Inducing a person by force, fraud, or coercion to participate in commercial sex acts, or the person induced to perform such act(s) has not attained 18 years of age."]
[]
["Examples: "]
[null,"Commercialized sex, commercialized vice, human trafficking - commercial sex acts, sex trafficking, seduction, transporting persons for prostitution\n"]
[]
["Identity Theft/Fraud/Financial Crime "]
[null,"Identity theft occurs when someone wrongfully obtains another’s personal information without their knowledge to commit theft or fraud."]
[null,"Fraud and financial crimes include illegal acts characterized by deceit, concealment, or violation of trust and that are not dependent upon the application or threat of physical force or violence. "]
[null,"Individuals and organizations commit these acts to obtain money, property, or services; to avoid the payment or loss of money or services; or to secure personal or business advantage."]
[]
["Examples: "]
[null,"ATM fraud, bad checks, bribery, checks - insufficient funds, confidence game, conversion, counterfeiting, credit card fraud, embezzlement, extortion, false pretense, false report, forgery, fraud,\n"]
[null," fraudulent checks, hacking/computer invasion, home improvement fraud, impersonation, insurance fraud, identity theft, mail fraud, misappropriation, procumbent fraud, swindle, telephone fraud, "]
[null,"uttering, welfare fraud, wire fraud"]
[]
["Kidnapping (Noncustodial) "]
[null,"Occurs when someone unlawfully seizes, confines, inveigles, decoys, abducts, or carries away and holds for ransom or reward, by any person, except in the case of a minor by the parent thereof."]
[]
["Examples: "]
[null,"Abduction, forcible detention, hostage-taking, kidnapping, unlawful detention, unlawful restraint\n"]
[]
["Kidnapping (Custodial)"]
[null,"Occurs when one parent or guardian deprives another of his or her legal right to custody or visitation of a minor by unlawfully taking the child."]
[null,"The definition and penalties of custodial kidnapping vary by state."]
[null,"In some states, kidnapping occurs only if a child is taken outside of the state and/or if an existing custody order is intentionally violated."]
[]
["Examples: "]
[null,"Abduction, forcible detention, hostage-taking, parental kidnapping, unlawful detention, unlawful restraint\n"]
[]
["Mass Violence (Domestic/International)"]
[null,"An intentional violent criminal act that results in physical, emotional, or psychological injury to a sufficiently large number of people to significantly increase the burden of victim assistance and"]
[null," compensation for the responding jurisdiction."]
[]
["Other Vehicular Victimization"]
[null,"May include hit and run crimes, and other vehicular assault. Do not report victimizations resulting from DUI—those should be reported as DUI/DWI."]
[]
["Examples: "]
[null,"Hit and run, motor vehicle crash, reckless driving, vehicular assault\n"]
[]
["Robbery"]
[null,"Taking or attempting to take anything of value from the care, custody, or control of a person or persons by force or threat of force or violence and/or by putting the victim in fear, including carjacking."]
[]
["Examples: "]
[null,"Armed robbery, attempted robbery, carjacking, robbery, strong-arm robbery \n"]
[]
["Stalking/Harassment"]
[null,"Individuals are classified as victims of stalking or harassment if they experienced at least one of the behaviors listed below on at least two separate occasions."]
[null,"In addition, the individuals must have feared for their safety or that of a family member as a result of the course of conduct or have experienced additional threatening behaviors that would cause a  "]
[null,"reasonable person to feel fear."]
[null,"This is a general definition; state definitions of elder abuse vary. Some definitions may also include fraud, scams, or financial crimes targeted at older people."]
[]
["Examples of Stalking: "]
[null,"Making unwanted phone calls, sending unsolicited or unwanted letters or e-mails, following or spying on the victim, showing up at places without a legitimate reason, waiting at places for the victim, "]
[null,"leaving unwanted items or presents, posting information or spreading rumors about the victim on the Internet/social media, public place, or by word of mouth"]
[]
["Examples of Harassment: "]
[null,"Harassing phone calls, intimidation, menacing, stalking, terroristic threats, threatening behavior, threatening conduct, threatening gesture, threatening telephone call, threatening words or statements"]
[]
["Survivors of Homicide Victims"]
[null,"Murder and voluntary manslaughter, which are the willful (intent is present) killing of one human being by another."]
[null,"VC grantees report on this as the “homicide” crime type; VA and TVS grantees report on this as the “survivors of homicide victims” victimization type."]
[]
["Teen Dating Victimization"]
[null,"The occurrence of physical, sexual, psychological, or emotional violence within a teen dating relationship, including stalking."]
[null,"It can occur in person or electronically and might occur between a current or former dating partner."]
[]
["Examples of Harassment: "]
[null,"Emotional violence, physical violence, psychological violence, sexual violence, stalking"]
[]
["Terrorism (Domestic/International)"]
["Domestic: "]
[null,"The term terrorism means an activity that:"]
[null,"1. involves a violent act or an act dangerous to human life that is a violation of the criminal laws of the United States or of any State, or that would be a criminal violation if committed within the jurisdiction of the "]
[null,"United States or any State, and"]
[null,"2. appears to be intended to:"]
[null,"a. intimidate or coerce a civilian population"]
[null,"b. influence the policy of a government by intimidation or coercion"]
[null,"c. affect the conduct of a government by assassination or kidnapping (18 U.S.C. 3077)."]
[]
["International: "]
[null,"The Antiterrorism and Emergency Reserve Fund Guidelines for Terrorism and Mass Violence Crimes refers to the term terrorism, when occurring outside of the United States, as international terrorism to mean an"]
[null,"activity that:"]
[null,"1. involves a violent act or an act dangerous to human life that is a violation of the criminal laws of the United States of any State or that would be a criminal violation if committed within the jurisdiction of the "]
[null,"United States or of any State,"]
[null,"2. appears to be intended to:"]
[null,"a. intimidate or coerce a civilian population"]
[null,"b. influence the policy of a government by intimidation or coercion"]
[null,"c. affect the conduct of a government by assassination or kidnapping, and"]
[null,"3. occur primarily outside the territorial jurisdiction of the United States, or transcend national boundaries in terms of the means by which they are accomplished, the persons they appear intended to "]
[null,"intimidate or coerce, or the locale in which their perpetrators operate or seek asylum (18 U.S.C. 2331)."]
[]
["Other"]
[null,"If none of the above victimization types apply, select Other."]
[]
["Examples:"]
[null,"False imprisonment, property crimes (destruction of property, damage to property, vandalism), theft, violation of a court order (temporary restraining order, order of protection, harassment restraining order, "]
[null,"final restraining order)"]
[]
["C. Services Received "]
[]
["Information & Referral Services"]
["Information About the Criminal Justice Process"]
[null,"Informing victims about the criminal justice system and process could include information on how to file a police report, request a protective order, or how a case might progress through the legal system."]
[null,"This service includes explanation of legal terminology. In addition, this includes post-sentencing services and information regarding assistance with property return."]
[]
["Information on Victim Rights/How to Obtain Notification"]
[null,"Informing the victim about the existence of the Federal Crime Victim Rights Act (2004), state laws regarding victim rights, state victim compensation programs, and/or the Victim Notification System."]
[]
["Referral to Other Victim Service Programs"]
[null,"Referring victims to other victim service providers if their specific agency lacks capacity to provide needed support."]
[null,"This could also occur if another agency is better able to provide the type of service needed, developmentally or culturally appropriate services, or services that correlate with the offense experienced."]
[]
["Referral to Other Services/Supports/Resources"]
[null,"Referring a victim to other services to meet a victim’s needs."]
[null,"Includes assessment of service needs and provisions of referrals or providing victims with information and contacts to obtain services on their own."]
[null,"Includes legal, medical, faith-based organizations, address confidentiality programs, etc. "]
[]
["Personal Advocacy/Accompaniment"]
["Victim Advocacy/Accompaniment to Emergency Medical Care"]
[null,"Coordinating/helping a victim to obtain emergency medical care. This includes emotional and/or physical support during care."]
[]
["Victim Advocacy/Accompaniment to Medical Forensic Exam"]
[null,"Coordinating/helping a victim to obtain a forensic interview or medical forensic exam."]
[null,"Includes emotional and/or physical support during forensic interviews or medical forensic exam."]
[]
["Law Enforcement Interview Advocacy/Accompaniment"]
[null,"Coordinating and/or helping a victim prepare for an interview with law enforcement."]
[null,"This includes emotional and/or physical support during interviews with law enforcement."]
[null,"Note: Law enforcement interview advocacy/accompaniment is listed in both the Personal Advocacy/Accompaniment and Criminal/Civil Justice System Assistance categories so that agencies that provide "]
[null,"only Personal  Advocacy/Accompaniment but not Criminal/Civil Justice System Assistance (or vice versa) will have the opportunity to report on that specific service."]
[null,"If an agency provides both categories of service, it should report on Law enforcement interview advocacy/accompaniment only once, in whichever category best applies."]
[]
["Individual Advocacy"]
[null,"Helping a victim access needed services (beyond providing information or a referral)."]
[null,"This may include assistance recovering property collected as evidence, assistance managing practical issues created by the victimization, accompanying the victim to appointments with social services."]
[null,"E.g., assistance in applying for public benefits, return of personal property or effects. "]
[]
["Performance of Medical or Nonmedical Forensic Exam or Interview, or Medical Evidence Collection"]
[null,"Performing/conducting a forensic exam, interview, or medical evidence collection in accordance with any requirements or guidelines identified by the applicable jurisdiction."]
[null,"Individuals performing the exams, interviews, or medical evidence collection should be trained to conduct these activities in a trauma-informed and developmentally and culturally appropriate manner."]
[]
["Immigration Assistance (e.g., special visas, continued presence application, and other immigration relief)"]
[null,"Providing assistance for refugee and immigrant victims with specific immigration issues."]
[]
["Intervention with Employer, Creditor, Landlord, or Academic Institution"]
[null,"Advocating for a victim to secure rights, remedies, and services from non-criminal justice system providers on behalf of a victim."]
[null,"This includes responding to requests for records from other service providers, intervening with employers, school administrators, creditors, bill collectors, and landlords on behalf of the victim."]
[null,"This also includes advocacy to help the victim maintain financial and/or academic stability in the aftermath of a victimization."]
[]
["Child or Dependent Care Assistance (includes coordination of services)"]
[null,"Coordinating and/or providing child care so that a victim may participate in the criminal justice process or other public proceedings arising from the crime or attend victim service appointments "]
[null,"or counseling sessions."]
[]
["Transportation Assistance (includes coordination of services)"]
[null,"Coordinating and/or providing transportation service so that a victim may attend court hearings or medical appointments, or access agency services."]
[null,"Staff members transporting victims, taxis or rideshare (Uber, Lyft, etc.), and public transportation are included."]
[]
["Interpreter Services"]
[null,"Providing communication services for victims that have a limited English proficiency or a disability that affects their ability to communicate."]
[null,"This includes translating, using sign language, or providing braille."]
[null,"In addition, this includes language line, texting, or distributing translated documents, as well as translations provided via staff/volunteers or a contract with an outside agency/service."]
[]
["Emotional Support or Safety Services"]
["Crisis Intervention (in-person, includes safety planning, etc.)"]
[null,"Communicating among professionals and victims regarding activities resulting from the victimization."]
[null,"This includes actions necessary to expedite a case for victim protection, initiation of legal actions needed to protect the victim such as probation revocation, etc."]
[]
["Hotline/Crisis Line Counseling"]
[null,"Providing live hotline services by trained professionals or volunteers."]
[null,"Services may be provided via telephone, instant messaging, mobile application, or website contact; individuals may be identified or may be anonymous contacts."]
[]
["On-scene Crisis Response (e.g., community crisis response)"]
[null,"Providing immediate, in-person crisis intervention, emotional support, guidance, and counseling."]
[null,"These services must occur at the scene of a crime, immediately after a crime, or become immediately necessary due to the crime."]
[]
["Individual Counseling"]
[null,"Providing psychological, psychiatric, and/or other counseling-related treatment for individuals, couples, and family members."]
[null,"This service must be provided by a person who meets professional standards to provide these services in the jurisdiction in which the care is administered."]
[]
["Support Groups (facilitated or peer)"]
[null,"Providing or facilitating supportive group activities led by staff or peer."]
[null,"This can include group counseling sessions, peer support groups, or other groups that bring victims together to aid in the healing process."]
[]
["Other Therapy (traditional, cultural or alternative healing; art, writing or play therapy, etc.)"]
[null,"Providing therapy (not covered in the individual counseling or support group categories above) to improve and promote healing that responds to the emotional, social, financial, or physical needs or the victim."]
[null,"Must be based on targeted needs of individual victim and be provided by the agency."]
[]
["Emergency Financial Assistance"]
[null,"Providing cash outlays for food, clothing, short-term alternative emergency housing (e.g., hotel due to capacity at shelter), and other support services such as toiletries provided to primary and "]
[null,"secondary victims."]
[null,"Emergency financial assistance may also include emergency loans, payments for items such as food and/or clothing, changing windows and/or locks, taxis, prophylactic and nonprophylactic"]
[null," medications, durable medical equipment, and other similar items allowable under program guidelines."]
[]
["Shelter/Housing Services"]
["Emergency Shelter or Safe House"]
[null,"Providing emergency short-term shelter to individuals and families following victimization."]
[]
["Transitional Housing"]
[null,"Providing temporary housing for victims who, due to the nature of the victimization, cannot safely return to their former housing and need more time to stabilize themselves before living independently."]
[null,"Note: Referrals to transitional housing should be counted under section A, Information and Referral."]
[]
["Relocation Assistance (includes assistance with obtaining housing)"]
[null,"Coordinating assistance with rental expenses, utility deposits, security deposits, and/or moving fees."]
[null,"This includes assistance locating long-term housing for the victim, regardless of distance, based on safety needs."]
[]
["Criminal/Civil Justice System Assistance"]
["Notification of Criminal Justice Events (e.g., case status, arrest, court proceedings, case disposition, release, etc.)"]
[null,"Communicating with victims to notify them of hearings and appearances, the defendant’s release from jail, the status of the case, bond hearings, grand jury decisions, disposition options, "]
[null,"appellate decisions, etc. "]
[null,"This includes assisting victims in contacting probation/parole offices, community supervision, department of corrections, etc. to get information of any changes in the convicted defendant’s status."]
[]
["Victim Impact Statement Assistance"]
[null,"Assisting victim to prepare an impact statement, and assistance on receiving and submitting their statement."]
[null,"This also includes preparing supporting letters, registering for impact panels, facilitating participation in clemency hearings, etc."]
[]
["Assistance with Restitution"]
[null,"Assisting victims in requesting restitution when collection efforts are not successful."]
[]
["Civil Legal Assistance in Obtaining Protection or Restraining Order"]
[null,"Advising and/or assisting a victim in obtaining a protection/restraining order as well as follow-up hearings associated with finalizing such order"]
[]
["Civil Legal Assistance with Family Law Issues (e.g., custody, visitation, or support)"]
[null,"Assisting with custody and visitation support, or other family law issues."]
[]
["Other Emergency Justice-Related Assistance"]
[null,"Providing legal assistance that cannot be classified as another type of service in this category."]
[]
["Immigration Assistance (e.g., special visas, continued presence application, and other immigration relief)"]
[null,"Providing assistance for refugee and immigrant victims with specific immigration issues such as obtaining a visa."]
[]
["Prosecution Interview Advocacy/Accompaniment (includes accompaniment with prosecuting attorney and with victim/witness)"]
[null,"Providing emotional support and/or physical accompaniment in preparation for and/or during interviews with prosecutors or other agents for prosecutorial investigation."]
[]
["Law Enforcement Interview Advocacy/Accompaniment"]
[null,"Providing emotional support and/or physical accompaniment in preparation for and/or during interviews with law enforcement."]
[null,"Note: Law enforcement interview advocacy/accompaniment is listed in both the Personal Advocacy/Accompaniment and Criminal/Civil Justice System Assistance categories so that agencies that provide "]
[null,"only Personal  Advocacy/Accompaniment but not Criminal/Civil Justice System Assistance (or vice versa) will have the opportunity to report on that specific service."]
[null,"If an agency provides both categories of service, it should report on Law enforcement interview advocacy/accompaniment only once, in whichever category best applies."]
[]
["Criminal Advocacy/Accompaniment"]
[null,"Providing support, assistance, accompaniment and/or advocacy to victims at any stage of the criminal justice process."]
[null,"This includes filing an initial police report, testimony, post-sentencing services, and support."]
[]
["Other Legal Advice and/or Counsel"]
[null,"Providing legal advice not captured in the above categories."]
[null,"This could include converting exported protection order to permanent orders, eviction or adversary employment actions arising from the victimization, or responding to requests for records by the courts. "]
[null,"Civil matters related to the victimization are also included (custody, dependency, juvenile court actions, etc.)."]
[]
["KEY OUTCOMES"]
["A. Client Satisfaction Category Definitions and Sample Survey Questions"]
[]
["Client Outcomes"]
["Connections to Community Supports: Items that measure connections to resources or community supports. "]
[null,"Sample 1: Because of my experiences in the program, I know more about community resources that might be useful."]
[null,"Sample 2: I was connected to community resources as needed (e.g., legal, medical, childcare, etc.). "]
[null,"Sample 3: The staff provided support and referrals to outside victim service agencies."]
[null,"Sample 4: Do you feel you were provided with appropriate referrals?"]
[null,"Sample 5: I know who to reach out to for help."]
[]
["Improve Well-Being: Items that measure how the client has improved as a result of the program. "]
[null,"Sample 1: After working with the program, I have increased my well-being."]
[null,"Sample 2: I have a healthier lifestyle in at least one area (i.e., sleeping exercise, substance use)."]
[null,"Sample 3: I am better able to control my life."]
[null,"Sample 4: I can cope with whatever challenges come to me as I work to keep safe."]
[null,"Sample 5: My child has demonstrated less at risk behaviors since receiving services."]
[null,"Sample 6: My housing situation has improved."]
[]
["Independence and Empowerment: Items that measure whether the client feels in control of their decisions or choices, or self-sufficient. "]
[null,"Sample 1: I felt progress toward feeling in control and empowered in my life."]
[null,"Sample 2: I have an understanding of my rights and options."]
[null,"Sample 3: I, not staff, decided my treatment goals."]
[null,"Sample 4: The program supports your decisions as a parent/guardian. "]
[null,"Sample 5: I was actively involved in treatment planning and decisions. "]
[]
["Individual Goal Achievement: Items that measure whether the client was able to receive services based on their personal goals or needs. \n"]
[null,"Sample 1: The services I received met my needs. "]
[null,"Sample 2: The agency has hoped me to focus on a goal that is important to me. "]
[null,"Sample 3: The agency gave me information that was timely and practical to my situation. "]
[null,"Sample 4 : My child and/or family has made progress toward achieving goals as a result of services. "]
[null,"Sample 5: The staff did everything they could for me. "]
[null,"Sample 6 : I felt like the situation was minimized. "]
[]
["Knowledge Building: Criminal Justice System: Items that measure how much the client has learned about the criminal justice system. "]
[null,"Sample 1: I understand my rights presented to me."]
[null,"Sample 2: I have a better understanding of what is going on with the case. "]
[null,"Sample 3: Because of the services I received, I have an understanding of how the legal process/criminal justice process works."]
[null,"Sample 4: Do you understand your rights as presented to you by the officer(s) to apply for a criminal complaint and to speak to a victim witness advocate?"]
[null,"Sample 5: I received support and knowledge around navigating the criminal justice system, including filing a police report, applying for a restraining order, connecting with the District Attorney's office, etc. "]
[]
["Knowledge Building: Relationships: Items that measure how much the client has learned about their personal relationships."]
[null,"Sample 1: I have gained an understanding of the dynamics of safe and healthy relationships. "]
[null,"Sample 2: This program creates opportunities to learn how abuse and other hardships affect people's relationships. "]
[null,"Sample 3: How has working with the program affected your understanding of partner abuse? "]
[null,"Sample 4: I am learning more about how my own experience of abuse can influence my relationships with my children. "]
[null,"Sample 5: I know when I am being manipulated. "]
[]
["Knowledge Building: Sexual Exploitation: Items that measure how much the client has learned about sexual exploitation of themselves or others.  "]
[null,"Sample 1 : I feel more informed about sexual exploitation as a result of this program. "]
[null,"Sample 2: The program has increased my knowledge and awareness on Commercial Sexual Exploitation of Children."]
[null,"Sample 3: I feel like I understand what sexual exploitation is and my options for exiting the life. "]
[null,"Sample 4: I understand my own exploitation. "]
[null,"Sample 5: Are you familiar with the federal laws pertaining to the Commercial Sexual Exploitation of Children (CSEC)? "]
[]
["Personal Supports"]
[null,"Sample 1: I am happy with the friendships I have. "]
[null,"Sample 2: I feel I belong in my community."]
[null,"Sample 3: I have someone to confide in when I am in need of support. "]
[null,"Sample 4: How connected do you feel with peers? "]
[null,"Sample 5: In a crisis, I would have the support I need from family or friends. "]
[]
["Physical and Emotional Behavior"]
[null,"Sample 1: I am learning more about how children react emotionally when they have witnessed or experienced abuse, and other hardships. "]
[null,"Sample 2: I have knowledge of emotional health (depression, anxiety, trauma). "]
[null,"Sample 3: How capable do you feel about handling difficult emotions (stress, sadness, worry, loneliness)? "]
[null,"Sample 4: I have difficulty understanding why I have certain thoughts and feelings. "]
[null,"Sample 5: I have the opportunity to learn how abuse and other difficulties affect responses in the body and people's mental health. "]
[]
["Safety and Protection: Items that measure client safety as a result of involvement in the program. "]
[null,"Sample 1: I felt the staff addressed my safety and/or emergency medical needs. "]
[null,"Sample 2: After working with the program, I know more ways to plan for my safety. "]
[null,"Sample 3: I believe my child felt safe at the program. "]
[null,"Sample 4 : I feel safer as a result of the police response. "]
[null,"Sample 5: I know what my next steps are on the path to keeping safe. "]
[]
["Skill Building: Items that measure how much the client has learned about skills and tools they can use for their well-being."]
[null,"Sample 1: I have learned one or more strategies to cope with my trauma, grief and/or loss. "]
[null,"Sample 2: Because of the services I have received from the program, I feel I have tools to help me achieve my goals. "]
[null,"Sample 3: I have learned skills in this program that I use regularly. "]
[null,"Sample 4: What is something you have learned since you started working with the program? "]
[null,"Sample 5: Were there any skills you wanted to learn that weren't addressed? "]
[]
["Professional Staff"]
["Accessible and Responsive: Items that measure whether the staff are easy to contact. "]
[null,"Sample 1: Staff have been responsive to my requests, questions, and preferences."]
[null,"Sample 2: The services that are offered are available at times that are convenient for me. "]
[null,"Sample 3: If there was an update in the case, I felt confident I would be contacted by the staff."]
[null,"Sample 4: The staff were easy to get a hold of. "]
[null,"Sample 5: Staff were willing to see me as often as I felt it was necessary. "]
[]
["Diversity of Experience: Items that measure whether the staff can understand and be sensitive to clients with different backgrounds."]
[null,"Sample 1: My identity (e.g., age, gender, race, ethnicity, sexual orientation, etc.) was respected by staff. "]
[null,"Sample 2: The staff and program are trauma-informed. "]
[null,"Sample 3: Staff are culturally and linguistically informed, and programs can meet the needs of diverse populations. "]
[null,"Sample 4: I felt the staff were sensitive to the issues surrounding the case. "]
[null,"Sample 5: I felt there was no indication of bias, assumptions or stereotypes applied to my situation. "]
[null,"Sample 6: The staff adequality addressed any cultural issues I felt they should have. "]
[]
["Information Easy to Understand: Items that measure whether the staff presented the client with information in a way that the client could understand. "]
[null,"Sample 1: Staff provides a clear and helpful description of the program services and expectations. "]
[null,"Sample 2: Staff speaks with me in a way that I understand. "]
[null,"Sample 3: The structure of a program made sense and was easy to follow. "]
[null,"Sample 4: If any policies are unclear, which ones need better explanation? "]
[null,"Sample 5: The process for the interview of my child as the program was clearly explained to me. "]
[]
["Knowledgeable: Items that measure whether the staff know about other resources, the program, or victimization."]
[null,"Sample 1: The staff was knowledgeable about my situation. "]
[null,"Sample 2: The staff assisting understood the child's problem/concerns/needs. "]
[null,"Sample 3: How satisfied were you with the staff's insight into your needs? "]
[null,"Sample 4: The staff is resourceful in finding answers to difficult child-related problems. "]
[null,"Sample 5: The staff can handle difficult situations. "]
[]
["Respectful and Supportive: Items that measure whether the staff respected and supported the clients. "]
[null,"Sample 1: The staff provided a comfortable and welcoming environment for you and your children. "]
[null,"Sample 2: Staff are professional. "]
[null,"Sample 3: I felt like I was treated with respect. "]
[null,"Sample 4: The staff put me at ease when discussing the case. "]
[null,"Sample 5: I felt welcomed when I attended the program. "]
[]
["Quality of Services"]
["Confidentiality and Privacy: Items that measure whether the client's confidentiality and privacy was protected. "]
[null,"Sample 1: My confidentiality and privacy are respected by staff. "]
[null,"Sample 2: Staff obtained written permission to discuss information with outside parties. "]
[null,"Sample 3: The staff respected my wishes about who is and who is not to be given information about my treatment. "]
[null,"Sample 4: The staff kept my personal information confidential. "]
[]
["Gaps in Services: Items meant to determine what services where missing that could benefit the client. "]
[null,"Sample 1: In what ways did the program not meet your needs?"]
[null,"Sample 2: What other services/additional programs should we offer? "]
[null,"Sample 3: Please identify anything that made it difficult for you to access services. "]
[]
["Location and Facility: Items that measure the location and quality of the program facility. "]
[null,"Sample 1: I feel the physical facilities are pleasant and attractive. "]
[null,"Sample 2: The program site is clean and inviting."]
[null,"Sample 3: How satisfied are you with our facilities? "]
[null,"Sample 4: The office location is easy to find. "]
[null,"Sample 5: The location of services was convenient (parking, public transportation, distance, etc.)."]
[]
["Program Satisfaction: Items that measure whether the client enjoyed the program or specific services of the program. "]
[null,"Sample 1: I am satisfied with the services I received overall. "]
[null,"Sample 2: I had a positive experience with the agency. "]
[null,"Sample 3: I would recommend this agency to a friend or family member. "]
[null,"Sample 4: If I had other choices, I would still get services from this agency. "]
[null,"Sample 5: What parts of the group were most helpful/meaningful to you?"]
[null,"Sample 6: Is there anything that you would add or change  about individual counseling sessions?"]
[]
["B. Client Satisfaction Milestones"]
[]
["Milestones: Used to specifically measure success for your organization. "]
[null,"Sample 1: 30% response rate from clients who receive surveys with a goal of a 50% are positive "]
[null,"Sample 2: 10% response rate from clients who receive surveys with the goal of a 90% positive response rate"]

{"sheet":"Need Support","index":10,"n_rows":24,"n_cols":4,"rows_kept":24,"cut":false,"hidden":false,"merged":[[6,2,6,14],[8,2,8,14],[21,3,21,13],[23,3,23,13],[16,3,16,13],[18,3,18,13],[11,3,11,13],[13,3,13,13]]}
[]
[]
[]
[null,null,"Need Assistance?"]
[]
[]
[null,null,"Your MOVA Grants Manager is your first point of contact for any questions or concerns about the data contained in the OMT and performance data tracking."]
[]
[null,null,"For technical assistance, contact Virtual Support Desk at TTACEval@icf.com or call 703-251-0368."]
[]
[null,null,"Schedule a Virtual Session to Meet with OVC TTAC Support Staff"]
[null,null,null,"OVC TTAC support staff will be available for virtual meetings to answer questions, troubleshoot issues and use screen-sharing to assist with OMT completion. "]
[]
[null,null,null,"Email TTACEval@icf.com with the name of your organization, a brief description of your question and three dates and times to meet. If your question pertains to your logic model, please also attach a copy of your logic model. "]
[]
[null,null,"Email Your Question"]
[null,null,null,"If you have a question, you can email TTACEval@icf.com and an OVC TTAC support staff will respond to your email Monday through Friday between the hours of 9am-5pmEST. "]
[]
[null,null,null,"In your email please include any details pertinent to your question. If your question is related to your logic model, please also attach a copy of your logic model to your email. "]
[]
[null,null,"Speak with an OVC TTAC Support Staff Member"]
[null,null,null,"Please consult the open office hours calendar for OVC TTAC if you would like to join group discussions or ask a question related to the topical area being featured. "]
[]
[null,null,null,"Support staff will also be available to respond to questions by phone at 703-251-0368 Monday through Friday between the hours of 9am-5pm EST. If you are unable to connect to a support staff member due to the high volume of calls, please leave a voicemail with your contact information and details about your request."]